Body Name,Date Paid,Transaction Number,Amount,Supplier Name,Supplier Type,Expense Area,Cost Centre Description,Expense Type
Cambridgeshire County Council,03-Jan-23,51301910420,"-8,114.40",EQUITIX EDUCATION (CAMBRIDGESHIRE) LIMITED,EDUCATION,Buildings and Capital,BSF New Projects / Follow On Waves,Building Repair and Maintenance
Cambridgeshire County Council,03-Jan-23,51301893784,"-5,210.59",FOSTER BUILDING SERVICES LTD,COMPANY,County Farms,County Farms,County Farms Maintenance
Cambridgeshire County Council,03-Jan-23,51301899116,502.87,Team Q Maintenance Ltd,COMPANY,BM - Corporate Offices,Building Maintenance,Building Stuctural Maintenance - Planned
Cambridgeshire County Council,03-Jan-23,51301906137,508.62,Pathfinder Legal Services Limited,TRADE SUPPLIER,School Organisation and Planning - Attendance and Behaviour,Attendance and Behaviour,External Legal Fees
Cambridgeshire County Council,03-Jan-23,51301907647,510.00,Randstad Solutions Limited,COMPANY,EY - Oasis,Trumpington Park Early Years,Agency Staff
Cambridgeshire County Council,03-Jan-23,51301910506,511.00,CAMBRIDGE CITY COUNCIL,OTHER PUBLIC BODIES,Corporate Offices,Cherry Hinton Library,Business rates
Cambridgeshire County Council,03-Jan-23,51301910537,511.00,EAST CAMBRIDGESHIRE DISTRICT COUNCIL,OTHER PUBLIC BODIES,Capital Receipts Expenses,Capital Receipts Expenses,Business rates
Cambridgeshire County Council,03-Jan-23,51301898185,515.03,SKAT Limited,COMPANY,EY - Oasis,Trumpington Park Early Years,Agency Staff
Cambridgeshire County Council,03-Jan-23,51301899481,525.60,PITNEY BOWES FINANCE PLC,TRADE SUPPLIER,Information Management,Resources Franking Machine,Postage & Carriage
Cambridgeshire County Council,03-Jan-23,51301899301,525.60,PITNEY BOWES FINANCE PLC,TRADE SUPPLIER,Information Management,Resources Franking Machine,Postage & Carriage
Cambridgeshire County Council,03-Jan-23,51301897680,528.00,Jackson Environmental Ltd,COMPANY,County Farms,County Farms,County Farms Maintenance unplanned
Cambridgeshire County Council,03-Jan-23,51301910574,537.00,SOUTH CAMBRIDGESHIRE DISTRICT COUNCIL,OTHER PUBLIC BODIES,Corporate Offices,12 London Road CB22 7QH,Council Tax
Cambridgeshire County Council,03-Jan-23,51301906079,539.87,CUSTOM GROUP LTD,COMPANY,Investment in the CCC Asset Portfolio,Spokes - Roger Ascham,"New Construction, Conversion and Renovation"
Cambridgeshire County Council,03-Jan-23,51301896985,540.00,S. P. LANDSCAPES & TREE CONTRACTORS  LTD,COMPANY,Park & Ride Parking,Guided Busway,Grounds Maintenance
Cambridgeshire County Council,03-Jan-23,51301897722,547.80,TEACHING PERSONNEL LTD,TRADE SUPPLIER,Schools Partnership Service,Virtual School LACPP Financing,Mandatory Student Awards
Cambridgeshire County Council,03-Jan-23,51301910532,549.00,EAST CAMBRIDGESHIRE DISTRICT COUNCIL,OTHER PUBLIC BODIES,Corporate Offices,Littleport Children's Centre,Business rates
Cambridgeshire County Council,03-Jan-23,51301898052,549.21,J & G GROUNDWORKS & SURFACING,COMPANY,Highways - Rights of Way,Highways - Rights of Way,Highways - Bridges
Cambridgeshire County Council,03-Jan-23,51301899510,552.00,Integrate Families,TRADE SUPPLIER,Regional Adoption Agency,Adoption Support Fund,Professional Fees and Hired Services
Cambridgeshire County Council,03-Jan-23,51301897485,567.90,Magic Words Therapy Limited,EDUCATION,Early Years Specialist Support,Procurement - TA Therapy in Schools,Independent School Placements
Cambridgeshire County Council,03-Jan-23,51301898945,575.00,The Dyslexia Association,CHARITY,IFD - Multi-Agency Safeguarding Hub (MASH),IFD - Multi-Agency Safeguarding Hub (MASH),Computer hardware - purchase
Cambridgeshire County Council,03-Jan-23,51301910485,595.70,Redacted Personal Data,INDIVIDUAL,Home to School Transport - Special,Home to School Transport Special - Post 16,Home to School - Contract
Cambridgeshire County Council,03-Jan-23,51301910562,599.00,SOUTH CAMBRIDGESHIRE DISTRICT COUNCIL,OTHER PUBLIC BODIES,Corporate Offices,Cottenham Library,Business rates
Cambridgeshire County Council,03-Jan-23,51301899331,600.00,Pathfinder Legal Services Limited,TRADE SUPPLIER,LA maintained Early Years Provision,LA maintained Early Years Provision,Construction - External Professional Fees
Cambridgeshire County Council,03-Jan-23,51301906104,604.80,Apex,CARE ESTABLISHMENT,Adoption Allowances,Adoption Allowances,Adoption Allowances
Cambridgeshire County Council,03-Jan-23,51301898776,604.80,CAE Technology Servcies,COMPANY,ICT Service,ICT Service Sales,Materials for resale
Cambridgeshire County Council,03-Jan-23,51301898779,604.80,CAE Technology Servcies,COMPANY,ICT Service,ICT Service Sales,Materials for resale
Cambridgeshire County Council,03-Jan-23,51301897550,609.84,CLEAR CHANNEL UK LTD,COMPANY,Park & Ride Parking,Drummer Street,Grounds Maintenance
Cambridgeshire County Council,03-Jan-23,51301910567,611.00,SOUTH CAMBRIDGESHIRE DISTRICT COUNCIL,OTHER PUBLIC BODIES,Corporate Offices,Bassingbourn Childrens Centre,Business rates
Cambridgeshire County Council,03-Jan-23,51301910501,611.00,CAMBRIDGE CITY COUNCIL,OTHER PUBLIC BODIES,Corporate Offices,42 Castle St,Business rates
Cambridgeshire County Council,03-Jan-23,51301898966,611.52,Pathfinder Legal Services Limited,TRADE SUPPLIER,Legal Proceedings,Legal Proceedings,Professional Fees and Hired Services
Cambridgeshire County Council,03-Jan-23,51301896989,612.00,SECURITY GATES AND DOORS,PARTNERSHIP,County Farms,County Farms,County Farms Maintenance
Cambridgeshire County Council,03-Jan-23,51301910551,624.00,SOUTH CAMBRIDGESHIRE DISTRICT COUNCIL,OTHER PUBLIC BODIES,Corporate Offices,Willingham Library,Business rates
Cambridgeshire County Council,03-Jan-23,51301906116,625.00,THOMAS DRYER BEERS,TRADE SUPPLIER,Cambs Music Head of Business Development,Cambs Music Business Development,Grounds Maintenance
Cambridgeshire County Council,03-Jan-23,51301906113,636.00,INDUSTRIAL WATER JETTING SYSTEMS LTD(IWJS),COMPANY,Park & Ride Parking,Park and Ride Admin,Building Repair and Maintenance
Cambridgeshire County Council,03-Jan-23,51301910572,644.00,SOUTH CAMBRIDGESHIRE DISTRICT COUNCIL,OTHER PUBLIC BODIES,County Farms,County Farms,Business rates
Cambridgeshire County Council,03-Jan-23,51301910533,661.00,EAST CAMBRIDGESHIRE DISTRICT COUNCIL,OTHER PUBLIC BODIES,Corporate Offices,Soham Children's Centre,Business rates
Cambridgeshire County Council,03-Jan-23,51301899068,689.77,HUGHES TV & AUDIO LTD T/A TRADE ELECTRICALS DIRECT,TRADE SUPPLIER,South Care Leaving,South Care Leaving,Leaving Care Grants
Cambridgeshire County Council,03-Jan-23,51301910375,714.00,1ST REACTION SECURITY LIMITED,TRADE SUPPLIER,Corporate Offices,County Offices General,Security Equipment
Cambridgeshire County Council,03-Jan-23,51301910515,742.00,CAMBRIDGE CITY COUNCIL,OTHER PUBLIC BODIES,Corporate Offices,33 Haviland Way CB4 2RE,Business rates
Cambridgeshire County Council,03-Jan-23,51301908643,742.44,Decathlon UK,TRADE SUPPLIER,Grafham Water,Grafham Water Centre,Educational equipment
Cambridgeshire County Council,03-Jan-23,51301910502,749.00,CAMBRIDGE CITY COUNCIL,OTHER PUBLIC BODIES,Corporate Offices,Rock Road Library,Business rates
Cambridgeshire County Council,03-Jan-23,51301897421,750.00,J & P PLANT LTD,COMPANY,Highways Maintenance,Highways Maintenance - Works,Grass Cutting
Cambridgeshire County Council,03-Jan-23,51301896588,756.00,SECURITY GATES AND DOORS,PARTNERSHIP,County Farms,County Farms,County Farms Maintenance
Cambridgeshire County Council,03-Jan-23,51301910602,756.05,Redacted Personal Data,PARENT/GUARDIAN,Children's Disability Direct Payments,CSC Direct Payments,Direct Payments
Cambridgeshire County Council,03-Jan-23,51301899526,788.40,Blossoms Play Therapy,EDUCATION,SEND Specialist Services - Sensory Support,Sensory Support 0 - 25,Non-Curriculum expenses
Cambridgeshire County Council,03-Jan-23,51301910504,798.00,CAMBRIDGE CITY COUNCIL,OTHER PUBLIC BODIES,Corporate Offices,Arbury Court Library,Business rates
Cambridgeshire County Council,03-Jan-23,51301910526,798.00,EAST CAMBRIDGESHIRE DISTRICT COUNCIL,OTHER PUBLIC BODIES,Burwell House,Burwell House Residential Centre,Business rates
Cambridgeshire County Council,03-Jan-23,51301897420,800.00,J & P PLANT LTD,COMPANY,Highways Maintenance,Highways Maintenance - Works,Grass Cutting
Cambridgeshire County Council,03-Jan-23,51301910536,823.00,EAST CAMBRIDGESHIRE DISTRICT COUNCIL,OTHER PUBLIC BODIES,Corporate Offices,Soham Library,Business rates
Cambridgeshire County Council,03-Jan-23,51301899259,826.74,NOTTINGHAM REHAB SUPPLIES LTD,TRADE SUPPLIER,Reablement Assessment Services,Reablement OT Team,Specialist Equipment For Service Delivery
Cambridgeshire County Council,03-Jan-23,51301910473,838.89,Redacted Personal Data,FOSTER PARENT,Fostering,FCP allowances,Adoption Allowances
Cambridgeshire County Council,03-Jan-23,51301910601,840.00,Redacted Personal Data,INDIVIDUAL,Children's Disability Direct Payments,CSC Direct Payments,Direct Payments
Cambridgeshire County Council,03-Jan-23,51301896685,844.00,ELKLAN TRAINING LIMITED T/A ELKLAN,TRADE SUPPLIER,Early Years,DFE EY Professional Development Fund 2019-22,Educational Materials
Cambridgeshire County Council,03-Jan-23,51301910570,848.00,SOUTH CAMBRIDGESHIRE DISTRICT COUNCIL,OTHER PUBLIC BODIES,Corporate Offices,Papworth Library,Business rates
Cambridgeshire County Council,03-Jan-23,51301910342,864.00,NATIONAL TEACHING & ADVISORY SERVICE FOR LOOKED AFTER CHILDREN (NT & AS),OTHER PUBLIC BODIES,Out of School Tuition,Out of School Provision - Education and Settings,Independent School Placements
Cambridgeshire County Council,03-Jan-23,51301910556,886.00,SOUTH CAMBRIDGESHIRE DISTRICT COUNCIL,OTHER PUBLIC BODIES,Park & Ride Parking,Waterbeach Park & Ride,Business rates
Cambridgeshire County Council,03-Jan-23,51301910514,923.00,CAMBRIDGE CITY COUNCIL,OTHER PUBLIC BODIES,Corporate Offices,Milton Road Library,Business rates
Cambridgeshire County Council,03-Jan-23,51301907678,926.10,FOSTER BUILDING SERVICES LTD,COMPANY,County Farms,County Farms,County Farms Maintenance unplanned
Cambridgeshire County Council,03-Jan-23,51301898164,960.00,Matchtech Group (Holdings) Limited,COMPANY,PD - General,Major Infrastructure Delivery,Agency Staff
Cambridgeshire County Council,03-Jan-23,51301910584,982.89,Redacted Personal Data,INDIVIDUAL,Children's Disability Direct Payments,CSC Direct Payments,Direct Payments
Cambridgeshire County Council,03-Jan-23,51301910540,"1,035.00",SOUTH CAMBRIDGESHIRE DISTRICT COUNCIL,OTHER PUBLIC BODIES,Waste Disposal incl PFI,Thriplow HWRC,Business rates
Cambridgeshire County Council,03-Jan-23,51301910519,"1,035.00",EAST CAMBRIDGESHIRE DISTRICT COUNCIL,OTHER PUBLIC BODIES,Corporate Offices,Burwell Library,Business rates
Cambridgeshire County Council,03-Jan-23,51301910552,"1,048.00",SOUTH CAMBRIDGESHIRE DISTRICT COUNCIL,OTHER PUBLIC BODIES,Corporate Offices,Bar Hill Library,Business rates
Cambridgeshire County Council,03-Jan-23,51301898924,"1,080.00",YOUNG PEOPLE MARCH LTD,LOCAL CLUBS & GROUPS,Out of School Tuition,Out of School Provision - Education and Settings,Independent School Placements
Cambridgeshire County Council,03-Jan-23,51301910513,"1,123.00",CAMBRIDGE CITY COUNCIL,OTHER PUBLIC BODIES,Park & Ride Parking,Guided Busway,Business rates
Cambridgeshire County Council,03-Jan-23,51301910529,"1,148.00",EAST CAMBRIDGESHIRE DISTRICT COUNCIL,OTHER PUBLIC BODIES,Corporate Offices,Bottisham Locality and Children's Centre,Business rates
Cambridgeshire County Council,03-Jan-23,51301910564,"1,160.00",SOUTH CAMBRIDGESHIRE DISTRICT COUNCIL,OTHER PUBLIC BODIES,Corporate Offices,Great Shelford Library,Business rates
Cambridgeshire County Council,03-Jan-23,51301910550,"1,160.00",SOUTH CAMBRIDGESHIRE DISTRICT COUNCIL,OTHER PUBLIC BODIES,Corporate Offices,Whittlesford Highways Depot,Business rates
Cambridgeshire County Council,03-Jan-23,51301899011,"1,172.38",Team Q Maintenance Ltd,COMPANY,BM - Corporate Offices,Building Maintenance,Building Stuctural Maintenance - Planned
Cambridgeshire County Council,03-Jan-23,51301910483,"1,181.10",Redacted Personal Data,PARENT/GUARDIAN,Home to School Transport - Special,Home to School Transport Special - Special School,Home to School - Contract
Cambridgeshire County Council,03-Jan-23,51301910555,"1,185.00",SOUTH CAMBRIDGESHIRE DISTRICT COUNCIL,OTHER PUBLIC BODIES,Waste Disposal incl PFI,Milton HWRC,Business rates
Cambridgeshire County Council,03-Jan-23,51301898773,"1,200.00",PricewaterhouseCoopers,TRADE SUPPLIER,Professional Finance,CCC Finance,Professional Fees and Hired Services
Cambridgeshire County Council,03-Jan-23,51301901023,"1,248.40",ROYAL MAIL,TRADE SUPPLIER,Information Management,Resources Franking Machine,Postage & Carriage
Cambridgeshire County Council,03-Jan-23,51301908026,"1,296.85",GASKELL REFURBISHMENTS LTD,COMPANY,County Farms,County Farms,County Farms Maintenance
Cambridgeshire County Council,03-Jan-23,51301910479,"1,300.00",Redacted Personal Data,INDIVIDUAL,County Farms,County Farms,County Farms Maintenance unplanned
Cambridgeshire County Council,03-Jan-23,51301910516,"1,330.00",CAMBRIDGE CITY COUNCIL,OTHER PUBLIC BODIES,Corporate Offices,Preschools,Business rates
Cambridgeshire County Council,03-Jan-23,51301910558,"1,347.00",SOUTH CAMBRIDGESHIRE DISTRICT COUNCIL,OTHER PUBLIC BODIES,Capital Receipts Expenses,Capital Receipts Expenses,Business rates
Cambridgeshire County Council,03-Jan-23,51301910559,"1,435.00",SOUTH CAMBRIDGESHIRE DISTRICT COUNCIL,OTHER PUBLIC BODIES,Corporate Offices,Whittlesford Highways Depot,Business rates
Cambridgeshire County Council,03-Jan-23,51301910549,"1,485.00",SOUTH CAMBRIDGESHIRE DISTRICT COUNCIL,OTHER PUBLIC BODIES,Corporate Offices,"Comberton Road, Toft",Business rates
Cambridgeshire County Council,03-Jan-23,51301898802,"1,500.00",Protocol Education,EDUCATION,Schools - Secondaries,Pilgrim Pru,Agency Staff
Cambridgeshire County Council,03-Jan-23,51301899498,"1,512.00",b2b partnerships Ltd,COMPANY,Internal Audit,Audit Division,Recruitment Advertising
Cambridgeshire County Council,03-Jan-23,51301899609,"1,517.19",THE SALVATION ARMY,CHARITY,LAC Placements,Placements - 16+,Childrens Lodgings
Cambridgeshire County Council,03-Jan-23,51301896973,"1,535.69",SC Electrical Contracting Ltd,COMPANY,County Farms,County Farms,County Farms Maintenance unplanned
Cambridgeshire County Council,03-Jan-23,51301897457,"1,564.20",Pathfinder Legal Services Limited,TRADE SUPPLIER,Domestic Violence & Sexual Violence,MHCLG Grant,External Legal Fees
Cambridgeshire County Council,03-Jan-23,51301910481,"1,569.71",Low Carbon Contracts Company Ltd,COMPANY,County Farms,"Triangle Solar Farm, Soham",Electricity
Cambridgeshire County Council,03-Jan-23,51301898143,"1,582.24",J & G GROUNDWORKS & SURFACING,COMPANY,Highways - Rights of Way,Highways - Rights of Way,Highways - Bridges
Cambridgeshire County Council,03-Jan-23,51301910531,"1,584.00",EAST CAMBRIDGESHIRE DISTRICT COUNCIL,OTHER PUBLIC BODIES,Corporate Offices,Witchford Highways Depot,Business rates
Cambridgeshire County Council,03-Jan-23,51301896953,"1,649.05",Cheeky Baby Products Ltd,COMPANY,Waste - RECAP,Waste Recap,Specialist Supplies and Materials
Cambridgeshire County Council,03-Jan-23,51301898798,"1,704.00",Tile Hill Interim & Executive Ltd,COMPANY,P&C Executive Director,Executive Director - People & Communities,Agency Staff
Cambridgeshire County Council,03-Jan-23,51301896927,"1,723.90",Conduent Public Sector LTD,TRADE SUPPLIER,Parking Enforcement,Civil Parking Enforcement,Professional Fees and Hired Services
Cambridgeshire County Council,03-Jan-23,51301896930,"1,839.60",Sotham Engineering Services Limited,COMPANY,Investment in the CCC Asset Portfolio,Spokes - Hot-Desking Mobile Unit,Mobile - Buildings
Cambridgeshire County Council,03-Jan-23,51301899580,"1,871.10",Inspire EHC Ltd,COMPANY,Out of School Tuition,SEND Specialist Services - SEMH Support Programme,Professional Fees and Hired Services
Cambridgeshire County Council,03-Jan-23,51301899119,"1,952.45",Team Q Maintenance Ltd,COMPANY,BM - Corporate Offices,Building Maintenance,Building Structural Maintenance - Reactive
Cambridgeshire County Council,03-Jan-23,51301899013,"1,958.16",Team Q Maintenance Ltd,COMPANY,BM - Corporate Offices,Building Maintenance,Building Structural Maintenance - Reactive
Cambridgeshire County Council,03-Jan-23,51301899263,"1,965.36",Team Q Maintenance Ltd,COMPANY,BM - Corporate Offices,Building Maintenance,Building Structural Maintenance - Reactive
Cambridgeshire County Council,03-Jan-23,51301910579,"2,027.00",SOUTH CAMBRIDGESHIRE DISTRICT COUNCIL,OTHER PUBLIC BODIES,Corporate Offices,Histon Library,Business rates
Cambridgeshire County Council,03-Jan-23,51301910480,"2,152.62",Low Carbon Contracts Company Ltd,COMPANY,County Farms,"Triangle Solar Farm, Soham",Electricity
Cambridgeshire County Council,03-Jan-23,51301897546,"2,175.12",CHS GROUP,CARE ESTABLISHMENT,LD - Head of Service,Head of LDP,Domiciliary Care
Cambridgeshire County Council,03-Jan-23,51301898898,"2,181.84",CAMBRIDGE CITY COUNCIL,OTHER PUBLIC BODIES,Mental Health Commissioning,Mental Health Commissioning,Residential Care - Property Voids
Cambridgeshire County Council,03-Jan-23,51301910557,"2,202.00",SOUTH CAMBRIDGESHIRE DISTRICT COUNCIL,OTHER PUBLIC BODIES,Corporate Offices,Gamlingay First (Former School),Business rates
Cambridgeshire County Council,03-Jan-23,51301898875,"2,296.80",Pathfinder Legal Services Limited,TRADE SUPPLIER,LD - Young Adults Staffing,LD - Young Adults - Staffing,External Legal Fees
Cambridgeshire County Council,03-Jan-23,51301910577,"2,304.00",SOUTH CAMBRIDGESHIRE DISTRICT COUNCIL,OTHER PUBLIC BODIES,Cambs Music Head of Business Development,Cambs Music Business Development,Business rates
Cambridgeshire County Council,03-Jan-23,51301897720,"2,362.81",Aurora Fairway School (Beechkeys Ltd ),EDUCATION,SEN Placements,Placements - Education,Independent School Placements
Cambridgeshire County Council,03-Jan-23,51301897716,"2,362.81",Aurora Fairway School (Beechkeys Ltd ),EDUCATION,SEN Placements,Placements - Education,Independent School Placements
Cambridgeshire County Council,03-Jan-23,51301910472,"2,364.21",Redacted Personal Data,PARENT/GUARDIAN,Children's Disability Direct Payments,CSC Direct Payments,Direct Payments
Cambridgeshire County Council,03-Jan-23,51301910518,"2,383.00",EAST CAMBRIDGESHIRE DISTRICT COUNCIL,OTHER PUBLIC BODIES,Waste Disposal incl PFI,Witchford HWRC,Business rates
Cambridgeshire County Council,03-Jan-23,51301910565,"2,458.00",SOUTH CAMBRIDGESHIRE DISTRICT COUNCIL,OTHER PUBLIC BODIES,Corporate Offices,Sackville House (Cambourne),Business rates
Cambridgeshire County Council,03-Jan-23,51301910433,"2,473.00",GRETTON SCHOOL,EDUCATION,SEN Placements,Placements - Education,Independent School Placements
Cambridgeshire County Council,03-Jan-23,51301910434,"2,473.00",GRETTON SCHOOL,EDUCATION,SEN Placements,Placements - Education,Independent School Placements
Cambridgeshire County Council,03-Jan-23,51301910431,"2,473.00",GRETTON SCHOOL,EDUCATION,SEN Placements,Placements - Education,Independent School Placements
Cambridgeshire County Council,03-Jan-23,51301910430,"2,473.00",GRETTON SCHOOL,EDUCATION,SEN Placements,Placements - Education,Independent School Placements
Cambridgeshire County Council,03-Jan-23,51301896920,"2,533.51",ATKINS LTD,COMPANY,TIPF - Strategy & Scheme Dev,TIPF - Strategy & Scheme Dev,Construction - External Professional Fees
Cambridgeshire County Council,03-Jan-23,51301908546,"2,550.00",AIR QUALITY CONSULTATIONS LIMITED,TRADE SUPPLIER,"County Planning, Minerals & Waste","County Planning, Minerals & Waste",Consultancy
Cambridgeshire County Council,03-Jan-23,51301898968,"2,555.28",Team Q Maintenance Ltd,COMPANY,Condition Survey Works,Signet Court CB5 8LA CS22050108,"New Construction, Conversion and Renovation"
Cambridgeshire County Council,03-Jan-23,51301898221,"2,640.00",Panoramic Associates,COMPANY,PH COMF,PH - Contain Outbreak Management Fund,Professional Fees and Hired Services
Cambridgeshire County Council,03-Jan-23,51301898163,"2,688.00",Matchtech Group (Holdings) Limited,COMPANY,PD - General,Major Infrastructure Delivery,Agency Staff
Cambridgeshire County Council,03-Jan-23,51301896941,"2,816.70",THE ONE GROUP,TRADE SUPPLIER,Enduring Transmission Grant,Enduring Transmission Grant,Advertising / Publicity (non Recruitment)
Cambridgeshire County Council,03-Jan-23,51301910547,"2,842.00",SOUTH CAMBRIDGESHIRE DISTRICT COUNCIL,OTHER PUBLIC BODIES,Corporate Offices,Sackville House (Cambourne),Business rates
Cambridgeshire County Council,03-Jan-23,51301897532,"2,844.00",Permanent Futures Ltd,COMPANY,Educations Systems,Educations System,IT Software
Cambridgeshire County Council,03-Jan-23,51301899258,"2,872.02",Team Q Maintenance Ltd,COMPANY,BM - Corporate Offices,Building Maintenance,Building Structural Maintenance - Reactive
Cambridgeshire County Council,03-Jan-23,51301898161,"2,932.50",Matchtech Group (Holdings) Limited,COMPANY,PD - General,Major Infrastructure Delivery,Agency Staff
Cambridgeshire County Council,03-Jan-23,51301899350,"2,961.00",Blackpoint Media Ltd,COMPANY,Flood Risk Management,Flood Risk Management Programme,Professional Fees and Hired Services
Cambridgeshire County Council,03-Jan-23,51301896942,"3,000.00",FRONTLINE DATA LIMITED,TRADE SUPPLIER,Health & Safety,POD - Health & Safety,Professional Fees and Hired Services
Cambridgeshire County Council,03-Jan-23,51301910507,"3,021.00",CAMBRIDGE CITY COUNCIL,OTHER PUBLIC BODIES,Corporate Offices,Roger Ascham Library,Business rates
Cambridgeshire County Council,03-Jan-23,51301908578,"3,069.00",SECURITY GATES AND DOORS,PARTNERSHIP,County Farms Investment (Viability),Meads Farm,Construction - External Professional Fees
Cambridgeshire County Council,03-Jan-23,51301898162,"3,180.00",Matchtech Group (Holdings) Limited,COMPANY,PD - General,Major Infrastructure Delivery,Agency Staff
Cambridgeshire County Council,03-Jan-23,51301896962,"3,241.92",THE ONE GROUP,TRADE SUPPLIER,Enduring Transmission Grant,Enduring Transmission Grant,Advertising / Publicity (non Recruitment)
Cambridgeshire County Council,03-Jan-23,51301898974,"3,281.52",Team Q Maintenance Ltd,COMPANY,Condition Survey Works,40 & 44 Russell Street CS22050101,"New Construction, Conversion and Renovation"
Cambridgeshire County Council,03-Jan-23,51301898166,"3,300.00",Matchtech Group (Holdings) Limited,COMPANY,PD - General,Major Infrastructure Delivery,Agency Staff
Cambridgeshire County Council,03-Jan-23,51301898165,"3,360.00",Matchtech Group (Holdings) Limited,COMPANY,PD - General,Major Infrastructure Delivery,Agency Staff
Cambridgeshire County Council,03-Jan-23,51301898935,"3,390.40",Bedford Greenacre Independent School,EDUCATION,SEND High Needs Top Up,"SEND Specialist Services,High Needs Top Up,Other institutions",Independent School Placements
Cambridgeshire County Council,03-Jan-23,51301910535,"3,430.00",EAST CAMBRIDGESHIRE DISTRICT COUNCIL,OTHER PUBLIC BODIES,County Farms,"Triangle Solar Farm, Soham",Business rates
Cambridgeshire County Council,03-Jan-23,51301896949,"3,600.00",PricewaterhouseCoopers,TRADE SUPPLIER,Professional Finance,CCC Finance,Professional Fees and Hired Services
Cambridgeshire County Council,03-Jan-23,51301910419,"3,780.00",Solace in Business,COMPANY,P&C Executive Director,Executive Director - People & Communities,Professional Fees and Hired Services
Cambridgeshire County Council,03-Jan-23,51301906360,"3,898.85",Vuzion UK Ltd,COMPANY,ICT Service,ICT Service Technical Support,Computer software - purchase
Cambridgeshire County Council,03-Jan-23,51301898176,"4,080.00",ATKINS LTD,COMPANY,GCP Greenway Development,GCP Greenway development,Construction - External Professional Fees
Cambridgeshire County Council,03-Jan-23,51301910542,"4,122.00",SOUTH CAMBRIDGESHIRE DISTRICT COUNCIL,OTHER PUBLIC BODIES,Corporate Offices,Sackville House (Cambourne),Business rates
Cambridgeshire County Council,03-Jan-23,51301910465,"4,170.00",Surecare Residential Limited,EDUCATION,SEN Placements,Placements - Education,Independent School Placements
Cambridgeshire County Council,03-Jan-23,51301896544,"4,238.00",Cambridge International School Ltd T/A Holme Court School,EDUCATION,SEND High Needs Top Up,"SEND Specialist Services,High Needs Top Up,Other institutions",Independent School Placements
Cambridgeshire County Council,03-Jan-23,51301898274,"4,268.88",COUNTRY GROUNDS MAINTENANCE LTD,COMPANY,Buildings and Capital,Grounds Management Service - Client,Tree Maintenance
Cambridgeshire County Council,03-Jan-23,51301898977,"4,291.61",Team Q Maintenance Ltd,COMPANY,Condition Survey Works,Huntingdon Community Cntr PE29 6JE CS22050115,"New Construction, Conversion and Renovation"
Cambridgeshire County Council,03-Jan-23,51301910343,"4,320.00",NATIONAL TEACHING & ADVISORY SERVICE FOR LOOKED AFTER CHILDREN (NT & AS),OTHER PUBLIC BODIES,Out of School Tuition,Out of School Provision - Education and Settings,Independent School Placements
Cambridgeshire County Council,03-Jan-23,51301910520,"4,378.00",EAST CAMBRIDGESHIRE DISTRICT COUNCIL,OTHER PUBLIC BODIES,Corporate Offices,Noble House,Business rates
Cambridgeshire County Council,03-Jan-23,51301910503,"4,480.00",CAMBRIDGE CITY COUNCIL,OTHER PUBLIC BODIES,Corporate Offices,Signet Court,Business rates
Cambridgeshire County Council,03-Jan-23,51301898597,"4,560.00",DKO WHEATLEY,SOLETRADER,County Farms,County Farms,Specialist Works and Repairs
Cambridgeshire County Council,03-Jan-23,51301910441,"4,800.00",BUILDING SOFTWARE LIMITED,TRADE SUPPLIER,Highways General,Highways,Staff Training & Development
Cambridgeshire County Council,03-Jan-23,51301910482,"4,813.30",Low Carbon Contracts Company Ltd,COMPANY,County Farms,"Triangle Solar Farm, Soham",Electricity
Cambridgeshire County Council,03-Jan-23,51301898901,"5,046.00",COPE,CARE ESTABLISHMENT,Adults Commissioning - short term prevention,PD and Sensory Grants,Domiciliary Care
Cambridgeshire County Council,03-Jan-23,51301898154,"5,145.98",NETWORK RAIL LTD,COMPANY,Highways - Bridges,Highways - Bridges,Construction - External Professional Fees
Cambridgeshire County Council,03-Jan-23,51301898845,"5,462.58",Pathfinder Legal Services Limited,TRADE SUPPLIER,LD - Young Adults Staffing,LD - Young Adults - Staffing,External Legal Fees
Cambridgeshire County Council,03-Jan-23,51301896542,"5,512.00",Cambridge International School Ltd T/A Holme Court School,EDUCATION,SEN Placements,Placements - Education,Independent School Placements
Cambridgeshire County Council,03-Jan-23,51301910523,"5,530.00",EAST CAMBRIDGESHIRE DISTRICT COUNCIL,OTHER PUBLIC BODIES,Corporate Offices,Ely Library,Business rates
Cambridgeshire County Council,03-Jan-23,51301910587,"5,738.58",THE BEECHES UK LIMITED,CARE ESTABLISHMENT,LAC Placements,Placements - S117 tier 4 step-down,Supported Living
Cambridgeshire County Council,03-Jan-23,51301896550,"5,785.16",Cambridge International School Ltd T/A Holme Court School,EDUCATION,SEN Placements,Placements - Education,Independent School Placements
Cambridgeshire County Council,03-Jan-23,51301910589,"5,915.16",Team Q Maintenance Ltd,COMPANY,Condition Survey Works,Shortsands Day Centre PE19 1PL CS22050107,"New Construction, Conversion and Renovation"
Cambridgeshire County Council,03-Jan-23,51301896541,"6,136.00",Cambridge International School Ltd T/A Holme Court School,EDUCATION,SEN Placements,Placements - Education,Independent School Placements
Cambridgeshire County Council,03-Jan-23,51301896547,"6,136.00",Cambridge International School Ltd T/A Holme Court School,EDUCATION,SEN Placements,Placements - Education,Independent School Placements
Cambridgeshire County Council,03-Jan-23,51301896552,"6,136.00",Cambridge International School Ltd T/A Holme Court School,EDUCATION,SEN Placements,Placements - Education,Independent School Placements
Cambridgeshire County Council,03-Jan-23,51301896555,"6,528.76",Cambridge International School Ltd T/A Holme Court School,EDUCATION,SEN Placements,Placements - Education,Independent School Placements
Cambridgeshire County Council,03-Jan-23,51301899101,"6,666.06",AW Management Company (KP1c) Limited,COMPANY,Corporate Offices,Civic Headquarters � Alconbury Weald,Service Charges
Cambridgeshire County Council,03-Jan-23,51301897454,"6,666.33",RED BALLOON OF THE AIR,CARE ESTABLISHMENT,SEN Placements,Placements - Education,Independent School Placements
Cambridgeshire County Council,03-Jan-23,51301896551,"6,844.06",Cambridge International School Ltd T/A Holme Court School,EDUCATION,SEN Placements,Placements - Education,Independent School Placements
Cambridgeshire County Council,03-Jan-23,51301910571,"7,014.00",SOUTH CAMBRIDGESHIRE DISTRICT COUNCIL,OTHER PUBLIC BODIES,Park & Ride Parking,Newmarket Road P & R,Business rates
Cambridgeshire County Council,03-Jan-23,51301897597,"7,087.50",Life Under Canvas,TRADE SUPPLIER,Grafham Water,Grafham Water Centre,Subscriptions
Cambridgeshire County Council,03-Jan-23,51301896549,"7,122.40",Cambridge International School Ltd T/A Holme Court School,EDUCATION,SEN Placements,Placements - Education,Independent School Placements
Cambridgeshire County Council,03-Jan-23,51301897708,"7,466.48",Aurora Fairway School (Beechkeys Ltd ),EDUCATION,SEN Placements,Placements - Education,Independent School Placements
Cambridgeshire County Council,03-Jan-23,51301910508,"7,885.00",CAMBRIDGE CITY COUNCIL,OTHER PUBLIC BODIES,Park & Ride Parking,Madingley Road P & R,Business rates
Cambridgeshire County Council,03-Jan-23,51301910560,"8,038.00",SOUTH CAMBRIDGESHIRE DISTRICT COUNCIL,OTHER PUBLIC BODIES,Corporate Offices,"Bernard Sunley Centre, Papworth Everard",Business rates
Cambridgeshire County Council,03-Jan-23,51301896928,"8,295.25",Conduent Public Sector LTD,TRADE SUPPLIER,Parking Enforcement,Bus Route Enforcement,Professional Fees and Hired Services
Cambridgeshire County Council,03-Jan-23,51301897450,"8,333.00",RED BALLOON OF THE AIR,CARE ESTABLISHMENT,SEN Placements,Placements - Education,Independent School Placements
Cambridgeshire County Council,03-Jan-23,51301897462,"8,333.00",RED BALLOON OF THE AIR,CARE ESTABLISHMENT,SEN Placements,Placements - Education,Independent School Placements
Cambridgeshire County Council,03-Jan-23,51301897466,"8,333.00",RED BALLOON OF THE AIR,CARE ESTABLISHMENT,SEN Placements,Placements - Education,Independent School Placements
Cambridgeshire County Council,03-Jan-23,51301897456,"8,333.00",RED BALLOON OF THE AIR,CARE ESTABLISHMENT,SEN Placements,Placements - Education,Independent School Placements
Cambridgeshire County Council,03-Jan-23,51301897452,"8,333.00",RED BALLOON OF THE AIR,CARE ESTABLISHMENT,SEN Placements,Placements - Education,Independent School Placements
Cambridgeshire County Council,03-Jan-23,51301910563,"8,499.00",SOUTH CAMBRIDGESHIRE DISTRICT COUNCIL,OTHER PUBLIC BODIES,Park & Ride Parking,Milton Park & Ride,Business rates
Cambridgeshire County Council,03-Jan-23,51301910509,"8,550.00",CAMBRIDGE CITY COUNCIL,OTHER PUBLIC BODIES,Park & Ride Parking,Babraham Road P & R,Business rates
Cambridgeshire County Council,03-Jan-23,51301908544,"8,748.00",Blackpoint Media Ltd,COMPANY,SEND Specialist Services - Divisional Managers,SEND South Division,Professional Fees and Hired Services
Cambridgeshire County Council,03-Jan-23,51301896548,"9,089.81",Cambridge International School Ltd T/A Holme Court School,EDUCATION,SEN Placements,Placements - Education,Independent School Placements
Cambridgeshire County Council,03-Jan-23,51301899292,"9,408.00",MRC MODULAR LTD,SOLETRADER,Duxford -  Fire Damage Rebuild,Duxford -  Fire Damage Rebuild,Mobile - Buildings
Cambridgeshire County Council,03-Jan-23,51301896553,"9,783.25",Cambridge International School Ltd T/A Holme Court School,EDUCATION,SEN Placements,Placements - Education,Independent School Placements
Cambridgeshire County Council,03-Jan-23,51301897460,"9,999.00",RED BALLOON OF THE AIR,CARE ESTABLISHMENT,SEN Placements,Placements - Education,Independent School Placements
Cambridgeshire County Council,03-Jan-23,51301897486,"9,999.00",RED BALLOON OF THE AIR,CARE ESTABLISHMENT,SEN Placements,Placements - Education,Independent School Placements
Cambridgeshire County Council,03-Jan-23,51301897461,"9,999.67",RED BALLOON OF THE AIR,CARE ESTABLISHMENT,SEN Placements,Placements - Education,Independent School Placements
Cambridgeshire County Council,03-Jan-23,51301897471,"9,999.67",RED BALLOON OF THE AIR,CARE ESTABLISHMENT,SEN Placements,Placements - Education,Independent School Placements
Cambridgeshire County Council,03-Jan-23,51301897448,"9,999.67",RED BALLOON OF THE AIR,CARE ESTABLISHMENT,SEN Placements,Placements - Education,Independent School Placements
Cambridgeshire County Council,03-Jan-23,51301897458,"9,999.67",RED BALLOON OF THE AIR,CARE ESTABLISHMENT,SEN Placements,Placements - Education,Independent School Placements
Cambridgeshire County Council,03-Jan-23,51301896546,"10,149.94",Cambridge International School Ltd T/A Holme Court School,EDUCATION,SEN Placements,Placements - Education,Independent School Placements
Cambridgeshire County Council,03-Jan-23,51301899260,"10,680.00",Red Quadrant Ltd,EDUCATION,LDP balancing,Learning Disability pooled budget balancing,Consultancy
Cambridgeshire County Council,03-Jan-23,51301898954,"10,680.00",Team Q Maintenance Ltd,COMPANY,Condition Survey Works,Soham C&FC CB7 5BH CS22050118,"New Construction, Conversion and Renovation"
Cambridgeshire County Council,03-Jan-23,51301899244,"11,093.00",MARY HARE SCHOOL,EDUCATION,SEN Placements,Placements - Education,Independent School Placements
Cambridgeshire County Council,03-Jan-23,51301899105,"11,397.00",DARTT LIMITED,TRADE SUPPLIER,Guided Busway - Litigation costs,Guided Bus,External Legal Fees
Cambridgeshire County Council,03-Jan-23,51301897488,"11,499.67",RED BALLOON OF THE AIR,CARE ESTABLISHMENT,SEN Placements,Placements - Education,Independent School Placements
Cambridgeshire County Council,03-Jan-23,51301897453,"11,499.67",RED BALLOON OF THE AIR,CARE ESTABLISHMENT,SEN Placements,Placements - Education,Independent School Placements
Cambridgeshire County Council,03-Jan-23,51301910382,"11,556.24",COMPASS MINERALS UK LIMITED,TRADE SUPPLIER,Winter Maintenance,East Winter,Salt for Highways
Cambridgeshire County Council,03-Jan-23,51301897451,"11,666.33",RED BALLOON OF THE AIR,CARE ESTABLISHMENT,SEN Placements,Placements - Education,Independent School Placements
Cambridgeshire County Council,03-Jan-23,51301897455,"11,666.33",RED BALLOON OF THE AIR,CARE ESTABLISHMENT,SEN Placements,Placements - Education,Independent School Placements
Cambridgeshire County Council,03-Jan-23,51301897459,"11,666.33",RED BALLOON OF THE AIR,CARE ESTABLISHMENT,SEN Placements,Placements - Education,Independent School Placements
Cambridgeshire County Council,03-Jan-23,51301896543,"11,995.46",Cambridge International School Ltd T/A Holme Court School,EDUCATION,SEN Placements,Placements - Education,Independent School Placements
Cambridgeshire County Council,03-Jan-23,51301897602,"12,692.18",ATKINS LTD,COMPANY,March Area Transport Study,March Area Transport Study,Construction - External Professional Fees
Cambridgeshire County Council,03-Jan-23,51301899023,"12,959.62",Team Q Maintenance Ltd,COMPANY,BM - Corporate Offices,Building Maintenance,Building Stuctural Maintenance - Planned
Cambridgeshire County Council,03-Jan-23,51301899591,"13,026.89",Bakers of Danbury Heritage Ltd,COMPANY,Building Maintenance,Building Maintenance,"New Construction, Conversion and Renovation"
Cambridgeshire County Council,03-Jan-23,51301899117,"13,292.08",Team Q Maintenance Ltd,COMPANY,BM - Corporate Offices,Building Maintenance,Building Stuctural Maintenance - Planned
Cambridgeshire County Council,03-Jan-23,51301898205,"14,000.00",THE CAMBRIDGE ACORN PROJECT,TRADE SUPPLIER,Domestic Violence & Sexual Violence,CADA Grant,Consultancy
Cambridgeshire County Council,03-Jan-23,51301910464,"14,212.32",Keys PCE Ltd,CARE ESTABLISHMENT,SEN Placements,Placements - Education,Independent School Placements
Cambridgeshire County Council,03-Jan-23,51301910458,"14,278.86",Keys PCE Ltd,CARE ESTABLISHMENT,SEN Placements,Placements - Education,Independent School Placements
Cambridgeshire County Council,03-Jan-23,51301907677,"14,384.74",FOSTER BUILDING SERVICES LTD,COMPANY,County Farms,County Farms,County Farms Maintenance
Cambridgeshire County Council,03-Jan-23,51301910534,"14,592.00",EAST CAMBRIDGESHIRE DISTRICT COUNCIL,OTHER PUBLIC BODIES,Corporate Offices,Ely Archive centre,Business rates
Cambridgeshire County Council,03-Jan-23,51301896539,"14,890.26",ATKINS LTD,COMPANY,TIPF - Strategy & Scheme Dev,TIPF - Strategy & Scheme Dev,Construction - External Professional Fees
Cambridgeshire County Council,03-Jan-23,51301898245,"14,960.02",Highways England,OTHER PUBLIC BODIES,MID - Cycling CCI S106,MID - Cycling CCI S106,Construction - External Professional Fees
Cambridgeshire County Council,03-Jan-23,51301910510,"15,616.00",CAMBRIDGE CITY COUNCIL,OTHER PUBLIC BODIES,Park & Ride Parking,Trumpington Park & Ride,Business rates
Cambridgeshire County Council,03-Jan-23,51301897470,"15,907.50",SHA Disability Consultancy Ltd,COMPANY,Occupational Therapy Commissioning,Occupational Therapy Commissioning,Consultancy
Cambridgeshire County Council,03-Jan-23,51301910396,"16,561.80",1ST REACTION SECURITY LIMITED,TRADE SUPPLIER,Corporate Offices,County Offices General,Security Equipment
Cambridgeshire County Council,03-Jan-23,51301899002,"17,590.00",Bredon School,EDUCATION,SEN Placements,Placements - Education,Independent School Placements
Cambridgeshire County Council,03-Jan-23,51301897738,"17,957.33",Aurora Fairway School (Beechkeys Ltd ),EDUCATION,SEN Placements,Placements - Education,Independent School Placements
Cambridgeshire County Council,03-Jan-23,51301897736,"17,957.33",Aurora Fairway School (Beechkeys Ltd ),EDUCATION,SEN Placements,Placements - Education,Independent School Placements
Cambridgeshire County Council,03-Jan-23,51301897733,"17,957.33",Aurora Fairway School (Beechkeys Ltd ),EDUCATION,SEN Placements,Placements - Education,Independent School Placements
Cambridgeshire County Council,03-Jan-23,51301897732,"17,957.33",Aurora Fairway School (Beechkeys Ltd ),EDUCATION,SEN Placements,Placements - Education,Independent School Placements
Cambridgeshire County Council,03-Jan-23,51301897734,"17,957.33",Aurora Fairway School (Beechkeys Ltd ),EDUCATION,SEN Placements,Placements - Education,Independent School Placements
Cambridgeshire County Council,03-Jan-23,51301897737,"17,957.33",Aurora Fairway School (Beechkeys Ltd ),EDUCATION,SEN Placements,Placements - Education,Independent School Placements
Cambridgeshire County Council,03-Jan-23,51301897715,"17,957.33",Aurora Fairway School (Beechkeys Ltd ),EDUCATION,SEN Placements,Placements - Education,Independent School Placements
Cambridgeshire County Council,03-Jan-23,51301897739,"17,957.33",Aurora Fairway School (Beechkeys Ltd ),EDUCATION,SEN Placements,Placements - Education,Independent School Placements
Cambridgeshire County Council,03-Jan-23,51301897721,"17,957.33",Aurora Fairway School (Beechkeys Ltd ),EDUCATION,SEN Placements,Placements - Education,Independent School Placements
Cambridgeshire County Council,03-Jan-23,51301897719,"17,957.33",Aurora Fairway School (Beechkeys Ltd ),EDUCATION,SEN Placements,Placements - Education,Independent School Placements
Cambridgeshire County Council,03-Jan-23,51301897717,"17,957.33",Aurora Fairway School (Beechkeys Ltd ),EDUCATION,SEN Placements,Placements - Education,Independent School Placements
Cambridgeshire County Council,03-Jan-23,51301897741,"17,957.33",Aurora Fairway School (Beechkeys Ltd ),EDUCATION,SEN Placements,Placements - Education,Independent School Placements
Cambridgeshire County Council,03-Jan-23,51301897706,"17,957.33",Aurora Fairway School (Beechkeys Ltd ),EDUCATION,SEN Placements,Placements - Education,Independent School Placements
Cambridgeshire County Council,03-Jan-23,51301897714,"17,957.33",Aurora Fairway School (Beechkeys Ltd ),EDUCATION,SEN Placements,Placements - Education,Independent School Placements
Cambridgeshire County Council,03-Jan-23,51301897710,"17,957.33",Aurora Fairway School (Beechkeys Ltd ),EDUCATION,SEN Placements,Placements - Education,Independent School Placements
Cambridgeshire County Council,03-Jan-23,51301897711,"17,996.67",THE ROYAL NATIONAL COLLEGE FOR THE BLIND,EDUCATION,SEN Placements,Placements - Education,Independent School Placements
Cambridgeshire County Council,03-Jan-23,51301910397,"18,684.00",WSP UK Limited,COMPANY,GCP Greenway Development,GCP Greenway development,Construction - External Professional Fees
Cambridgeshire County Council,03-Jan-23,51301910459,"19,538.00",New College Worcester,EDUCATION,SEN Placements,Placements - Education,Independent School Placements
Cambridgeshire County Council,03-Jan-23,51301898957,"20,129.04",Team Q Maintenance Ltd,COMPANY,Condition Survey Works,Shortsands Day Centre PE19 1PL CS22050107,"New Construction, Conversion and Renovation"
Cambridgeshire County Council,03-Jan-23,51301897712,"21,291.83",Aurora Fairway School (Beechkeys Ltd ),EDUCATION,SEN Placements,Placements - Education,Independent School Placements
Cambridgeshire County Council,03-Jan-23,51301897705,"21,432.15",Aurora Fairway School (Beechkeys Ltd ),EDUCATION,SEN Placements,Placements - Education,Independent School Placements
Cambridgeshire County Council,03-Jan-23,51301908075,"21,435.67",MOOR HOUSE SCHOOL,EDUCATION,SEN Placements,Placements - Education,Independent School Placements
Cambridgeshire County Council,03-Jan-23,51301910554,"21,504.00",SOUTH CAMBRIDGESHIRE DISTRICT COUNCIL,OTHER PUBLIC BODIES,Park & Ride Parking,Guided Busway,Business rates
Cambridgeshire County Council,03-Jan-23,51301910460,"21,661.00",New College Worcester,EDUCATION,SEN Placements,Placements - Education,Independent School Placements
Cambridgeshire County Council,03-Jan-23,51301910512,"21,760.00",CAMBRIDGE CITY COUNCIL,OTHER PUBLIC BODIES,Corporate Offices,Cambridge Central Library,Business rates
Cambridgeshire County Council,03-Jan-23,51301897713,"22,858.33",THE ROYAL NATIONAL COLLEGE FOR THE BLIND,EDUCATION,SEN Placements,Placements - Education,Independent School Placements
Cambridgeshire County Council,03-Jan-23,51301910462,"23,655.00",New College Worcester,EDUCATION,SEN Placements,Placements - Education,Independent School Placements
Cambridgeshire County Council,03-Jan-23,51301898580,"24,153.50",AURORA MELDRETH & ORCHARD MANOR,EDUCATION,SEN Placements,Placements - Education,Independent School Placements
Cambridgeshire County Council,03-Jan-23,51301898579,"24,153.50",AURORA MELDRETH & ORCHARD MANOR,EDUCATION,SEN Placements,Placements - Education,Independent School Placements
Cambridgeshire County Council,03-Jan-23,51301898612,"24,276.29",AURORA MELDRETH & ORCHARD MANOR,EDUCATION,SEN Placements,Placements - Education,Independent School Placements
Cambridgeshire County Council,03-Jan-23,51301908602,"24,503.29",Top Notch Tutors,EDUCATION,Out of School Tuition,Out of School Provision - Education and Settings,Independent School Placements
Cambridgeshire County Council,03-Jan-23,51301898208,"24,541.99",MOTT MACDONALD LTD,TRADE SUPPLIER,Guided Busway - Litigation costs,Guided Bus,External Legal Fees
Cambridgeshire County Council,03-Jan-23,51301899245,"25,000.00",Surecare Residential Limited,EDUCATION,SEN Placements,Placements - Education,Independent School Placements
Cambridgeshire County Council,03-Jan-23,51301910466,"25,000.00",Surecare Residential Limited,EDUCATION,SEN Placements,Placements - Education,Independent School Placements
Cambridgeshire County Council,03-Jan-23,51301899015,"25,500.00",Acorn Care & Education Ltd,EDUCATION,SEN Placements,Placements - Education,Independent School Placements
Cambridgeshire County Council,03-Jan-23,51301899246,"27,500.00",Surecare Residential Limited,EDUCATION,SEN Placements,Placements - Education,Independent School Placements
Cambridgeshire County Council,03-Jan-23,51301899009,"27,500.00",Surecare Residential Limited,EDUCATION,SEN Placements,Placements - Education,Independent School Placements
Cambridgeshire County Council,03-Jan-23,51301899008,"27,500.00",Surecare Residential Limited,EDUCATION,SEN Placements,Placements - Education,Independent School Placements
Cambridgeshire County Council,03-Jan-23,51301910600,"28,682.08",Arbora Homes Limited,COMPANY,Highways Development Management,Section 278 Deposits,Developers Funds
Cambridgeshire County Council,03-Jan-23,51301900924,"29,677.80",MOTT MACDONALD LTD,TRADE SUPPLIER,GCP - Cambridge South East (A1307),GCP - Cambridge South East (A1307),Construction - External Professional Fees
Cambridgeshire County Council,03-Jan-23,51301898611,"29,855.00",AURORA MELDRETH & ORCHARD MANOR,EDUCATION,SEN Placements,Placements - Education,Independent School Placements
Cambridgeshire County Council,03-Jan-23,51301898590,"30,006.78",AURORA MELDRETH & ORCHARD MANOR,EDUCATION,SEN Placements,Placements - Education,Independent School Placements
Cambridgeshire County Council,03-Jan-23,51301898588,"30,006.99",AURORA MELDRETH & ORCHARD MANOR,EDUCATION,SEN Placements,Placements - Education,Independent School Placements
Cambridgeshire County Council,03-Jan-23,51301898581,"30,391.27",AURORA MELDRETH & ORCHARD MANOR,EDUCATION,SEN Placements,Placements - Education,Independent School Placements
Cambridgeshire County Council,03-Jan-23,51301899543,"30,540.00",Minshall Construction (UK) Ltd,COMPANY,County Farms Investment (Viability),Middle Farm,Construction - External Professional Fees
Cambridgeshire County Council,03-Jan-23,51301898953,"34,650.84",Team Q Maintenance Ltd,COMPANY,Building Maintenance,P22090505 Arbury Court Library CB4 2JQ,"New Construction, Conversion and Renovation"
Cambridgeshire County Council,03-Jan-23,51301898797,"37,488.00",Tile Hill Interim & Executive Ltd,COMPANY,P&C Executive Director,Executive Director - People & Communities,Agency Staff
Cambridgeshire County Council,03-Jan-23,51301906084,"46,946.70",WSP UK LTD T/A WSP INTEGRATED BUILDING SERVICES,TRADE SUPPLIER,GCP Greenway Development,GCP Greenway development,Construction - External Professional Fees
Cambridgeshire County Council,03-Jan-23,51301897673,"60,000.00",ATKINS LTD,COMPANY,GCP - Science Park to Waterbeach (A10 North Study),GCP - Science Park to Waterbeach (A10 North Study),Construction - External Professional Fees
Cambridgeshire County Council,03-Jan-23,51301908890,"66,291.00",G & S HUTCHINSON LTD,COMPANY,"School Condition, Maintenance & Suitability","School Condition, Maintenance & Suitability",Buildings - Roof
Cambridgeshire County Council,03-Jan-23,51301899257,"72,665.74",KISIMUL SCHOOL,CARE ESTABLISHMENT,SEN Placements,Placements - Education,Independent School Placements
Cambridgeshire County Council,03-Jan-23,51301910488,"127,888.31",OPUS LGSS (PEOPLE SOLUTIONS) LTD,TRADE SUPPLIER,Control Accounts,Suspense Account - General,Agency Staff
Cambridgeshire County Council,03-Jan-23,51301909056,"377,128.62",Jones Bros. Ruthin (Civil Engineering) Co. Ltd,COMPANY,MID - Kings Dyke,MID - Kings Dyke,Construction - External Professional Fees
Cambridgeshire County Council,03-Jan-23,51301909170,"380,485.82",KIER CONSTRUCTION,COMPANY,Duxford -  Fire Damage Rebuild,Duxford -  Fire Damage Rebuild,"New Construction, Conversion and Renovation"
Cambridgeshire County Council,03-Jan-23,51301910389,"491,833.26",EQUITIX EDUCATION (CAMBRIDGESHIRE) LIMITED,EDUCATION,Buildings and Capital,BSF New Projects / Follow On Waves,Building Repair and Maintenance
Cambridgeshire County Council,03-Jan-23,51301736019,"968,498.00",Cambridgeshire and Peterborough Combined Authority,OTHER PUBLIC BODIES,Financing items,Combined Authority,Agency Precepts and Levies
Cambridgeshire County Council,03-Jan-23,51301909240,"1,425,553.26",KIER CONSTRUCTION,COMPANY,Cambourne West,Cambourne West,"New Construction, Conversion and Renovation"
Cambridgeshire County Council,04-Jan-23,51301910851,"-2,460.86",SOCIAL CARE SOLUTIONS LTD,CARE ESTABLISHMENT,LD - Fenland Locality - Cost of Care,LD - Fenland  - Care,Supported Living
Cambridgeshire County Council,04-Jan-23,51301910851,"-2,460.86",SOCIAL CARE SOLUTIONS LTD,CARE ESTABLISHMENT,LD - Fenland Locality - Cost of Care,LD - Fenland  - Care,Supported Living
Cambridgeshire County Council,04-Jan-23,51301910851,"-2,460.86",SOCIAL CARE SOLUTIONS LTD,CARE ESTABLISHMENT,LD - Fenland Locality - Cost of Care,LD - Fenland  - Care,Supported Living
Cambridgeshire County Council,04-Jan-23,51301910851,"-2,460.86",SOCIAL CARE SOLUTIONS LTD,CARE ESTABLISHMENT,LD - Fenland Locality - Cost of Care,LD - Fenland  - Care,Supported Living
Cambridgeshire County Council,04-Jan-23,51301910851,"-2,460.86",SOCIAL CARE SOLUTIONS LTD,CARE ESTABLISHMENT,LD - Fenland Locality - Cost of Care,LD - Fenland  - Care,Supported Living
Cambridgeshire County Council,04-Jan-23,51301910851,"-2,460.86",SOCIAL CARE SOLUTIONS LTD,CARE ESTABLISHMENT,LD - Fenland Locality - Cost of Care,LD - Fenland  - Care,Supported Living
Cambridgeshire County Council,04-Jan-23,51301910851,"-2,460.86",SOCIAL CARE SOLUTIONS LTD,CARE ESTABLISHMENT,LD - Fenland Locality - Cost of Care,LD - Fenland  - Care,Supported Living
Cambridgeshire County Council,04-Jan-23,51301910851,"-2,460.86",SOCIAL CARE SOLUTIONS LTD,CARE ESTABLISHMENT,LD - Fenland Locality - Cost of Care,LD - Fenland  - Care,Supported Living
Cambridgeshire County Council,04-Jan-23,51301910851,"-2,460.86",SOCIAL CARE SOLUTIONS LTD,CARE ESTABLISHMENT,LD - Fenland Locality - Cost of Care,LD - Fenland  - Care,Supported Living
Cambridgeshire County Council,04-Jan-23,51301910851,"-2,460.86",SOCIAL CARE SOLUTIONS LTD,CARE ESTABLISHMENT,LD - Fenland Locality - Cost of Care,LD - Fenland  - Care,Supported Living
Cambridgeshire County Council,04-Jan-23,51301910851,"-2,460.86",SOCIAL CARE SOLUTIONS LTD,CARE ESTABLISHMENT,LD - Fenland Locality - Cost of Care,LD - Fenland  - Care,Supported Living
Cambridgeshire County Council,04-Jan-23,51301910851,"-2,460.86",SOCIAL CARE SOLUTIONS LTD,CARE ESTABLISHMENT,LD - Fenland Locality - Cost of Care,LD - Fenland  - Care,Supported Living
Cambridgeshire County Council,04-Jan-23,51301910851,"-2,460.86",SOCIAL CARE SOLUTIONS LTD,CARE ESTABLISHMENT,LD - Fenland Locality - Cost of Care,LD - Fenland  - Care,Supported Living
Cambridgeshire County Council,04-Jan-23,51301910851,"-2,460.86",SOCIAL CARE SOLUTIONS LTD,CARE ESTABLISHMENT,LD - Fenland Locality - Cost of Care,LD - Fenland  - Care,Supported Living
Cambridgeshire County Council,04-Jan-23,51301910851,"-2,460.86",SOCIAL CARE SOLUTIONS LTD,CARE ESTABLISHMENT,LD - Fenland Locality - Cost of Care,LD - Fenland  - Care,Supported Living
Cambridgeshire County Council,04-Jan-23,51301910851,"-2,460.86",SOCIAL CARE SOLUTIONS LTD,CARE ESTABLISHMENT,LD - Fenland Locality - Cost of Care,LD - Fenland  - Care,Supported Living
Cambridgeshire County Council,04-Jan-23,51301910851,"-2,460.86",SOCIAL CARE SOLUTIONS LTD,CARE ESTABLISHMENT,LD - Fenland Locality - Cost of Care,LD - Fenland  - Care,Supported Living
Cambridgeshire County Council,04-Jan-23,51301910851,"-2,460.86",SOCIAL CARE SOLUTIONS LTD,CARE ESTABLISHMENT,LD - Fenland Locality - Cost of Care,LD - Fenland  - Care,Supported Living
Cambridgeshire County Council,04-Jan-23,51301910851,"-2,460.86",SOCIAL CARE SOLUTIONS LTD,CARE ESTABLISHMENT,LD - Fenland Locality - Cost of Care,LD - Fenland  - Care,Supported Living
Cambridgeshire County Council,04-Jan-23,51301910842,"-2,382.07",SOCIAL CARE SOLUTIONS LTD,CARE ESTABLISHMENT,LD - Fenland Locality - Cost of Care,LD - Fenland  - Care,Supported Living
Cambridgeshire County Council,04-Jan-23,51301910842,"-2,382.07",SOCIAL CARE SOLUTIONS LTD,CARE ESTABLISHMENT,LD - Fenland Locality - Cost of Care,LD - Fenland  - Care,Supported Living
Cambridgeshire County Council,04-Jan-23,51301910842,"-2,382.07",SOCIAL CARE SOLUTIONS LTD,CARE ESTABLISHMENT,LD - Fenland Locality - Cost of Care,LD - Fenland  - Care,Supported Living
Cambridgeshire County Council,04-Jan-23,51301910842,"-2,382.07",SOCIAL CARE SOLUTIONS LTD,CARE ESTABLISHMENT,LD - Fenland Locality - Cost of Care,LD - Fenland  - Care,Supported Living
Cambridgeshire County Council,04-Jan-23,51301910842,"-2,382.07",SOCIAL CARE SOLUTIONS LTD,CARE ESTABLISHMENT,LD - Fenland Locality - Cost of Care,LD - Fenland  - Care,Supported Living
Cambridgeshire County Council,04-Jan-23,51301910842,"-2,382.07",SOCIAL CARE SOLUTIONS LTD,CARE ESTABLISHMENT,LD - Fenland Locality - Cost of Care,LD - Fenland  - Care,Supported Living
Cambridgeshire County Council,04-Jan-23,51301910842,"-2,382.07",SOCIAL CARE SOLUTIONS LTD,CARE ESTABLISHMENT,LD - Fenland Locality - Cost of Care,LD - Fenland  - Care,Supported Living
Cambridgeshire County Council,04-Jan-23,51301910842,"-2,382.07",SOCIAL CARE SOLUTIONS LTD,CARE ESTABLISHMENT,LD - Fenland Locality - Cost of Care,LD - Fenland  - Care,Supported Living
Cambridgeshire County Council,04-Jan-23,51301910842,"-2,382.07",SOCIAL CARE SOLUTIONS LTD,CARE ESTABLISHMENT,LD - Fenland Locality - Cost of Care,LD - Fenland  - Care,Supported Living
Cambridgeshire County Council,04-Jan-23,51301910842,"-2,382.07",SOCIAL CARE SOLUTIONS LTD,CARE ESTABLISHMENT,LD - Fenland Locality - Cost of Care,LD - Fenland  - Care,Supported Living
Cambridgeshire County Council,04-Jan-23,51301910842,"-2,382.07",SOCIAL CARE SOLUTIONS LTD,CARE ESTABLISHMENT,LD - Fenland Locality - Cost of Care,LD - Fenland  - Care,Supported Living
Cambridgeshire County Council,04-Jan-23,51301910842,"-2,382.07",SOCIAL CARE SOLUTIONS LTD,CARE ESTABLISHMENT,LD - Fenland Locality - Cost of Care,LD - Fenland  - Care,Supported Living
Cambridgeshire County Council,04-Jan-23,51301910842,"-2,382.07",SOCIAL CARE SOLUTIONS LTD,CARE ESTABLISHMENT,LD - Fenland Locality - Cost of Care,LD - Fenland  - Care,Supported Living
Cambridgeshire County Council,04-Jan-23,51301910842,"-2,382.07",SOCIAL CARE SOLUTIONS LTD,CARE ESTABLISHMENT,LD - Fenland Locality - Cost of Care,LD - Fenland  - Care,Supported Living
Cambridgeshire County Council,04-Jan-23,51301910842,"-2,382.07",SOCIAL CARE SOLUTIONS LTD,CARE ESTABLISHMENT,LD - Fenland Locality - Cost of Care,LD - Fenland  - Care,Supported Living
Cambridgeshire County Council,04-Jan-23,51301910842,"-2,382.07",SOCIAL CARE SOLUTIONS LTD,CARE ESTABLISHMENT,LD - Fenland Locality - Cost of Care,LD - Fenland  - Care,Supported Living
Cambridgeshire County Council,04-Jan-23,51301910842,"-2,382.07",SOCIAL CARE SOLUTIONS LTD,CARE ESTABLISHMENT,LD - Fenland Locality - Cost of Care,LD - Fenland  - Care,Supported Living
Cambridgeshire County Council,04-Jan-23,51301910842,"-2,382.07",SOCIAL CARE SOLUTIONS LTD,CARE ESTABLISHMENT,LD - Fenland Locality - Cost of Care,LD - Fenland  - Care,Supported Living
Cambridgeshire County Council,04-Jan-23,51301910842,"-2,382.07",SOCIAL CARE SOLUTIONS LTD,CARE ESTABLISHMENT,LD - Fenland Locality - Cost of Care,LD - Fenland  - Care,Supported Living
Cambridgeshire County Council,04-Jan-23,51301910842,"-2,382.07",SOCIAL CARE SOLUTIONS LTD,CARE ESTABLISHMENT,LD - Fenland Locality - Cost of Care,LD - Fenland  - Care,Supported Living
Cambridgeshire County Council,04-Jan-23,51301910842,"-2,382.07",SOCIAL CARE SOLUTIONS LTD,CARE ESTABLISHMENT,LD - Fenland Locality - Cost of Care,LD - Fenland  - Care,Supported Living
Cambridgeshire County Council,04-Jan-23,51301910842,"-2,382.07",SOCIAL CARE SOLUTIONS LTD,CARE ESTABLISHMENT,LD - Fenland Locality - Cost of Care,LD - Fenland  - Care,Supported Living
Cambridgeshire County Council,04-Jan-23,51301910842,"-2,382.07",SOCIAL CARE SOLUTIONS LTD,CARE ESTABLISHMENT,LD - Fenland Locality - Cost of Care,LD - Fenland  - Care,Supported Living
Cambridgeshire County Council,04-Jan-23,51301910842,"-2,382.07",SOCIAL CARE SOLUTIONS LTD,CARE ESTABLISHMENT,LD - Fenland Locality - Cost of Care,LD - Fenland  - Care,Supported Living
Cambridgeshire County Council,04-Jan-23,51301910842,"-2,382.07",SOCIAL CARE SOLUTIONS LTD,CARE ESTABLISHMENT,LD - Fenland Locality - Cost of Care,LD - Fenland  - Care,Supported Living
Cambridgeshire County Council,04-Jan-23,51301910842,"-2,382.07",SOCIAL CARE SOLUTIONS LTD,CARE ESTABLISHMENT,LD - Fenland Locality - Cost of Care,LD - Fenland  - Care,Supported Living
Cambridgeshire County Council,04-Jan-23,51301910842,"-2,382.07",SOCIAL CARE SOLUTIONS LTD,CARE ESTABLISHMENT,LD - Fenland Locality - Cost of Care,LD - Fenland  - Care,Supported Living
Cambridgeshire County Council,04-Jan-23,51301910842,"-2,382.07",SOCIAL CARE SOLUTIONS LTD,CARE ESTABLISHMENT,LD - Fenland Locality - Cost of Care,LD - Fenland  - Care,Supported Living
Cambridgeshire County Council,04-Jan-23,51301910842,"-2,382.07",SOCIAL CARE SOLUTIONS LTD,CARE ESTABLISHMENT,LD - Fenland Locality - Cost of Care,LD - Fenland  - Care,Supported Living
Cambridgeshire County Council,04-Jan-23,51301910842,"-2,382.07",SOCIAL CARE SOLUTIONS LTD,CARE ESTABLISHMENT,LD - Fenland Locality - Cost of Care,LD - Fenland  - Care,Supported Living
Cambridgeshire County Council,04-Jan-23,51301910842,"-2,382.07",SOCIAL CARE SOLUTIONS LTD,CARE ESTABLISHMENT,LD - Fenland Locality - Cost of Care,LD - Fenland  - Care,Supported Living
Cambridgeshire County Council,04-Jan-23,51301910842,"-2,382.07",SOCIAL CARE SOLUTIONS LTD,CARE ESTABLISHMENT,LD - Fenland Locality - Cost of Care,LD - Fenland  - Care,Supported Living
Cambridgeshire County Council,04-Jan-23,51301910842,"-2,382.07",SOCIAL CARE SOLUTIONS LTD,CARE ESTABLISHMENT,LD - Fenland Locality - Cost of Care,LD - Fenland  - Care,Supported Living
Cambridgeshire County Council,04-Jan-23,51301910842,"-2,382.07",SOCIAL CARE SOLUTIONS LTD,CARE ESTABLISHMENT,LD - Fenland Locality - Cost of Care,LD - Fenland  - Care,Supported Living
Cambridgeshire County Council,04-Jan-23,51301910842,"-2,382.07",SOCIAL CARE SOLUTIONS LTD,CARE ESTABLISHMENT,LD - Fenland Locality - Cost of Care,LD - Fenland  - Care,Supported Living
Cambridgeshire County Council,04-Jan-23,51301910842,"-2,382.07",SOCIAL CARE SOLUTIONS LTD,CARE ESTABLISHMENT,LD - Fenland Locality - Cost of Care,LD - Fenland  - Care,Supported Living
Cambridgeshire County Council,04-Jan-23,51301910842,"-2,382.07",SOCIAL CARE SOLUTIONS LTD,CARE ESTABLISHMENT,LD - Fenland Locality - Cost of Care,LD - Fenland  - Care,Supported Living
Cambridgeshire County Council,04-Jan-23,51301910842,"-2,382.07",SOCIAL CARE SOLUTIONS LTD,CARE ESTABLISHMENT,LD - Fenland Locality - Cost of Care,LD - Fenland  - Care,Supported Living
Cambridgeshire County Council,04-Jan-23,51301910842,"-2,382.07",SOCIAL CARE SOLUTIONS LTD,CARE ESTABLISHMENT,LD - Fenland Locality - Cost of Care,LD - Fenland  - Care,Supported Living
Cambridgeshire County Council,04-Jan-23,51301910858,"-2,137.91",SOCIAL CARE SOLUTIONS LTD,CARE ESTABLISHMENT,LD - Fenland Locality - Cost of Care,LD - Fenland  - Care,Supported Living
Cambridgeshire County Council,04-Jan-23,51301910858,"-2,137.91",SOCIAL CARE SOLUTIONS LTD,CARE ESTABLISHMENT,LD - Fenland Locality - Cost of Care,LD - Fenland  - Care,Supported Living
Cambridgeshire County Council,04-Jan-23,51301910858,"-2,137.91",SOCIAL CARE SOLUTIONS LTD,CARE ESTABLISHMENT,LD - Fenland Locality - Cost of Care,LD - Fenland  - Care,Supported Living
Cambridgeshire County Council,04-Jan-23,51301910858,"-2,137.91",SOCIAL CARE SOLUTIONS LTD,CARE ESTABLISHMENT,LD - Fenland Locality - Cost of Care,LD - Fenland  - Care,Supported Living
Cambridgeshire County Council,04-Jan-23,51301910858,"-2,137.91",SOCIAL CARE SOLUTIONS LTD,CARE ESTABLISHMENT,LD - Fenland Locality - Cost of Care,LD - Fenland  - Care,Supported Living
Cambridgeshire County Council,04-Jan-23,51301910858,"-2,137.91",SOCIAL CARE SOLUTIONS LTD,CARE ESTABLISHMENT,LD - Fenland Locality - Cost of Care,LD - Fenland  - Care,Supported Living
Cambridgeshire County Council,04-Jan-23,51301910858,"-2,137.91",SOCIAL CARE SOLUTIONS LTD,CARE ESTABLISHMENT,LD - Fenland Locality - Cost of Care,LD - Fenland  - Care,Supported Living
Cambridgeshire County Council,04-Jan-23,51301910858,"-2,137.91",SOCIAL CARE SOLUTIONS LTD,CARE ESTABLISHMENT,LD - Fenland Locality - Cost of Care,LD - Fenland  - Care,Supported Living
Cambridgeshire County Council,04-Jan-23,51301910858,"-2,137.91",SOCIAL CARE SOLUTIONS LTD,CARE ESTABLISHMENT,LD - Fenland Locality - Cost of Care,LD - Fenland  - Care,Supported Living
Cambridgeshire County Council,04-Jan-23,51301910858,"-2,137.91",SOCIAL CARE SOLUTIONS LTD,CARE ESTABLISHMENT,LD - Fenland Locality - Cost of Care,LD - Fenland  - Care,Supported Living
Cambridgeshire County Council,04-Jan-23,51301910858,"-2,137.91",SOCIAL CARE SOLUTIONS LTD,CARE ESTABLISHMENT,LD - Fenland Locality - Cost of Care,LD - Fenland  - Care,Supported Living
Cambridgeshire County Council,04-Jan-23,51301910858,"-2,137.91",SOCIAL CARE SOLUTIONS LTD,CARE ESTABLISHMENT,LD - Fenland Locality - Cost of Care,LD - Fenland  - Care,Supported Living
Cambridgeshire County Council,04-Jan-23,51301910858,"-2,137.91",SOCIAL CARE SOLUTIONS LTD,CARE ESTABLISHMENT,LD - Fenland Locality - Cost of Care,LD - Fenland  - Care,Supported Living
Cambridgeshire County Council,04-Jan-23,51301910858,"-2,137.91",SOCIAL CARE SOLUTIONS LTD,CARE ESTABLISHMENT,LD - Fenland Locality - Cost of Care,LD - Fenland  - Care,Supported Living
Cambridgeshire County Council,04-Jan-23,51301910858,"-2,137.91",SOCIAL CARE SOLUTIONS LTD,CARE ESTABLISHMENT,LD - Fenland Locality - Cost of Care,LD - Fenland  - Care,Supported Living
Cambridgeshire County Council,04-Jan-23,51301910858,"-2,137.91",SOCIAL CARE SOLUTIONS LTD,CARE ESTABLISHMENT,LD - Fenland Locality - Cost of Care,LD - Fenland  - Care,Supported Living
Cambridgeshire County Council,04-Jan-23,51301910858,"-2,137.91",SOCIAL CARE SOLUTIONS LTD,CARE ESTABLISHMENT,LD - Fenland Locality - Cost of Care,LD - Fenland  - Care,Supported Living
Cambridgeshire County Council,04-Jan-23,51301910858,"-2,137.91",SOCIAL CARE SOLUTIONS LTD,CARE ESTABLISHMENT,LD - Fenland Locality - Cost of Care,LD - Fenland  - Care,Supported Living
Cambridgeshire County Council,04-Jan-23,51301910858,"-2,137.91",SOCIAL CARE SOLUTIONS LTD,CARE ESTABLISHMENT,LD - Fenland Locality - Cost of Care,LD - Fenland  - Care,Supported Living
Cambridgeshire County Council,04-Jan-23,51301910858,"-2,137.91",SOCIAL CARE SOLUTIONS LTD,CARE ESTABLISHMENT,LD - Fenland Locality - Cost of Care,LD - Fenland  - Care,Supported Living
Cambridgeshire County Council,04-Jan-23,51301910858,"-2,137.91",SOCIAL CARE SOLUTIONS LTD,CARE ESTABLISHMENT,LD - Fenland Locality - Cost of Care,LD - Fenland  - Care,Supported Living
Cambridgeshire County Council,04-Jan-23,51301910858,"-2,137.91",SOCIAL CARE SOLUTIONS LTD,CARE ESTABLISHMENT,LD - Fenland Locality - Cost of Care,LD - Fenland  - Care,Supported Living
Cambridgeshire County Council,04-Jan-23,51301910858,"-2,137.91",SOCIAL CARE SOLUTIONS LTD,CARE ESTABLISHMENT,LD - Fenland Locality - Cost of Care,LD - Fenland  - Care,Supported Living
Cambridgeshire County Council,04-Jan-23,51301910858,"-2,137.91",SOCIAL CARE SOLUTIONS LTD,CARE ESTABLISHMENT,LD - Fenland Locality - Cost of Care,LD - Fenland  - Care,Supported Living
Cambridgeshire County Council,04-Jan-23,51301910858,"-2,137.91",SOCIAL CARE SOLUTIONS LTD,CARE ESTABLISHMENT,LD - Fenland Locality - Cost of Care,LD - Fenland  - Care,Supported Living
Cambridgeshire County Council,04-Jan-23,51301910858,"-2,137.91",SOCIAL CARE SOLUTIONS LTD,CARE ESTABLISHMENT,LD - Fenland Locality - Cost of Care,LD - Fenland  - Care,Supported Living
Cambridgeshire County Council,04-Jan-23,51301910858,"-2,137.91",SOCIAL CARE SOLUTIONS LTD,CARE ESTABLISHMENT,LD - Fenland Locality - Cost of Care,LD - Fenland  - Care,Supported Living
Cambridgeshire County Council,04-Jan-23,51301910858,"-2,137.91",SOCIAL CARE SOLUTIONS LTD,CARE ESTABLISHMENT,LD - Fenland Locality - Cost of Care,LD - Fenland  - Care,Supported Living
Cambridgeshire County Council,04-Jan-23,51301910858,"-2,137.91",SOCIAL CARE SOLUTIONS LTD,CARE ESTABLISHMENT,LD - Fenland Locality - Cost of Care,LD - Fenland  - Care,Supported Living
Cambridgeshire County Council,04-Jan-23,51301910858,"-2,137.91",SOCIAL CARE SOLUTIONS LTD,CARE ESTABLISHMENT,LD - Fenland Locality - Cost of Care,LD - Fenland  - Care,Supported Living
Cambridgeshire County Council,04-Jan-23,51301910858,"-2,137.91",SOCIAL CARE SOLUTIONS LTD,CARE ESTABLISHMENT,LD - Fenland Locality - Cost of Care,LD - Fenland  - Care,Supported Living
Cambridgeshire County Council,04-Jan-23,51301910858,"-2,137.91",SOCIAL CARE SOLUTIONS LTD,CARE ESTABLISHMENT,LD - Fenland Locality - Cost of Care,LD - Fenland  - Care,Supported Living
Cambridgeshire County Council,04-Jan-23,51301910858,"-2,137.91",SOCIAL CARE SOLUTIONS LTD,CARE ESTABLISHMENT,LD - Fenland Locality - Cost of Care,LD - Fenland  - Care,Supported Living
Cambridgeshire County Council,04-Jan-23,51301910858,"-2,137.91",SOCIAL CARE SOLUTIONS LTD,CARE ESTABLISHMENT,LD - Fenland Locality - Cost of Care,LD - Fenland  - Care,Supported Living
Cambridgeshire County Council,04-Jan-23,51301910858,"-2,137.91",SOCIAL CARE SOLUTIONS LTD,CARE ESTABLISHMENT,LD - Fenland Locality - Cost of Care,LD - Fenland  - Care,Supported Living
Cambridgeshire County Council,04-Jan-23,51301910858,"-2,137.91",SOCIAL CARE SOLUTIONS LTD,CARE ESTABLISHMENT,LD - Fenland Locality - Cost of Care,LD - Fenland  - Care,Supported Living
Cambridgeshire County Council,04-Jan-23,51301910858,"-2,137.91",SOCIAL CARE SOLUTIONS LTD,CARE ESTABLISHMENT,LD - Fenland Locality - Cost of Care,LD - Fenland  - Care,Supported Living
Cambridgeshire County Council,04-Jan-23,51301910858,"-2,137.91",SOCIAL CARE SOLUTIONS LTD,CARE ESTABLISHMENT,LD - Fenland Locality - Cost of Care,LD - Fenland  - Care,Supported Living
Cambridgeshire County Council,04-Jan-23,51301910858,"-2,137.91",SOCIAL CARE SOLUTIONS LTD,CARE ESTABLISHMENT,LD - Fenland Locality - Cost of Care,LD - Fenland  - Care,Supported Living
Cambridgeshire County Council,04-Jan-23,51301910851,"-1,722.59",SOCIAL CARE SOLUTIONS LTD,CARE ESTABLISHMENT,LD - Fenland Locality - Cost of Care,LD - Fenland  - Care,Supported Living
Cambridgeshire County Council,04-Jan-23,51301910851,"-1,722.59",SOCIAL CARE SOLUTIONS LTD,CARE ESTABLISHMENT,LD - Fenland Locality - Cost of Care,LD - Fenland  - Care,Supported Living
Cambridgeshire County Council,04-Jan-23,51301910851,"-1,722.59",SOCIAL CARE SOLUTIONS LTD,CARE ESTABLISHMENT,LD - Fenland Locality - Cost of Care,LD - Fenland  - Care,Supported Living
Cambridgeshire County Council,04-Jan-23,51301910851,"-1,722.59",SOCIAL CARE SOLUTIONS LTD,CARE ESTABLISHMENT,LD - Fenland Locality - Cost of Care,LD - Fenland  - Care,Supported Living
Cambridgeshire County Council,04-Jan-23,51301910851,"-1,722.59",SOCIAL CARE SOLUTIONS LTD,CARE ESTABLISHMENT,LD - Fenland Locality - Cost of Care,LD - Fenland  - Care,Supported Living
Cambridgeshire County Council,04-Jan-23,51301910851,"-1,722.59",SOCIAL CARE SOLUTIONS LTD,CARE ESTABLISHMENT,LD - Fenland Locality - Cost of Care,LD - Fenland  - Care,Supported Living
Cambridgeshire County Council,04-Jan-23,51301910851,"-1,722.59",SOCIAL CARE SOLUTIONS LTD,CARE ESTABLISHMENT,LD - Fenland Locality - Cost of Care,LD - Fenland  - Care,Supported Living
Cambridgeshire County Council,04-Jan-23,51301910851,"-1,722.59",SOCIAL CARE SOLUTIONS LTD,CARE ESTABLISHMENT,LD - Fenland Locality - Cost of Care,LD - Fenland  - Care,Supported Living
Cambridgeshire County Council,04-Jan-23,51301910851,"-1,722.59",SOCIAL CARE SOLUTIONS LTD,CARE ESTABLISHMENT,LD - Fenland Locality - Cost of Care,LD - Fenland  - Care,Supported Living
Cambridgeshire County Council,04-Jan-23,51301910851,"-1,722.59",SOCIAL CARE SOLUTIONS LTD,CARE ESTABLISHMENT,LD - Fenland Locality - Cost of Care,LD - Fenland  - Care,Supported Living
Cambridgeshire County Council,04-Jan-23,51301910851,"-1,722.59",SOCIAL CARE SOLUTIONS LTD,CARE ESTABLISHMENT,LD - Fenland Locality - Cost of Care,LD - Fenland  - Care,Supported Living
Cambridgeshire County Council,04-Jan-23,51301910851,"-1,722.59",SOCIAL CARE SOLUTIONS LTD,CARE ESTABLISHMENT,LD - Fenland Locality - Cost of Care,LD - Fenland  - Care,Supported Living
Cambridgeshire County Council,04-Jan-23,51301910851,"-1,722.59",SOCIAL CARE SOLUTIONS LTD,CARE ESTABLISHMENT,LD - Fenland Locality - Cost of Care,LD - Fenland  - Care,Supported Living
Cambridgeshire County Council,04-Jan-23,51301910851,"-1,722.59",SOCIAL CARE SOLUTIONS LTD,CARE ESTABLISHMENT,LD - Fenland Locality - Cost of Care,LD - Fenland  - Care,Supported Living
Cambridgeshire County Council,04-Jan-23,51301910851,"-1,722.59",SOCIAL CARE SOLUTIONS LTD,CARE ESTABLISHMENT,LD - Fenland Locality - Cost of Care,LD - Fenland  - Care,Supported Living
Cambridgeshire County Council,04-Jan-23,51301910851,"-1,722.59",SOCIAL CARE SOLUTIONS LTD,CARE ESTABLISHMENT,LD - Fenland Locality - Cost of Care,LD - Fenland  - Care,Supported Living
Cambridgeshire County Council,04-Jan-23,51301910851,"-1,722.59",SOCIAL CARE SOLUTIONS LTD,CARE ESTABLISHMENT,LD - Fenland Locality - Cost of Care,LD - Fenland  - Care,Supported Living
Cambridgeshire County Council,04-Jan-23,51301910851,"-1,722.59",SOCIAL CARE SOLUTIONS LTD,CARE ESTABLISHMENT,LD - Fenland Locality - Cost of Care,LD - Fenland  - Care,Supported Living
Cambridgeshire County Council,04-Jan-23,51301910851,"-1,722.59",SOCIAL CARE SOLUTIONS LTD,CARE ESTABLISHMENT,LD - Fenland Locality - Cost of Care,LD - Fenland  - Care,Supported Living
Cambridgeshire County Council,04-Jan-23,51301910838,"-1,669.52",SOCIAL CARE SOLUTIONS LTD,CARE ESTABLISHMENT,LD - East Locality - Cost of Care,LD - East Cambs - Care,Supported Living
Cambridgeshire County Council,04-Jan-23,51301910838,"-1,669.52",SOCIAL CARE SOLUTIONS LTD,CARE ESTABLISHMENT,LD - East Locality - Cost of Care,LD - East Cambs - Care,Supported Living
Cambridgeshire County Council,04-Jan-23,51301910838,"-1,669.52",SOCIAL CARE SOLUTIONS LTD,CARE ESTABLISHMENT,LD - East Locality - Cost of Care,LD - East Cambs - Care,Supported Living
Cambridgeshire County Council,04-Jan-23,51301910838,"-1,669.52",SOCIAL CARE SOLUTIONS LTD,CARE ESTABLISHMENT,LD - East Locality - Cost of Care,LD - East Cambs - Care,Supported Living
Cambridgeshire County Council,04-Jan-23,51301910838,"-1,669.52",SOCIAL CARE SOLUTIONS LTD,CARE ESTABLISHMENT,LD - East Locality - Cost of Care,LD - East Cambs - Care,Supported Living
Cambridgeshire County Council,04-Jan-23,51301910838,"-1,669.52",SOCIAL CARE SOLUTIONS LTD,CARE ESTABLISHMENT,LD - East Locality - Cost of Care,LD - East Cambs - Care,Supported Living
Cambridgeshire County Council,04-Jan-23,51301910838,"-1,669.52",SOCIAL CARE SOLUTIONS LTD,CARE ESTABLISHMENT,LD - East Locality - Cost of Care,LD - East Cambs - Care,Supported Living
Cambridgeshire County Council,04-Jan-23,51301910838,"-1,669.52",SOCIAL CARE SOLUTIONS LTD,CARE ESTABLISHMENT,LD - East Locality - Cost of Care,LD - East Cambs - Care,Supported Living
Cambridgeshire County Council,04-Jan-23,51301910838,"-1,669.52",SOCIAL CARE SOLUTIONS LTD,CARE ESTABLISHMENT,LD - East Locality - Cost of Care,LD - East Cambs - Care,Supported Living
Cambridgeshire County Council,04-Jan-23,51301910838,"-1,669.52",SOCIAL CARE SOLUTIONS LTD,CARE ESTABLISHMENT,LD - East Locality - Cost of Care,LD - East Cambs - Care,Supported Living
Cambridgeshire County Council,04-Jan-23,51301910838,"-1,669.52",SOCIAL CARE SOLUTIONS LTD,CARE ESTABLISHMENT,LD - East Locality - Cost of Care,LD - East Cambs - Care,Supported Living
Cambridgeshire County Council,04-Jan-23,51301910838,"-1,669.52",SOCIAL CARE SOLUTIONS LTD,CARE ESTABLISHMENT,LD - East Locality - Cost of Care,LD - East Cambs - Care,Supported Living
Cambridgeshire County Council,04-Jan-23,51301910838,"-1,669.52",SOCIAL CARE SOLUTIONS LTD,CARE ESTABLISHMENT,LD - East Locality - Cost of Care,LD - East Cambs - Care,Supported Living
Cambridgeshire County Council,04-Jan-23,51301910838,"-1,669.52",SOCIAL CARE SOLUTIONS LTD,CARE ESTABLISHMENT,LD - East Locality - Cost of Care,LD - East Cambs - Care,Supported Living
Cambridgeshire County Council,04-Jan-23,51301910838,"-1,669.52",SOCIAL CARE SOLUTIONS LTD,CARE ESTABLISHMENT,LD - East Locality - Cost of Care,LD - East Cambs - Care,Supported Living
Cambridgeshire County Council,04-Jan-23,51301910838,"-1,669.52",SOCIAL CARE SOLUTIONS LTD,CARE ESTABLISHMENT,LD - East Locality - Cost of Care,LD - East Cambs - Care,Supported Living
Cambridgeshire County Council,04-Jan-23,51301910838,"-1,669.52",SOCIAL CARE SOLUTIONS LTD,CARE ESTABLISHMENT,LD - East Locality - Cost of Care,LD - East Cambs - Care,Supported Living
Cambridgeshire County Council,04-Jan-23,51301910838,"-1,669.52",SOCIAL CARE SOLUTIONS LTD,CARE ESTABLISHMENT,LD - East Locality - Cost of Care,LD - East Cambs - Care,Supported Living
Cambridgeshire County Council,04-Jan-23,51301910838,"-1,669.52",SOCIAL CARE SOLUTIONS LTD,CARE ESTABLISHMENT,LD - East Locality - Cost of Care,LD - East Cambs - Care,Supported Living
Cambridgeshire County Council,04-Jan-23,51301910838,"-1,669.52",SOCIAL CARE SOLUTIONS LTD,CARE ESTABLISHMENT,LD - East Locality - Cost of Care,LD - East Cambs - Care,Supported Living
Cambridgeshire County Council,04-Jan-23,51301910838,"-1,669.52",SOCIAL CARE SOLUTIONS LTD,CARE ESTABLISHMENT,LD - East Locality - Cost of Care,LD - East Cambs - Care,Supported Living
Cambridgeshire County Council,04-Jan-23,51301910838,"-1,669.52",SOCIAL CARE SOLUTIONS LTD,CARE ESTABLISHMENT,LD - East Locality - Cost of Care,LD - East Cambs - Care,Supported Living
Cambridgeshire County Council,04-Jan-23,51301910838,"-1,669.52",SOCIAL CARE SOLUTIONS LTD,CARE ESTABLISHMENT,LD - East Locality - Cost of Care,LD - East Cambs - Care,Supported Living
Cambridgeshire County Council,04-Jan-23,51301910838,"-1,669.52",SOCIAL CARE SOLUTIONS LTD,CARE ESTABLISHMENT,LD - East Locality - Cost of Care,LD - East Cambs - Care,Supported Living
Cambridgeshire County Council,04-Jan-23,51301910838,"-1,669.52",SOCIAL CARE SOLUTIONS LTD,CARE ESTABLISHMENT,LD - East Locality - Cost of Care,LD - East Cambs - Care,Supported Living
Cambridgeshire County Council,04-Jan-23,51301910838,"-1,669.52",SOCIAL CARE SOLUTIONS LTD,CARE ESTABLISHMENT,LD - East Locality - Cost of Care,LD - East Cambs - Care,Supported Living
Cambridgeshire County Council,04-Jan-23,51301910838,"-1,669.52",SOCIAL CARE SOLUTIONS LTD,CARE ESTABLISHMENT,LD - East Locality - Cost of Care,LD - East Cambs - Care,Supported Living
Cambridgeshire County Council,04-Jan-23,51301910838,"-1,669.52",SOCIAL CARE SOLUTIONS LTD,CARE ESTABLISHMENT,LD - East Locality - Cost of Care,LD - East Cambs - Care,Supported Living
Cambridgeshire County Council,04-Jan-23,51301910838,"-1,669.52",SOCIAL CARE SOLUTIONS LTD,CARE ESTABLISHMENT,LD - East Locality - Cost of Care,LD - East Cambs - Care,Supported Living
Cambridgeshire County Council,04-Jan-23,51301910838,"-1,669.52",SOCIAL CARE SOLUTIONS LTD,CARE ESTABLISHMENT,LD - East Locality - Cost of Care,LD - East Cambs - Care,Supported Living
Cambridgeshire County Council,04-Jan-23,51301910838,"-1,669.52",SOCIAL CARE SOLUTIONS LTD,CARE ESTABLISHMENT,LD - East Locality - Cost of Care,LD - East Cambs - Care,Supported Living
Cambridgeshire County Council,04-Jan-23,51301910838,"-1,669.52",SOCIAL CARE SOLUTIONS LTD,CARE ESTABLISHMENT,LD - East Locality - Cost of Care,LD - East Cambs - Care,Supported Living
Cambridgeshire County Council,04-Jan-23,51301910838,"-1,669.52",SOCIAL CARE SOLUTIONS LTD,CARE ESTABLISHMENT,LD - East Locality - Cost of Care,LD - East Cambs - Care,Supported Living
Cambridgeshire County Council,04-Jan-23,51301910838,"-1,669.52",SOCIAL CARE SOLUTIONS LTD,CARE ESTABLISHMENT,LD - East Locality - Cost of Care,LD - East Cambs - Care,Supported Living
Cambridgeshire County Council,04-Jan-23,51301910838,"-1,669.52",SOCIAL CARE SOLUTIONS LTD,CARE ESTABLISHMENT,LD - East Locality - Cost of Care,LD - East Cambs - Care,Supported Living
Cambridgeshire County Council,04-Jan-23,51301910838,"-1,669.52",SOCIAL CARE SOLUTIONS LTD,CARE ESTABLISHMENT,LD - East Locality - Cost of Care,LD - East Cambs - Care,Supported Living
Cambridgeshire County Council,04-Jan-23,51301910838,"-1,669.52",SOCIAL CARE SOLUTIONS LTD,CARE ESTABLISHMENT,LD - East Locality - Cost of Care,LD - East Cambs - Care,Supported Living
Cambridgeshire County Council,04-Jan-23,51301910838,"-1,669.52",SOCIAL CARE SOLUTIONS LTD,CARE ESTABLISHMENT,LD - East Locality - Cost of Care,LD - East Cambs - Care,Supported Living
Cambridgeshire County Council,04-Jan-23,51301910838,"-1,669.52",SOCIAL CARE SOLUTIONS LTD,CARE ESTABLISHMENT,LD - East Locality - Cost of Care,LD - East Cambs - Care,Supported Living
Cambridgeshire County Council,04-Jan-23,51301910859,"-1,638.77",SOCIAL CARE SOLUTIONS LTD,CARE ESTABLISHMENT,OPPD - Cost of Care - Fenland - Under 65,OPPD - Under 65 - Fenland,Supported Living
Cambridgeshire County Council,04-Jan-23,51301910859,"-1,638.77",SOCIAL CARE SOLUTIONS LTD,CARE ESTABLISHMENT,OPPD - Cost of Care - Fenland - Under 65,OPPD - Under 65 - Fenland,Supported Living
Cambridgeshire County Council,04-Jan-23,51301910859,"-1,638.77",SOCIAL CARE SOLUTIONS LTD,CARE ESTABLISHMENT,OPPD - Cost of Care - Fenland - Under 65,OPPD - Under 65 - Fenland,Supported Living
Cambridgeshire County Council,04-Jan-23,51301910859,"-1,638.77",SOCIAL CARE SOLUTIONS LTD,CARE ESTABLISHMENT,OPPD - Cost of Care - Fenland - Under 65,OPPD - Under 65 - Fenland,Supported Living
Cambridgeshire County Council,04-Jan-23,51301910859,"-1,638.77",SOCIAL CARE SOLUTIONS LTD,CARE ESTABLISHMENT,OPPD - Cost of Care - Fenland - Under 65,OPPD - Under 65 - Fenland,Supported Living
Cambridgeshire County Council,04-Jan-23,51301910859,"-1,638.77",SOCIAL CARE SOLUTIONS LTD,CARE ESTABLISHMENT,OPPD - Cost of Care - Fenland - Under 65,OPPD - Under 65 - Fenland,Supported Living
Cambridgeshire County Council,04-Jan-23,51301910859,"-1,638.77",SOCIAL CARE SOLUTIONS LTD,CARE ESTABLISHMENT,OPPD - Cost of Care - Fenland - Under 65,OPPD - Under 65 - Fenland,Supported Living
Cambridgeshire County Council,04-Jan-23,51301910859,"-1,638.77",SOCIAL CARE SOLUTIONS LTD,CARE ESTABLISHMENT,OPPD - Cost of Care - Fenland - Under 65,OPPD - Under 65 - Fenland,Supported Living
Cambridgeshire County Council,04-Jan-23,51301910859,"-1,638.77",SOCIAL CARE SOLUTIONS LTD,CARE ESTABLISHMENT,OPPD - Cost of Care - Fenland - Under 65,OPPD - Under 65 - Fenland,Supported Living
Cambridgeshire County Council,04-Jan-23,51301910859,"-1,638.77",SOCIAL CARE SOLUTIONS LTD,CARE ESTABLISHMENT,OPPD - Cost of Care - Fenland - Under 65,OPPD - Under 65 - Fenland,Supported Living
Cambridgeshire County Council,04-Jan-23,51301910859,"-1,638.77",SOCIAL CARE SOLUTIONS LTD,CARE ESTABLISHMENT,OPPD - Cost of Care - Fenland - Under 65,OPPD - Under 65 - Fenland,Supported Living
Cambridgeshire County Council,04-Jan-23,51301910859,"-1,638.77",SOCIAL CARE SOLUTIONS LTD,CARE ESTABLISHMENT,OPPD - Cost of Care - Fenland - Under 65,OPPD - Under 65 - Fenland,Supported Living
Cambridgeshire County Council,04-Jan-23,51301910859,"-1,638.77",SOCIAL CARE SOLUTIONS LTD,CARE ESTABLISHMENT,OPPD - Cost of Care - Fenland - Under 65,OPPD - Under 65 - Fenland,Supported Living
Cambridgeshire County Council,04-Jan-23,51301910859,"-1,638.77",SOCIAL CARE SOLUTIONS LTD,CARE ESTABLISHMENT,OPPD - Cost of Care - Fenland - Under 65,OPPD - Under 65 - Fenland,Supported Living
Cambridgeshire County Council,04-Jan-23,51301910859,"-1,638.77",SOCIAL CARE SOLUTIONS LTD,CARE ESTABLISHMENT,OPPD - Cost of Care - Fenland - Under 65,OPPD - Under 65 - Fenland,Supported Living
Cambridgeshire County Council,04-Jan-23,51301910859,"-1,638.77",SOCIAL CARE SOLUTIONS LTD,CARE ESTABLISHMENT,OPPD - Cost of Care - Fenland - Under 65,OPPD - Under 65 - Fenland,Supported Living
Cambridgeshire County Council,04-Jan-23,51301910859,"-1,638.77",SOCIAL CARE SOLUTIONS LTD,CARE ESTABLISHMENT,OPPD - Cost of Care - Fenland - Under 65,OPPD - Under 65 - Fenland,Supported Living
Cambridgeshire County Council,04-Jan-23,51301910859,"-1,638.77",SOCIAL CARE SOLUTIONS LTD,CARE ESTABLISHMENT,OPPD - Cost of Care - Fenland - Under 65,OPPD - Under 65 - Fenland,Supported Living
Cambridgeshire County Council,04-Jan-23,51301910859,"-1,638.77",SOCIAL CARE SOLUTIONS LTD,CARE ESTABLISHMENT,OPPD - Cost of Care - Fenland - Under 65,OPPD - Under 65 - Fenland,Supported Living
Cambridgeshire County Council,04-Jan-23,51301910859,"-1,638.77",SOCIAL CARE SOLUTIONS LTD,CARE ESTABLISHMENT,OPPD - Cost of Care - Fenland - Under 65,OPPD - Under 65 - Fenland,Supported Living
Cambridgeshire County Council,04-Jan-23,51301910859,"-1,638.77",SOCIAL CARE SOLUTIONS LTD,CARE ESTABLISHMENT,OPPD - Cost of Care - Fenland - Under 65,OPPD - Under 65 - Fenland,Supported Living
Cambridgeshire County Council,04-Jan-23,51301910859,"-1,638.77",SOCIAL CARE SOLUTIONS LTD,CARE ESTABLISHMENT,OPPD - Cost of Care - Fenland - Under 65,OPPD - Under 65 - Fenland,Supported Living
Cambridgeshire County Council,04-Jan-23,51301910859,"-1,638.77",SOCIAL CARE SOLUTIONS LTD,CARE ESTABLISHMENT,OPPD - Cost of Care - Fenland - Under 65,OPPD - Under 65 - Fenland,Supported Living
Cambridgeshire County Council,04-Jan-23,51301910859,"-1,638.77",SOCIAL CARE SOLUTIONS LTD,CARE ESTABLISHMENT,OPPD - Cost of Care - Fenland - Under 65,OPPD - Under 65 - Fenland,Supported Living
Cambridgeshire County Council,04-Jan-23,51301910859,"-1,638.77",SOCIAL CARE SOLUTIONS LTD,CARE ESTABLISHMENT,OPPD - Cost of Care - Fenland - Under 65,OPPD - Under 65 - Fenland,Supported Living
Cambridgeshire County Council,04-Jan-23,51301910859,"-1,638.77",SOCIAL CARE SOLUTIONS LTD,CARE ESTABLISHMENT,OPPD - Cost of Care - Fenland - Under 65,OPPD - Under 65 - Fenland,Supported Living
Cambridgeshire County Council,04-Jan-23,51301910859,"-1,638.77",SOCIAL CARE SOLUTIONS LTD,CARE ESTABLISHMENT,OPPD - Cost of Care - Fenland - Under 65,OPPD - Under 65 - Fenland,Supported Living
Cambridgeshire County Council,04-Jan-23,51301910859,"-1,638.77",SOCIAL CARE SOLUTIONS LTD,CARE ESTABLISHMENT,OPPD - Cost of Care - Fenland - Under 65,OPPD - Under 65 - Fenland,Supported Living
Cambridgeshire County Council,04-Jan-23,51301910859,"-1,638.77",SOCIAL CARE SOLUTIONS LTD,CARE ESTABLISHMENT,OPPD - Cost of Care - Fenland - Under 65,OPPD - Under 65 - Fenland,Supported Living
Cambridgeshire County Council,04-Jan-23,51301910859,"-1,638.77",SOCIAL CARE SOLUTIONS LTD,CARE ESTABLISHMENT,OPPD - Cost of Care - Fenland - Under 65,OPPD - Under 65 - Fenland,Supported Living
Cambridgeshire County Council,04-Jan-23,51301910859,"-1,638.77",SOCIAL CARE SOLUTIONS LTD,CARE ESTABLISHMENT,OPPD - Cost of Care - Fenland - Under 65,OPPD - Under 65 - Fenland,Supported Living
Cambridgeshire County Council,04-Jan-23,51301910859,"-1,638.77",SOCIAL CARE SOLUTIONS LTD,CARE ESTABLISHMENT,OPPD - Cost of Care - Fenland - Under 65,OPPD - Under 65 - Fenland,Supported Living
Cambridgeshire County Council,04-Jan-23,51301910859,"-1,638.77",SOCIAL CARE SOLUTIONS LTD,CARE ESTABLISHMENT,OPPD - Cost of Care - Fenland - Under 65,OPPD - Under 65 - Fenland,Supported Living
Cambridgeshire County Council,04-Jan-23,51301910859,"-1,638.77",SOCIAL CARE SOLUTIONS LTD,CARE ESTABLISHMENT,OPPD - Cost of Care - Fenland - Under 65,OPPD - Under 65 - Fenland,Supported Living
Cambridgeshire County Council,04-Jan-23,51301910859,"-1,638.77",SOCIAL CARE SOLUTIONS LTD,CARE ESTABLISHMENT,OPPD - Cost of Care - Fenland - Under 65,OPPD - Under 65 - Fenland,Supported Living
Cambridgeshire County Council,04-Jan-23,51301910859,"-1,638.77",SOCIAL CARE SOLUTIONS LTD,CARE ESTABLISHMENT,OPPD - Cost of Care - Fenland - Under 65,OPPD - Under 65 - Fenland,Supported Living
Cambridgeshire County Council,04-Jan-23,51301910859,"-1,638.77",SOCIAL CARE SOLUTIONS LTD,CARE ESTABLISHMENT,OPPD - Cost of Care - Fenland - Under 65,OPPD - Under 65 - Fenland,Supported Living
Cambridgeshire County Council,04-Jan-23,51301910859,"-1,638.77",SOCIAL CARE SOLUTIONS LTD,CARE ESTABLISHMENT,OPPD - Cost of Care - Fenland - Under 65,OPPD - Under 65 - Fenland,Supported Living
Cambridgeshire County Council,04-Jan-23,51301910859,"-1,638.77",SOCIAL CARE SOLUTIONS LTD,CARE ESTABLISHMENT,OPPD - Cost of Care - Fenland - Under 65,OPPD - Under 65 - Fenland,Supported Living
Cambridgeshire County Council,04-Jan-23,51301910845,"-1,280.84",SOCIAL CARE SOLUTIONS LTD,CARE ESTABLISHMENT,OPPD - Cost of Care - Fenland - Over 65,Older People - Fenland - Care,Supported Living
Cambridgeshire County Council,04-Jan-23,51301910845,"-1,280.84",SOCIAL CARE SOLUTIONS LTD,CARE ESTABLISHMENT,OPPD - Cost of Care - Fenland - Over 65,Older People - Fenland - Care,Supported Living
Cambridgeshire County Council,04-Jan-23,51301910845,"-1,280.84",SOCIAL CARE SOLUTIONS LTD,CARE ESTABLISHMENT,OPPD - Cost of Care - Fenland - Over 65,Older People - Fenland - Care,Supported Living
Cambridgeshire County Council,04-Jan-23,51301910845,"-1,280.84",SOCIAL CARE SOLUTIONS LTD,CARE ESTABLISHMENT,OPPD - Cost of Care - Fenland - Over 65,Older People - Fenland - Care,Supported Living
Cambridgeshire County Council,04-Jan-23,51301910845,"-1,280.84",SOCIAL CARE SOLUTIONS LTD,CARE ESTABLISHMENT,OPPD - Cost of Care - Fenland - Over 65,Older People - Fenland - Care,Supported Living
Cambridgeshire County Council,04-Jan-23,51301910845,"-1,280.84",SOCIAL CARE SOLUTIONS LTD,CARE ESTABLISHMENT,OPPD - Cost of Care - Fenland - Over 65,Older People - Fenland - Care,Supported Living
Cambridgeshire County Council,04-Jan-23,51301910845,"-1,280.84",SOCIAL CARE SOLUTIONS LTD,CARE ESTABLISHMENT,OPPD - Cost of Care - Fenland - Over 65,Older People - Fenland - Care,Supported Living
Cambridgeshire County Council,04-Jan-23,51301910845,"-1,280.84",SOCIAL CARE SOLUTIONS LTD,CARE ESTABLISHMENT,OPPD - Cost of Care - Fenland - Over 65,Older People - Fenland - Care,Supported Living
Cambridgeshire County Council,04-Jan-23,51301910845,"-1,280.84",SOCIAL CARE SOLUTIONS LTD,CARE ESTABLISHMENT,OPPD - Cost of Care - Fenland - Over 65,Older People - Fenland - Care,Supported Living
Cambridgeshire County Council,04-Jan-23,51301910845,"-1,280.84",SOCIAL CARE SOLUTIONS LTD,CARE ESTABLISHMENT,OPPD - Cost of Care - Fenland - Over 65,Older People - Fenland - Care,Supported Living
Cambridgeshire County Council,04-Jan-23,51301910845,"-1,280.84",SOCIAL CARE SOLUTIONS LTD,CARE ESTABLISHMENT,OPPD - Cost of Care - Fenland - Over 65,Older People - Fenland - Care,Supported Living
Cambridgeshire County Council,04-Jan-23,51301910845,"-1,280.84",SOCIAL CARE SOLUTIONS LTD,CARE ESTABLISHMENT,OPPD - Cost of Care - Fenland - Over 65,Older People - Fenland - Care,Supported Living
Cambridgeshire County Council,04-Jan-23,51301910845,"-1,280.84",SOCIAL CARE SOLUTIONS LTD,CARE ESTABLISHMENT,OPPD - Cost of Care - Fenland - Over 65,Older People - Fenland - Care,Supported Living
Cambridgeshire County Council,04-Jan-23,51301910845,"-1,280.84",SOCIAL CARE SOLUTIONS LTD,CARE ESTABLISHMENT,OPPD - Cost of Care - Fenland - Over 65,Older People - Fenland - Care,Supported Living
Cambridgeshire County Council,04-Jan-23,51301910845,"-1,280.84",SOCIAL CARE SOLUTIONS LTD,CARE ESTABLISHMENT,OPPD - Cost of Care - Fenland - Over 65,Older People - Fenland - Care,Supported Living
Cambridgeshire County Council,04-Jan-23,51301910845,"-1,280.84",SOCIAL CARE SOLUTIONS LTD,CARE ESTABLISHMENT,OPPD - Cost of Care - Fenland - Over 65,Older People - Fenland - Care,Supported Living
Cambridgeshire County Council,04-Jan-23,51301910845,"-1,280.84",SOCIAL CARE SOLUTIONS LTD,CARE ESTABLISHMENT,OPPD - Cost of Care - Fenland - Over 65,Older People - Fenland - Care,Supported Living
Cambridgeshire County Council,04-Jan-23,51301910845,"-1,280.84",SOCIAL CARE SOLUTIONS LTD,CARE ESTABLISHMENT,OPPD - Cost of Care - Fenland - Over 65,Older People - Fenland - Care,Supported Living
Cambridgeshire County Council,04-Jan-23,51301910845,"-1,280.84",SOCIAL CARE SOLUTIONS LTD,CARE ESTABLISHMENT,OPPD - Cost of Care - Fenland - Over 65,Older People - Fenland - Care,Supported Living
Cambridgeshire County Council,04-Jan-23,51301910845,"-1,280.84",SOCIAL CARE SOLUTIONS LTD,CARE ESTABLISHMENT,OPPD - Cost of Care - Fenland - Over 65,Older People - Fenland - Care,Supported Living
Cambridgeshire County Council,04-Jan-23,51301910845,"-1,280.84",SOCIAL CARE SOLUTIONS LTD,CARE ESTABLISHMENT,OPPD - Cost of Care - Fenland - Over 65,Older People - Fenland - Care,Supported Living
Cambridgeshire County Council,04-Jan-23,51301910845,"-1,280.84",SOCIAL CARE SOLUTIONS LTD,CARE ESTABLISHMENT,OPPD - Cost of Care - Fenland - Over 65,Older People - Fenland - Care,Supported Living
Cambridgeshire County Council,04-Jan-23,51301910845,"-1,280.84",SOCIAL CARE SOLUTIONS LTD,CARE ESTABLISHMENT,OPPD - Cost of Care - Fenland - Over 65,Older People - Fenland - Care,Supported Living
Cambridgeshire County Council,04-Jan-23,51301910845,"-1,280.84",SOCIAL CARE SOLUTIONS LTD,CARE ESTABLISHMENT,OPPD - Cost of Care - Fenland - Over 65,Older People - Fenland - Care,Supported Living
Cambridgeshire County Council,04-Jan-23,51301910845,"-1,280.84",SOCIAL CARE SOLUTIONS LTD,CARE ESTABLISHMENT,OPPD - Cost of Care - Fenland - Over 65,Older People - Fenland - Care,Supported Living
Cambridgeshire County Council,04-Jan-23,51301910845,"-1,280.84",SOCIAL CARE SOLUTIONS LTD,CARE ESTABLISHMENT,OPPD - Cost of Care - Fenland - Over 65,Older People - Fenland - Care,Supported Living
Cambridgeshire County Council,04-Jan-23,51301910845,"-1,280.84",SOCIAL CARE SOLUTIONS LTD,CARE ESTABLISHMENT,OPPD - Cost of Care - Fenland - Over 65,Older People - Fenland - Care,Supported Living
Cambridgeshire County Council,04-Jan-23,51301910845,"-1,280.84",SOCIAL CARE SOLUTIONS LTD,CARE ESTABLISHMENT,OPPD - Cost of Care - Fenland - Over 65,Older People - Fenland - Care,Supported Living
Cambridgeshire County Council,04-Jan-23,51301910845,"-1,280.84",SOCIAL CARE SOLUTIONS LTD,CARE ESTABLISHMENT,OPPD - Cost of Care - Fenland - Over 65,Older People - Fenland - Care,Supported Living
Cambridgeshire County Council,04-Jan-23,51301910845,"-1,280.84",SOCIAL CARE SOLUTIONS LTD,CARE ESTABLISHMENT,OPPD - Cost of Care - Fenland - Over 65,Older People - Fenland - Care,Supported Living
Cambridgeshire County Council,04-Jan-23,51301910845,"-1,280.84",SOCIAL CARE SOLUTIONS LTD,CARE ESTABLISHMENT,OPPD - Cost of Care - Fenland - Over 65,Older People - Fenland - Care,Supported Living
Cambridgeshire County Council,04-Jan-23,51301910845,"-1,280.84",SOCIAL CARE SOLUTIONS LTD,CARE ESTABLISHMENT,OPPD - Cost of Care - Fenland - Over 65,Older People - Fenland - Care,Supported Living
Cambridgeshire County Council,04-Jan-23,51301910845,"-1,280.84",SOCIAL CARE SOLUTIONS LTD,CARE ESTABLISHMENT,OPPD - Cost of Care - Fenland - Over 65,Older People - Fenland - Care,Supported Living
Cambridgeshire County Council,04-Jan-23,51301910845,"-1,280.84",SOCIAL CARE SOLUTIONS LTD,CARE ESTABLISHMENT,OPPD - Cost of Care - Fenland - Over 65,Older People - Fenland - Care,Supported Living
Cambridgeshire County Council,04-Jan-23,51301910845,"-1,280.84",SOCIAL CARE SOLUTIONS LTD,CARE ESTABLISHMENT,OPPD - Cost of Care - Fenland - Over 65,Older People - Fenland - Care,Supported Living
Cambridgeshire County Council,04-Jan-23,51301910845,"-1,280.84",SOCIAL CARE SOLUTIONS LTD,CARE ESTABLISHMENT,OPPD - Cost of Care - Fenland - Over 65,Older People - Fenland - Care,Supported Living
Cambridgeshire County Council,04-Jan-23,51301910845,"-1,280.84",SOCIAL CARE SOLUTIONS LTD,CARE ESTABLISHMENT,OPPD - Cost of Care - Fenland - Over 65,Older People - Fenland - Care,Supported Living
Cambridgeshire County Council,04-Jan-23,51301910845,"-1,280.84",SOCIAL CARE SOLUTIONS LTD,CARE ESTABLISHMENT,OPPD - Cost of Care - Fenland - Over 65,Older People - Fenland - Care,Supported Living
Cambridgeshire County Council,04-Jan-23,51301910845,"-1,280.84",SOCIAL CARE SOLUTIONS LTD,CARE ESTABLISHMENT,OPPD - Cost of Care - Fenland - Over 65,Older People - Fenland - Care,Supported Living
Cambridgeshire County Council,04-Jan-23,51301910856,"-1,273.50",SOCIAL CARE SOLUTIONS LTD,CARE ESTABLISHMENT,LD - Fenland Locality - Cost of Care,LD - Fenland  - Care,Supported Living
Cambridgeshire County Council,04-Jan-23,51301910856,"-1,273.50",SOCIAL CARE SOLUTIONS LTD,CARE ESTABLISHMENT,LD - Fenland Locality - Cost of Care,LD - Fenland  - Care,Supported Living
Cambridgeshire County Council,04-Jan-23,51301910856,"-1,273.50",SOCIAL CARE SOLUTIONS LTD,CARE ESTABLISHMENT,LD - Fenland Locality - Cost of Care,LD - Fenland  - Care,Supported Living
Cambridgeshire County Council,04-Jan-23,51301910856,"-1,273.50",SOCIAL CARE SOLUTIONS LTD,CARE ESTABLISHMENT,LD - Fenland Locality - Cost of Care,LD - Fenland  - Care,Supported Living
Cambridgeshire County Council,04-Jan-23,51301910856,"-1,273.50",SOCIAL CARE SOLUTIONS LTD,CARE ESTABLISHMENT,LD - Fenland Locality - Cost of Care,LD - Fenland  - Care,Supported Living
Cambridgeshire County Council,04-Jan-23,51301910856,"-1,273.50",SOCIAL CARE SOLUTIONS LTD,CARE ESTABLISHMENT,LD - Fenland Locality - Cost of Care,LD - Fenland  - Care,Supported Living
Cambridgeshire County Council,04-Jan-23,51301910856,"-1,273.50",SOCIAL CARE SOLUTIONS LTD,CARE ESTABLISHMENT,LD - Fenland Locality - Cost of Care,LD - Fenland  - Care,Supported Living
Cambridgeshire County Council,04-Jan-23,51301910856,"-1,273.50",SOCIAL CARE SOLUTIONS LTD,CARE ESTABLISHMENT,LD - Fenland Locality - Cost of Care,LD - Fenland  - Care,Supported Living
Cambridgeshire County Council,04-Jan-23,51301910856,"-1,273.50",SOCIAL CARE SOLUTIONS LTD,CARE ESTABLISHMENT,LD - Fenland Locality - Cost of Care,LD - Fenland  - Care,Supported Living
Cambridgeshire County Council,04-Jan-23,51301910856,"-1,273.50",SOCIAL CARE SOLUTIONS LTD,CARE ESTABLISHMENT,LD - Fenland Locality - Cost of Care,LD - Fenland  - Care,Supported Living
Cambridgeshire County Council,04-Jan-23,51301910856,"-1,273.50",SOCIAL CARE SOLUTIONS LTD,CARE ESTABLISHMENT,LD - Fenland Locality - Cost of Care,LD - Fenland  - Care,Supported Living
Cambridgeshire County Council,04-Jan-23,51301910856,"-1,273.50",SOCIAL CARE SOLUTIONS LTD,CARE ESTABLISHMENT,LD - Fenland Locality - Cost of Care,LD - Fenland  - Care,Supported Living
Cambridgeshire County Council,04-Jan-23,51301910856,"-1,273.50",SOCIAL CARE SOLUTIONS LTD,CARE ESTABLISHMENT,LD - Fenland Locality - Cost of Care,LD - Fenland  - Care,Supported Living
Cambridgeshire County Council,04-Jan-23,51301910856,"-1,273.50",SOCIAL CARE SOLUTIONS LTD,CARE ESTABLISHMENT,LD - Fenland Locality - Cost of Care,LD - Fenland  - Care,Supported Living
Cambridgeshire County Council,04-Jan-23,51301910856,"-1,273.50",SOCIAL CARE SOLUTIONS LTD,CARE ESTABLISHMENT,LD - Fenland Locality - Cost of Care,LD - Fenland  - Care,Supported Living
Cambridgeshire County Council,04-Jan-23,51301910856,"-1,273.50",SOCIAL CARE SOLUTIONS LTD,CARE ESTABLISHMENT,LD - Fenland Locality - Cost of Care,LD - Fenland  - Care,Supported Living
Cambridgeshire County Council,04-Jan-23,51301910856,"-1,273.50",SOCIAL CARE SOLUTIONS LTD,CARE ESTABLISHMENT,LD - Fenland Locality - Cost of Care,LD - Fenland  - Care,Supported Living
Cambridgeshire County Council,04-Jan-23,51301910856,"-1,273.50",SOCIAL CARE SOLUTIONS LTD,CARE ESTABLISHMENT,LD - Fenland Locality - Cost of Care,LD - Fenland  - Care,Supported Living
Cambridgeshire County Council,04-Jan-23,51301910856,"-1,273.50",SOCIAL CARE SOLUTIONS LTD,CARE ESTABLISHMENT,LD - Fenland Locality - Cost of Care,LD - Fenland  - Care,Supported Living
Cambridgeshire County Council,04-Jan-23,51301910856,"-1,273.50",SOCIAL CARE SOLUTIONS LTD,CARE ESTABLISHMENT,LD - Fenland Locality - Cost of Care,LD - Fenland  - Care,Supported Living
Cambridgeshire County Council,04-Jan-23,51301910856,"-1,273.50",SOCIAL CARE SOLUTIONS LTD,CARE ESTABLISHMENT,LD - Fenland Locality - Cost of Care,LD - Fenland  - Care,Supported Living
Cambridgeshire County Council,04-Jan-23,51301910856,"-1,273.50",SOCIAL CARE SOLUTIONS LTD,CARE ESTABLISHMENT,LD - Fenland Locality - Cost of Care,LD - Fenland  - Care,Supported Living
Cambridgeshire County Council,04-Jan-23,51301910856,"-1,273.50",SOCIAL CARE SOLUTIONS LTD,CARE ESTABLISHMENT,LD - Fenland Locality - Cost of Care,LD - Fenland  - Care,Supported Living
Cambridgeshire County Council,04-Jan-23,51301910856,"-1,273.50",SOCIAL CARE SOLUTIONS LTD,CARE ESTABLISHMENT,LD - Fenland Locality - Cost of Care,LD - Fenland  - Care,Supported Living
Cambridgeshire County Council,04-Jan-23,51301910856,"-1,273.50",SOCIAL CARE SOLUTIONS LTD,CARE ESTABLISHMENT,LD - Fenland Locality - Cost of Care,LD - Fenland  - Care,Supported Living
Cambridgeshire County Council,04-Jan-23,51301910856,"-1,273.50",SOCIAL CARE SOLUTIONS LTD,CARE ESTABLISHMENT,LD - Fenland Locality - Cost of Care,LD - Fenland  - Care,Supported Living
Cambridgeshire County Council,04-Jan-23,51301910856,"-1,273.50",SOCIAL CARE SOLUTIONS LTD,CARE ESTABLISHMENT,LD - Fenland Locality - Cost of Care,LD - Fenland  - Care,Supported Living
Cambridgeshire County Council,04-Jan-23,51301910856,"-1,273.50",SOCIAL CARE SOLUTIONS LTD,CARE ESTABLISHMENT,LD - Fenland Locality - Cost of Care,LD - Fenland  - Care,Supported Living
Cambridgeshire County Council,04-Jan-23,51301910856,"-1,273.50",SOCIAL CARE SOLUTIONS LTD,CARE ESTABLISHMENT,LD - Fenland Locality - Cost of Care,LD - Fenland  - Care,Supported Living
Cambridgeshire County Council,04-Jan-23,51301910856,"-1,273.50",SOCIAL CARE SOLUTIONS LTD,CARE ESTABLISHMENT,LD - Fenland Locality - Cost of Care,LD - Fenland  - Care,Supported Living
Cambridgeshire County Council,04-Jan-23,51301910856,"-1,273.50",SOCIAL CARE SOLUTIONS LTD,CARE ESTABLISHMENT,LD - Fenland Locality - Cost of Care,LD - Fenland  - Care,Supported Living
Cambridgeshire County Council,04-Jan-23,51301910856,"-1,273.50",SOCIAL CARE SOLUTIONS LTD,CARE ESTABLISHMENT,LD - Fenland Locality - Cost of Care,LD - Fenland  - Care,Supported Living
Cambridgeshire County Council,04-Jan-23,51301910856,"-1,273.50",SOCIAL CARE SOLUTIONS LTD,CARE ESTABLISHMENT,LD - Fenland Locality - Cost of Care,LD - Fenland  - Care,Supported Living
Cambridgeshire County Council,04-Jan-23,51301910856,"-1,273.50",SOCIAL CARE SOLUTIONS LTD,CARE ESTABLISHMENT,LD - Fenland Locality - Cost of Care,LD - Fenland  - Care,Supported Living
Cambridgeshire County Council,04-Jan-23,51301910856,"-1,273.50",SOCIAL CARE SOLUTIONS LTD,CARE ESTABLISHMENT,LD - Fenland Locality - Cost of Care,LD - Fenland  - Care,Supported Living
Cambridgeshire County Council,04-Jan-23,51301910856,"-1,273.50",SOCIAL CARE SOLUTIONS LTD,CARE ESTABLISHMENT,LD - Fenland Locality - Cost of Care,LD - Fenland  - Care,Supported Living
Cambridgeshire County Council,04-Jan-23,51301910856,"-1,273.50",SOCIAL CARE SOLUTIONS LTD,CARE ESTABLISHMENT,LD - Fenland Locality - Cost of Care,LD - Fenland  - Care,Supported Living
Cambridgeshire County Council,04-Jan-23,51301910856,"-1,273.50",SOCIAL CARE SOLUTIONS LTD,CARE ESTABLISHMENT,LD - Fenland Locality - Cost of Care,LD - Fenland  - Care,Supported Living
Cambridgeshire County Council,04-Jan-23,51301910856,"-1,273.50",SOCIAL CARE SOLUTIONS LTD,CARE ESTABLISHMENT,LD - Fenland Locality - Cost of Care,LD - Fenland  - Care,Supported Living
Cambridgeshire County Council,04-Jan-23,51301910840,"-1,268.48",SOCIAL CARE SOLUTIONS LTD,CARE ESTABLISHMENT,LD - Fenland Locality - Cost of Care,LD - Fenland  - Care,Supported Living
Cambridgeshire County Council,04-Jan-23,51301910840,"-1,268.48",SOCIAL CARE SOLUTIONS LTD,CARE ESTABLISHMENT,LD - Fenland Locality - Cost of Care,LD - Fenland  - Care,Supported Living
Cambridgeshire County Council,04-Jan-23,51301910840,"-1,268.48",SOCIAL CARE SOLUTIONS LTD,CARE ESTABLISHMENT,LD - Fenland Locality - Cost of Care,LD - Fenland  - Care,Supported Living
Cambridgeshire County Council,04-Jan-23,51301910840,"-1,268.48",SOCIAL CARE SOLUTIONS LTD,CARE ESTABLISHMENT,LD - Fenland Locality - Cost of Care,LD - Fenland  - Care,Supported Living
Cambridgeshire County Council,04-Jan-23,51301910840,"-1,268.48",SOCIAL CARE SOLUTIONS LTD,CARE ESTABLISHMENT,LD - Fenland Locality - Cost of Care,LD - Fenland  - Care,Supported Living
Cambridgeshire County Council,04-Jan-23,51301910840,"-1,268.48",SOCIAL CARE SOLUTIONS LTD,CARE ESTABLISHMENT,LD - Fenland Locality - Cost of Care,LD - Fenland  - Care,Supported Living
Cambridgeshire County Council,04-Jan-23,51301910840,"-1,268.48",SOCIAL CARE SOLUTIONS LTD,CARE ESTABLISHMENT,LD - Fenland Locality - Cost of Care,LD - Fenland  - Care,Supported Living
Cambridgeshire County Council,04-Jan-23,51301910840,"-1,268.48",SOCIAL CARE SOLUTIONS LTD,CARE ESTABLISHMENT,LD - Fenland Locality - Cost of Care,LD - Fenland  - Care,Supported Living
Cambridgeshire County Council,04-Jan-23,51301910840,"-1,268.48",SOCIAL CARE SOLUTIONS LTD,CARE ESTABLISHMENT,LD - Fenland Locality - Cost of Care,LD - Fenland  - Care,Supported Living
Cambridgeshire County Council,04-Jan-23,51301910840,"-1,268.48",SOCIAL CARE SOLUTIONS LTD,CARE ESTABLISHMENT,LD - Fenland Locality - Cost of Care,LD - Fenland  - Care,Supported Living
Cambridgeshire County Council,04-Jan-23,51301910840,"-1,268.48",SOCIAL CARE SOLUTIONS LTD,CARE ESTABLISHMENT,LD - Fenland Locality - Cost of Care,LD - Fenland  - Care,Supported Living
Cambridgeshire County Council,04-Jan-23,51301910840,"-1,268.48",SOCIAL CARE SOLUTIONS LTD,CARE ESTABLISHMENT,LD - Fenland Locality - Cost of Care,LD - Fenland  - Care,Supported Living
Cambridgeshire County Council,04-Jan-23,51301910840,"-1,268.48",SOCIAL CARE SOLUTIONS LTD,CARE ESTABLISHMENT,LD - Fenland Locality - Cost of Care,LD - Fenland  - Care,Supported Living
Cambridgeshire County Council,04-Jan-23,51301910840,"-1,268.48",SOCIAL CARE SOLUTIONS LTD,CARE ESTABLISHMENT,LD - Fenland Locality - Cost of Care,LD - Fenland  - Care,Supported Living
Cambridgeshire County Council,04-Jan-23,51301910840,"-1,268.48",SOCIAL CARE SOLUTIONS LTD,CARE ESTABLISHMENT,LD - Fenland Locality - Cost of Care,LD - Fenland  - Care,Supported Living
Cambridgeshire County Council,04-Jan-23,51301910840,"-1,268.48",SOCIAL CARE SOLUTIONS LTD,CARE ESTABLISHMENT,LD - Fenland Locality - Cost of Care,LD - Fenland  - Care,Supported Living
Cambridgeshire County Council,04-Jan-23,51301910840,"-1,268.48",SOCIAL CARE SOLUTIONS LTD,CARE ESTABLISHMENT,LD - Fenland Locality - Cost of Care,LD - Fenland  - Care,Supported Living
Cambridgeshire County Council,04-Jan-23,51301910840,"-1,268.48",SOCIAL CARE SOLUTIONS LTD,CARE ESTABLISHMENT,LD - Fenland Locality - Cost of Care,LD - Fenland  - Care,Supported Living
Cambridgeshire County Council,04-Jan-23,51301910840,"-1,268.48",SOCIAL CARE SOLUTIONS LTD,CARE ESTABLISHMENT,LD - Fenland Locality - Cost of Care,LD - Fenland  - Care,Supported Living
Cambridgeshire County Council,04-Jan-23,51301910840,"-1,268.48",SOCIAL CARE SOLUTIONS LTD,CARE ESTABLISHMENT,LD - Fenland Locality - Cost of Care,LD - Fenland  - Care,Supported Living
Cambridgeshire County Council,04-Jan-23,51301910840,"-1,268.48",SOCIAL CARE SOLUTIONS LTD,CARE ESTABLISHMENT,LD - Fenland Locality - Cost of Care,LD - Fenland  - Care,Supported Living
Cambridgeshire County Council,04-Jan-23,51301910840,"-1,268.48",SOCIAL CARE SOLUTIONS LTD,CARE ESTABLISHMENT,LD - Fenland Locality - Cost of Care,LD - Fenland  - Care,Supported Living
Cambridgeshire County Council,04-Jan-23,51301910840,"-1,268.48",SOCIAL CARE SOLUTIONS LTD,CARE ESTABLISHMENT,LD - Fenland Locality - Cost of Care,LD - Fenland  - Care,Supported Living
Cambridgeshire County Council,04-Jan-23,51301910840,"-1,268.48",SOCIAL CARE SOLUTIONS LTD,CARE ESTABLISHMENT,LD - Fenland Locality - Cost of Care,LD - Fenland  - Care,Supported Living
Cambridgeshire County Council,04-Jan-23,51301910840,"-1,268.48",SOCIAL CARE SOLUTIONS LTD,CARE ESTABLISHMENT,LD - Fenland Locality - Cost of Care,LD - Fenland  - Care,Supported Living
Cambridgeshire County Council,04-Jan-23,51301910840,"-1,268.48",SOCIAL CARE SOLUTIONS LTD,CARE ESTABLISHMENT,LD - Fenland Locality - Cost of Care,LD - Fenland  - Care,Supported Living
Cambridgeshire County Council,04-Jan-23,51301910840,"-1,268.48",SOCIAL CARE SOLUTIONS LTD,CARE ESTABLISHMENT,LD - Fenland Locality - Cost of Care,LD - Fenland  - Care,Supported Living
Cambridgeshire County Council,04-Jan-23,51301910840,"-1,268.48",SOCIAL CARE SOLUTIONS LTD,CARE ESTABLISHMENT,LD - Fenland Locality - Cost of Care,LD - Fenland  - Care,Supported Living
Cambridgeshire County Council,04-Jan-23,51301910840,"-1,268.48",SOCIAL CARE SOLUTIONS LTD,CARE ESTABLISHMENT,LD - Fenland Locality - Cost of Care,LD - Fenland  - Care,Supported Living
Cambridgeshire County Council,04-Jan-23,51301910840,"-1,268.48",SOCIAL CARE SOLUTIONS LTD,CARE ESTABLISHMENT,LD - Fenland Locality - Cost of Care,LD - Fenland  - Care,Supported Living
Cambridgeshire County Council,04-Jan-23,51301910840,"-1,268.48",SOCIAL CARE SOLUTIONS LTD,CARE ESTABLISHMENT,LD - Fenland Locality - Cost of Care,LD - Fenland  - Care,Supported Living
Cambridgeshire County Council,04-Jan-23,51301910840,"-1,268.48",SOCIAL CARE SOLUTIONS LTD,CARE ESTABLISHMENT,LD - Fenland Locality - Cost of Care,LD - Fenland  - Care,Supported Living
Cambridgeshire County Council,04-Jan-23,51301910840,"-1,268.48",SOCIAL CARE SOLUTIONS LTD,CARE ESTABLISHMENT,LD - Fenland Locality - Cost of Care,LD - Fenland  - Care,Supported Living
Cambridgeshire County Council,04-Jan-23,51301910840,"-1,268.48",SOCIAL CARE SOLUTIONS LTD,CARE ESTABLISHMENT,LD - Fenland Locality - Cost of Care,LD - Fenland  - Care,Supported Living
Cambridgeshire County Council,04-Jan-23,51301910840,"-1,268.48",SOCIAL CARE SOLUTIONS LTD,CARE ESTABLISHMENT,LD - Fenland Locality - Cost of Care,LD - Fenland  - Care,Supported Living
Cambridgeshire County Council,04-Jan-23,51301910840,"-1,268.48",SOCIAL CARE SOLUTIONS LTD,CARE ESTABLISHMENT,LD - Fenland Locality - Cost of Care,LD - Fenland  - Care,Supported Living
Cambridgeshire County Council,04-Jan-23,51301910840,"-1,268.48",SOCIAL CARE SOLUTIONS LTD,CARE ESTABLISHMENT,LD - Fenland Locality - Cost of Care,LD - Fenland  - Care,Supported Living
Cambridgeshire County Council,04-Jan-23,51301910840,"-1,268.48",SOCIAL CARE SOLUTIONS LTD,CARE ESTABLISHMENT,LD - Fenland Locality - Cost of Care,LD - Fenland  - Care,Supported Living
Cambridgeshire County Council,04-Jan-23,51301910840,"-1,268.48",SOCIAL CARE SOLUTIONS LTD,CARE ESTABLISHMENT,LD - Fenland Locality - Cost of Care,LD - Fenland  - Care,Supported Living
Cambridgeshire County Council,04-Jan-23,51301910854,"-1,245.34",SOCIAL CARE SOLUTIONS LTD,CARE ESTABLISHMENT,LD - Fenland Locality - Cost of Care,LD - Fenland  - Care,Supported Living
Cambridgeshire County Council,04-Jan-23,51301910854,"-1,245.34",SOCIAL CARE SOLUTIONS LTD,CARE ESTABLISHMENT,LD - Fenland Locality - Cost of Care,LD - Fenland  - Care,Supported Living
Cambridgeshire County Council,04-Jan-23,51301910854,"-1,245.34",SOCIAL CARE SOLUTIONS LTD,CARE ESTABLISHMENT,LD - Fenland Locality - Cost of Care,LD - Fenland  - Care,Supported Living
Cambridgeshire County Council,04-Jan-23,51301910854,"-1,245.34",SOCIAL CARE SOLUTIONS LTD,CARE ESTABLISHMENT,LD - Fenland Locality - Cost of Care,LD - Fenland  - Care,Supported Living
Cambridgeshire County Council,04-Jan-23,51301910854,"-1,245.34",SOCIAL CARE SOLUTIONS LTD,CARE ESTABLISHMENT,LD - Fenland Locality - Cost of Care,LD - Fenland  - Care,Supported Living
Cambridgeshire County Council,04-Jan-23,51301910854,"-1,245.34",SOCIAL CARE SOLUTIONS LTD,CARE ESTABLISHMENT,LD - Fenland Locality - Cost of Care,LD - Fenland  - Care,Supported Living
Cambridgeshire County Council,04-Jan-23,51301910854,"-1,245.34",SOCIAL CARE SOLUTIONS LTD,CARE ESTABLISHMENT,LD - Fenland Locality - Cost of Care,LD - Fenland  - Care,Supported Living
Cambridgeshire County Council,04-Jan-23,51301910854,"-1,245.34",SOCIAL CARE SOLUTIONS LTD,CARE ESTABLISHMENT,LD - Fenland Locality - Cost of Care,LD - Fenland  - Care,Supported Living
Cambridgeshire County Council,04-Jan-23,51301910854,"-1,245.34",SOCIAL CARE SOLUTIONS LTD,CARE ESTABLISHMENT,LD - Fenland Locality - Cost of Care,LD - Fenland  - Care,Supported Living
Cambridgeshire County Council,04-Jan-23,51301910854,"-1,245.34",SOCIAL CARE SOLUTIONS LTD,CARE ESTABLISHMENT,LD - Fenland Locality - Cost of Care,LD - Fenland  - Care,Supported Living
Cambridgeshire County Council,04-Jan-23,51301910854,"-1,245.34",SOCIAL CARE SOLUTIONS LTD,CARE ESTABLISHMENT,LD - Fenland Locality - Cost of Care,LD - Fenland  - Care,Supported Living
Cambridgeshire County Council,04-Jan-23,51301910854,"-1,245.34",SOCIAL CARE SOLUTIONS LTD,CARE ESTABLISHMENT,LD - Fenland Locality - Cost of Care,LD - Fenland  - Care,Supported Living
Cambridgeshire County Council,04-Jan-23,51301910854,"-1,245.34",SOCIAL CARE SOLUTIONS LTD,CARE ESTABLISHMENT,LD - Fenland Locality - Cost of Care,LD - Fenland  - Care,Supported Living
Cambridgeshire County Council,04-Jan-23,51301910854,"-1,245.34",SOCIAL CARE SOLUTIONS LTD,CARE ESTABLISHMENT,LD - Fenland Locality - Cost of Care,LD - Fenland  - Care,Supported Living
Cambridgeshire County Council,04-Jan-23,51301910854,"-1,245.34",SOCIAL CARE SOLUTIONS LTD,CARE ESTABLISHMENT,LD - Fenland Locality - Cost of Care,LD - Fenland  - Care,Supported Living
Cambridgeshire County Council,04-Jan-23,51301910854,"-1,245.34",SOCIAL CARE SOLUTIONS LTD,CARE ESTABLISHMENT,LD - Fenland Locality - Cost of Care,LD - Fenland  - Care,Supported Living
Cambridgeshire County Council,04-Jan-23,51301910854,"-1,245.34",SOCIAL CARE SOLUTIONS LTD,CARE ESTABLISHMENT,LD - Fenland Locality - Cost of Care,LD - Fenland  - Care,Supported Living
Cambridgeshire County Council,04-Jan-23,51301910854,"-1,245.34",SOCIAL CARE SOLUTIONS LTD,CARE ESTABLISHMENT,LD - Fenland Locality - Cost of Care,LD - Fenland  - Care,Supported Living
Cambridgeshire County Council,04-Jan-23,51301910854,"-1,245.34",SOCIAL CARE SOLUTIONS LTD,CARE ESTABLISHMENT,LD - Fenland Locality - Cost of Care,LD - Fenland  - Care,Supported Living
Cambridgeshire County Council,04-Jan-23,51301910854,"-1,245.34",SOCIAL CARE SOLUTIONS LTD,CARE ESTABLISHMENT,LD - Fenland Locality - Cost of Care,LD - Fenland  - Care,Supported Living
Cambridgeshire County Council,04-Jan-23,51301910854,"-1,245.34",SOCIAL CARE SOLUTIONS LTD,CARE ESTABLISHMENT,LD - Fenland Locality - Cost of Care,LD - Fenland  - Care,Supported Living
Cambridgeshire County Council,04-Jan-23,51301910854,"-1,245.34",SOCIAL CARE SOLUTIONS LTD,CARE ESTABLISHMENT,LD - Fenland Locality - Cost of Care,LD - Fenland  - Care,Supported Living
Cambridgeshire County Council,04-Jan-23,51301910854,"-1,245.34",SOCIAL CARE SOLUTIONS LTD,CARE ESTABLISHMENT,LD - Fenland Locality - Cost of Care,LD - Fenland  - Care,Supported Living
Cambridgeshire County Council,04-Jan-23,51301910854,"-1,245.34",SOCIAL CARE SOLUTIONS LTD,CARE ESTABLISHMENT,LD - Fenland Locality - Cost of Care,LD - Fenland  - Care,Supported Living
Cambridgeshire County Council,04-Jan-23,51301910854,"-1,245.34",SOCIAL CARE SOLUTIONS LTD,CARE ESTABLISHMENT,LD - Fenland Locality - Cost of Care,LD - Fenland  - Care,Supported Living
Cambridgeshire County Council,04-Jan-23,51301910854,"-1,245.34",SOCIAL CARE SOLUTIONS LTD,CARE ESTABLISHMENT,LD - Fenland Locality - Cost of Care,LD - Fenland  - Care,Supported Living
Cambridgeshire County Council,04-Jan-23,51301910854,"-1,245.34",SOCIAL CARE SOLUTIONS LTD,CARE ESTABLISHMENT,LD - Fenland Locality - Cost of Care,LD - Fenland  - Care,Supported Living
Cambridgeshire County Council,04-Jan-23,51301910854,"-1,245.34",SOCIAL CARE SOLUTIONS LTD,CARE ESTABLISHMENT,LD - Fenland Locality - Cost of Care,LD - Fenland  - Care,Supported Living
Cambridgeshire County Council,04-Jan-23,51301910854,"-1,245.34",SOCIAL CARE SOLUTIONS LTD,CARE ESTABLISHMENT,LD - Fenland Locality - Cost of Care,LD - Fenland  - Care,Supported Living
Cambridgeshire County Council,04-Jan-23,51301910854,"-1,245.34",SOCIAL CARE SOLUTIONS LTD,CARE ESTABLISHMENT,LD - Fenland Locality - Cost of Care,LD - Fenland  - Care,Supported Living
Cambridgeshire County Council,04-Jan-23,51301910854,"-1,245.34",SOCIAL CARE SOLUTIONS LTD,CARE ESTABLISHMENT,LD - Fenland Locality - Cost of Care,LD - Fenland  - Care,Supported Living
Cambridgeshire County Council,04-Jan-23,51301910854,"-1,245.34",SOCIAL CARE SOLUTIONS LTD,CARE ESTABLISHMENT,LD - Fenland Locality - Cost of Care,LD - Fenland  - Care,Supported Living
Cambridgeshire County Council,04-Jan-23,51301910854,"-1,245.34",SOCIAL CARE SOLUTIONS LTD,CARE ESTABLISHMENT,LD - Fenland Locality - Cost of Care,LD - Fenland  - Care,Supported Living
Cambridgeshire County Council,04-Jan-23,51301910854,"-1,245.34",SOCIAL CARE SOLUTIONS LTD,CARE ESTABLISHMENT,LD - Fenland Locality - Cost of Care,LD - Fenland  - Care,Supported Living
Cambridgeshire County Council,04-Jan-23,51301910854,"-1,245.34",SOCIAL CARE SOLUTIONS LTD,CARE ESTABLISHMENT,LD - Fenland Locality - Cost of Care,LD - Fenland  - Care,Supported Living
Cambridgeshire County Council,04-Jan-23,51301910854,"-1,245.34",SOCIAL CARE SOLUTIONS LTD,CARE ESTABLISHMENT,LD - Fenland Locality - Cost of Care,LD - Fenland  - Care,Supported Living
Cambridgeshire County Council,04-Jan-23,51301910854,"-1,245.34",SOCIAL CARE SOLUTIONS LTD,CARE ESTABLISHMENT,LD - Fenland Locality - Cost of Care,LD - Fenland  - Care,Supported Living
Cambridgeshire County Council,04-Jan-23,51301910854,"-1,245.34",SOCIAL CARE SOLUTIONS LTD,CARE ESTABLISHMENT,LD - Fenland Locality - Cost of Care,LD - Fenland  - Care,Supported Living
Cambridgeshire County Council,04-Jan-23,51301910854,"-1,245.34",SOCIAL CARE SOLUTIONS LTD,CARE ESTABLISHMENT,LD - Fenland Locality - Cost of Care,LD - Fenland  - Care,Supported Living
Cambridgeshire County Council,04-Jan-23,51301910851,"-1,230.42",SOCIAL CARE SOLUTIONS LTD,CARE ESTABLISHMENT,LD - Fenland Locality - Cost of Care,LD - Fenland  - Care,Supported Living
Cambridgeshire County Council,04-Jan-23,51301910839,"-1,082.10",VOYAGE,CARE ESTABLISHMENT,LD - South Locality - Cost of Care,LD - South Cambs - Care,Supported Living
Cambridgeshire County Council,04-Jan-23,51301910839,"-1,082.10",VOYAGE,CARE ESTABLISHMENT,LD - South Locality - Cost of Care,LD - South Cambs - Care,Supported Living
Cambridgeshire County Council,04-Jan-23,51301910839,"-1,082.10",VOYAGE,CARE ESTABLISHMENT,LD - South Locality - Cost of Care,LD - South Cambs - Care,Supported Living
Cambridgeshire County Council,04-Jan-23,51301910844,"-1,053.12",Lifeways - SIL Ltd,CARE ESTABLISHMENT,Autism and Adult Support - Cost of Care,Autism and Adult Support - Care,Supported Living
Cambridgeshire County Council,04-Jan-23,51301910844,"-1,053.12",Lifeways - SIL Ltd,CARE ESTABLISHMENT,Autism and Adult Support - Cost of Care,Autism and Adult Support - Care,Supported Living
Cambridgeshire County Council,04-Jan-23,51301910844,"-1,053.12",Lifeways - SIL Ltd,CARE ESTABLISHMENT,Autism and Adult Support - Cost of Care,Autism and Adult Support - Care,Supported Living
Cambridgeshire County Council,04-Jan-23,51301910844,"-1,053.12",Lifeways - SIL Ltd,CARE ESTABLISHMENT,Autism and Adult Support - Cost of Care,Autism and Adult Support - Care,Supported Living
Cambridgeshire County Council,04-Jan-23,51301910844,"-1,053.12",Lifeways - SIL Ltd,CARE ESTABLISHMENT,Autism and Adult Support - Cost of Care,Autism and Adult Support - Care,Supported Living
Cambridgeshire County Council,04-Jan-23,51301910844,"-1,053.12",Lifeways - SIL Ltd,CARE ESTABLISHMENT,Autism and Adult Support - Cost of Care,Autism and Adult Support - Care,Supported Living
Cambridgeshire County Council,04-Jan-23,51301910844,"-1,053.12",Lifeways - SIL Ltd,CARE ESTABLISHMENT,Autism and Adult Support - Cost of Care,Autism and Adult Support - Care,Supported Living
Cambridgeshire County Council,04-Jan-23,51301910844,"-1,053.12",Lifeways - SIL Ltd,CARE ESTABLISHMENT,Autism and Adult Support - Cost of Care,Autism and Adult Support - Care,Supported Living
Cambridgeshire County Council,04-Jan-23,51301910844,"-1,053.12",Lifeways - SIL Ltd,CARE ESTABLISHMENT,Autism and Adult Support - Cost of Care,Autism and Adult Support - Care,Supported Living
Cambridgeshire County Council,04-Jan-23,51301910844,"-1,053.12",Lifeways - SIL Ltd,CARE ESTABLISHMENT,Autism and Adult Support - Cost of Care,Autism and Adult Support - Care,Supported Living
Cambridgeshire County Council,04-Jan-23,51301910844,"-1,053.12",Lifeways - SIL Ltd,CARE ESTABLISHMENT,Autism and Adult Support - Cost of Care,Autism and Adult Support - Care,Supported Living
Cambridgeshire County Council,04-Jan-23,51301910844,"-1,053.12",Lifeways - SIL Ltd,CARE ESTABLISHMENT,Autism and Adult Support - Cost of Care,Autism and Adult Support - Care,Supported Living
Cambridgeshire County Council,04-Jan-23,51301910844,"-1,053.12",Lifeways - SIL Ltd,CARE ESTABLISHMENT,Autism and Adult Support - Cost of Care,Autism and Adult Support - Care,Supported Living
Cambridgeshire County Council,04-Jan-23,51301910844,"-1,053.12",Lifeways - SIL Ltd,CARE ESTABLISHMENT,Autism and Adult Support - Cost of Care,Autism and Adult Support - Care,Supported Living
Cambridgeshire County Council,04-Jan-23,51301910844,"-1,053.12",Lifeways - SIL Ltd,CARE ESTABLISHMENT,Autism and Adult Support - Cost of Care,Autism and Adult Support - Care,Supported Living
Cambridgeshire County Council,04-Jan-23,51301910844,"-1,053.12",Lifeways - SIL Ltd,CARE ESTABLISHMENT,Autism and Adult Support - Cost of Care,Autism and Adult Support - Care,Supported Living
Cambridgeshire County Council,04-Jan-23,51301910844,"-1,053.12",Lifeways - SIL Ltd,CARE ESTABLISHMENT,Autism and Adult Support - Cost of Care,Autism and Adult Support - Care,Supported Living
Cambridgeshire County Council,04-Jan-23,51301910844,"-1,053.12",Lifeways - SIL Ltd,CARE ESTABLISHMENT,Autism and Adult Support - Cost of Care,Autism and Adult Support - Care,Supported Living
Cambridgeshire County Council,04-Jan-23,51301910844,"-1,053.12",Lifeways - SIL Ltd,CARE ESTABLISHMENT,Autism and Adult Support - Cost of Care,Autism and Adult Support - Care,Supported Living
Cambridgeshire County Council,04-Jan-23,51301910844,"-1,053.12",Lifeways - SIL Ltd,CARE ESTABLISHMENT,Autism and Adult Support - Cost of Care,Autism and Adult Support - Care,Supported Living
Cambridgeshire County Council,04-Jan-23,51301910844,"-1,053.12",Lifeways - SIL Ltd,CARE ESTABLISHMENT,Autism and Adult Support - Cost of Care,Autism and Adult Support - Care,Supported Living
Cambridgeshire County Council,04-Jan-23,51301910844,"-1,053.12",Lifeways - SIL Ltd,CARE ESTABLISHMENT,Autism and Adult Support - Cost of Care,Autism and Adult Support - Care,Supported Living
Cambridgeshire County Council,04-Jan-23,51301910844,"-1,053.12",Lifeways - SIL Ltd,CARE ESTABLISHMENT,Autism and Adult Support - Cost of Care,Autism and Adult Support - Care,Supported Living
Cambridgeshire County Council,04-Jan-23,51301910844,"-1,053.12",Lifeways - SIL Ltd,CARE ESTABLISHMENT,Autism and Adult Support - Cost of Care,Autism and Adult Support - Care,Supported Living
Cambridgeshire County Council,04-Jan-23,51301910844,"-1,053.12",Lifeways - SIL Ltd,CARE ESTABLISHMENT,Autism and Adult Support - Cost of Care,Autism and Adult Support - Care,Supported Living
Cambridgeshire County Council,04-Jan-23,51301910844,"-1,053.12",Lifeways - SIL Ltd,CARE ESTABLISHMENT,Autism and Adult Support - Cost of Care,Autism and Adult Support - Care,Supported Living
Cambridgeshire County Council,04-Jan-23,51301910844,"-1,053.12",Lifeways - SIL Ltd,CARE ESTABLISHMENT,Autism and Adult Support - Cost of Care,Autism and Adult Support - Care,Supported Living
Cambridgeshire County Council,04-Jan-23,51301910844,"-1,053.12",Lifeways - SIL Ltd,CARE ESTABLISHMENT,Autism and Adult Support - Cost of Care,Autism and Adult Support - Care,Supported Living
Cambridgeshire County Council,04-Jan-23,51301910844,"-1,053.12",Lifeways - SIL Ltd,CARE ESTABLISHMENT,Autism and Adult Support - Cost of Care,Autism and Adult Support - Care,Supported Living
Cambridgeshire County Council,04-Jan-23,51301910844,"-1,053.12",Lifeways - SIL Ltd,CARE ESTABLISHMENT,Autism and Adult Support - Cost of Care,Autism and Adult Support - Care,Supported Living
Cambridgeshire County Council,04-Jan-23,51301910844,"-1,053.12",Lifeways - SIL Ltd,CARE ESTABLISHMENT,Autism and Adult Support - Cost of Care,Autism and Adult Support - Care,Supported Living
Cambridgeshire County Council,04-Jan-23,51301910844,"-1,053.12",Lifeways - SIL Ltd,CARE ESTABLISHMENT,Autism and Adult Support - Cost of Care,Autism and Adult Support - Care,Supported Living
Cambridgeshire County Council,04-Jan-23,51301910844,"-1,053.12",Lifeways - SIL Ltd,CARE ESTABLISHMENT,Autism and Adult Support - Cost of Care,Autism and Adult Support - Care,Supported Living
Cambridgeshire County Council,04-Jan-23,51301910844,"-1,053.12",Lifeways - SIL Ltd,CARE ESTABLISHMENT,Autism and Adult Support - Cost of Care,Autism and Adult Support - Care,Supported Living
Cambridgeshire County Council,04-Jan-23,51301910844,"-1,053.12",Lifeways - SIL Ltd,CARE ESTABLISHMENT,Autism and Adult Support - Cost of Care,Autism and Adult Support - Care,Supported Living
Cambridgeshire County Council,04-Jan-23,51301910844,"-1,053.12",Lifeways - SIL Ltd,CARE ESTABLISHMENT,Autism and Adult Support - Cost of Care,Autism and Adult Support - Care,Supported Living
Cambridgeshire County Council,04-Jan-23,51301910844,"-1,053.12",Lifeways - SIL Ltd,CARE ESTABLISHMENT,Autism and Adult Support - Cost of Care,Autism and Adult Support - Care,Supported Living
Cambridgeshire County Council,04-Jan-23,51301910844,"-1,053.12",Lifeways - SIL Ltd,CARE ESTABLISHMENT,Autism and Adult Support - Cost of Care,Autism and Adult Support - Care,Supported Living
Cambridgeshire County Council,04-Jan-23,51301910844,"-1,053.12",Lifeways - SIL Ltd,CARE ESTABLISHMENT,Autism and Adult Support - Cost of Care,Autism and Adult Support - Care,Supported Living
Cambridgeshire County Council,04-Jan-23,51301910842,-987.70,SOCIAL CARE SOLUTIONS LTD,CARE ESTABLISHMENT,LD - Fenland Locality - Cost of Care,LD - Fenland  - Care,Supported Living
Cambridgeshire County Council,04-Jan-23,51301910842,-987.70,SOCIAL CARE SOLUTIONS LTD,CARE ESTABLISHMENT,LD - Fenland Locality - Cost of Care,LD - Fenland  - Care,Supported Living
Cambridgeshire County Council,04-Jan-23,51301910842,-987.70,SOCIAL CARE SOLUTIONS LTD,CARE ESTABLISHMENT,LD - Fenland Locality - Cost of Care,LD - Fenland  - Care,Supported Living
Cambridgeshire County Council,04-Jan-23,51301910842,-987.70,SOCIAL CARE SOLUTIONS LTD,CARE ESTABLISHMENT,LD - Fenland Locality - Cost of Care,LD - Fenland  - Care,Supported Living
Cambridgeshire County Council,04-Jan-23,51301910842,-987.70,SOCIAL CARE SOLUTIONS LTD,CARE ESTABLISHMENT,LD - Fenland Locality - Cost of Care,LD - Fenland  - Care,Supported Living
Cambridgeshire County Council,04-Jan-23,51301910842,-987.70,SOCIAL CARE SOLUTIONS LTD,CARE ESTABLISHMENT,LD - Fenland Locality - Cost of Care,LD - Fenland  - Care,Supported Living
Cambridgeshire County Council,04-Jan-23,51301910842,-987.70,SOCIAL CARE SOLUTIONS LTD,CARE ESTABLISHMENT,LD - Fenland Locality - Cost of Care,LD - Fenland  - Care,Supported Living
Cambridgeshire County Council,04-Jan-23,51301910842,-987.70,SOCIAL CARE SOLUTIONS LTD,CARE ESTABLISHMENT,LD - Fenland Locality - Cost of Care,LD - Fenland  - Care,Supported Living
Cambridgeshire County Council,04-Jan-23,51301910842,-987.70,SOCIAL CARE SOLUTIONS LTD,CARE ESTABLISHMENT,LD - Fenland Locality - Cost of Care,LD - Fenland  - Care,Supported Living
Cambridgeshire County Council,04-Jan-23,51301910842,-987.70,SOCIAL CARE SOLUTIONS LTD,CARE ESTABLISHMENT,LD - Fenland Locality - Cost of Care,LD - Fenland  - Care,Supported Living
Cambridgeshire County Council,04-Jan-23,51301910842,-987.70,SOCIAL CARE SOLUTIONS LTD,CARE ESTABLISHMENT,LD - Fenland Locality - Cost of Care,LD - Fenland  - Care,Supported Living
Cambridgeshire County Council,04-Jan-23,51301910851,-976.64,SOCIAL CARE SOLUTIONS LTD,CARE ESTABLISHMENT,LD - Fenland Locality - Cost of Care,LD - Fenland  - Care,Supported Living
Cambridgeshire County Council,04-Jan-23,51301910851,-976.64,SOCIAL CARE SOLUTIONS LTD,CARE ESTABLISHMENT,LD - Fenland Locality - Cost of Care,LD - Fenland  - Care,Supported Living
Cambridgeshire County Council,04-Jan-23,51301910851,-976.64,SOCIAL CARE SOLUTIONS LTD,CARE ESTABLISHMENT,LD - Fenland Locality - Cost of Care,LD - Fenland  - Care,Supported Living
Cambridgeshire County Council,04-Jan-23,51301910851,-976.64,SOCIAL CARE SOLUTIONS LTD,CARE ESTABLISHMENT,LD - Fenland Locality - Cost of Care,LD - Fenland  - Care,Supported Living
Cambridgeshire County Council,04-Jan-23,51301910851,-976.64,SOCIAL CARE SOLUTIONS LTD,CARE ESTABLISHMENT,LD - Fenland Locality - Cost of Care,LD - Fenland  - Care,Supported Living
Cambridgeshire County Council,04-Jan-23,51301910851,-976.64,SOCIAL CARE SOLUTIONS LTD,CARE ESTABLISHMENT,LD - Fenland Locality - Cost of Care,LD - Fenland  - Care,Supported Living
Cambridgeshire County Council,04-Jan-23,51301910851,-976.64,SOCIAL CARE SOLUTIONS LTD,CARE ESTABLISHMENT,LD - Fenland Locality - Cost of Care,LD - Fenland  - Care,Supported Living
Cambridgeshire County Council,04-Jan-23,51301910851,-976.64,SOCIAL CARE SOLUTIONS LTD,CARE ESTABLISHMENT,LD - Fenland Locality - Cost of Care,LD - Fenland  - Care,Supported Living
Cambridgeshire County Council,04-Jan-23,51301910851,-976.64,SOCIAL CARE SOLUTIONS LTD,CARE ESTABLISHMENT,LD - Fenland Locality - Cost of Care,LD - Fenland  - Care,Supported Living
Cambridgeshire County Council,04-Jan-23,51301910851,-976.64,SOCIAL CARE SOLUTIONS LTD,CARE ESTABLISHMENT,LD - Fenland Locality - Cost of Care,LD - Fenland  - Care,Supported Living
Cambridgeshire County Council,04-Jan-23,51301910851,-976.64,SOCIAL CARE SOLUTIONS LTD,CARE ESTABLISHMENT,LD - Fenland Locality - Cost of Care,LD - Fenland  - Care,Supported Living
Cambridgeshire County Council,04-Jan-23,51301910851,-976.64,SOCIAL CARE SOLUTIONS LTD,CARE ESTABLISHMENT,LD - Fenland Locality - Cost of Care,LD - Fenland  - Care,Supported Living
Cambridgeshire County Council,04-Jan-23,51301910851,-976.64,SOCIAL CARE SOLUTIONS LTD,CARE ESTABLISHMENT,LD - Fenland Locality - Cost of Care,LD - Fenland  - Care,Supported Living
Cambridgeshire County Council,04-Jan-23,51301910851,-976.64,SOCIAL CARE SOLUTIONS LTD,CARE ESTABLISHMENT,LD - Fenland Locality - Cost of Care,LD - Fenland  - Care,Supported Living
Cambridgeshire County Council,04-Jan-23,51301910851,-976.64,SOCIAL CARE SOLUTIONS LTD,CARE ESTABLISHMENT,LD - Fenland Locality - Cost of Care,LD - Fenland  - Care,Supported Living
Cambridgeshire County Council,04-Jan-23,51301910851,-976.64,SOCIAL CARE SOLUTIONS LTD,CARE ESTABLISHMENT,LD - Fenland Locality - Cost of Care,LD - Fenland  - Care,Supported Living
Cambridgeshire County Council,04-Jan-23,51301910851,-976.64,SOCIAL CARE SOLUTIONS LTD,CARE ESTABLISHMENT,LD - Fenland Locality - Cost of Care,LD - Fenland  - Care,Supported Living
Cambridgeshire County Council,04-Jan-23,51301910851,-976.64,SOCIAL CARE SOLUTIONS LTD,CARE ESTABLISHMENT,LD - Fenland Locality - Cost of Care,LD - Fenland  - Care,Supported Living
Cambridgeshire County Council,04-Jan-23,51301910851,-976.64,SOCIAL CARE SOLUTIONS LTD,CARE ESTABLISHMENT,LD - Fenland Locality - Cost of Care,LD - Fenland  - Care,Supported Living
Cambridgeshire County Council,04-Jan-23,51301910842,-953.64,SOCIAL CARE SOLUTIONS LTD,CARE ESTABLISHMENT,LD - Fenland Locality - Cost of Care,LD - Fenland  - Care,Supported Living
Cambridgeshire County Council,04-Jan-23,51301910842,-953.64,SOCIAL CARE SOLUTIONS LTD,CARE ESTABLISHMENT,LD - Fenland Locality - Cost of Care,LD - Fenland  - Care,Supported Living
Cambridgeshire County Council,04-Jan-23,51301910842,-953.64,SOCIAL CARE SOLUTIONS LTD,CARE ESTABLISHMENT,LD - Fenland Locality - Cost of Care,LD - Fenland  - Care,Supported Living
Cambridgeshire County Council,04-Jan-23,51301910839,-927.51,VOYAGE,CARE ESTABLISHMENT,LD - South Locality - Cost of Care,LD - South Cambs - Care,Supported Living
Cambridgeshire County Council,04-Jan-23,51301910853,-814.34,SOCIAL CARE SOLUTIONS LTD,CARE ESTABLISHMENT,LD - Fenland Locality - Cost of Care,LD - Fenland  - Care,Supported Living
Cambridgeshire County Council,04-Jan-23,51301910853,-814.34,SOCIAL CARE SOLUTIONS LTD,CARE ESTABLISHMENT,LD - Fenland Locality - Cost of Care,LD - Fenland  - Care,Supported Living
Cambridgeshire County Council,04-Jan-23,51301910853,-814.34,SOCIAL CARE SOLUTIONS LTD,CARE ESTABLISHMENT,LD - Fenland Locality - Cost of Care,LD - Fenland  - Care,Supported Living
Cambridgeshire County Council,04-Jan-23,51301910853,-814.34,SOCIAL CARE SOLUTIONS LTD,CARE ESTABLISHMENT,LD - Fenland Locality - Cost of Care,LD - Fenland  - Care,Supported Living
Cambridgeshire County Council,04-Jan-23,51301910853,-814.34,SOCIAL CARE SOLUTIONS LTD,CARE ESTABLISHMENT,LD - Fenland Locality - Cost of Care,LD - Fenland  - Care,Supported Living
Cambridgeshire County Council,04-Jan-23,51301910853,-814.34,SOCIAL CARE SOLUTIONS LTD,CARE ESTABLISHMENT,LD - Fenland Locality - Cost of Care,LD - Fenland  - Care,Supported Living
Cambridgeshire County Council,04-Jan-23,51301910853,-814.34,SOCIAL CARE SOLUTIONS LTD,CARE ESTABLISHMENT,LD - Fenland Locality - Cost of Care,LD - Fenland  - Care,Supported Living
Cambridgeshire County Council,04-Jan-23,51301910853,-814.34,SOCIAL CARE SOLUTIONS LTD,CARE ESTABLISHMENT,LD - Fenland Locality - Cost of Care,LD - Fenland  - Care,Supported Living
Cambridgeshire County Council,04-Jan-23,51301910853,-814.34,SOCIAL CARE SOLUTIONS LTD,CARE ESTABLISHMENT,LD - Fenland Locality - Cost of Care,LD - Fenland  - Care,Supported Living
Cambridgeshire County Council,04-Jan-23,51301910853,-814.34,SOCIAL CARE SOLUTIONS LTD,CARE ESTABLISHMENT,LD - Fenland Locality - Cost of Care,LD - Fenland  - Care,Supported Living
Cambridgeshire County Council,04-Jan-23,51301910853,-814.34,SOCIAL CARE SOLUTIONS LTD,CARE ESTABLISHMENT,LD - Fenland Locality - Cost of Care,LD - Fenland  - Care,Supported Living
Cambridgeshire County Council,04-Jan-23,51301910853,-814.34,SOCIAL CARE SOLUTIONS LTD,CARE ESTABLISHMENT,LD - Fenland Locality - Cost of Care,LD - Fenland  - Care,Supported Living
Cambridgeshire County Council,04-Jan-23,51301910853,-814.34,SOCIAL CARE SOLUTIONS LTD,CARE ESTABLISHMENT,LD - Fenland Locality - Cost of Care,LD - Fenland  - Care,Supported Living
Cambridgeshire County Council,04-Jan-23,51301910853,-814.34,SOCIAL CARE SOLUTIONS LTD,CARE ESTABLISHMENT,LD - Fenland Locality - Cost of Care,LD - Fenland  - Care,Supported Living
Cambridgeshire County Council,04-Jan-23,51301910853,-814.34,SOCIAL CARE SOLUTIONS LTD,CARE ESTABLISHMENT,LD - Fenland Locality - Cost of Care,LD - Fenland  - Care,Supported Living
Cambridgeshire County Council,04-Jan-23,51301910853,-814.34,SOCIAL CARE SOLUTIONS LTD,CARE ESTABLISHMENT,LD - Fenland Locality - Cost of Care,LD - Fenland  - Care,Supported Living
Cambridgeshire County Council,04-Jan-23,51301910853,-814.34,SOCIAL CARE SOLUTIONS LTD,CARE ESTABLISHMENT,LD - Fenland Locality - Cost of Care,LD - Fenland  - Care,Supported Living
Cambridgeshire County Council,04-Jan-23,51301910853,-814.34,SOCIAL CARE SOLUTIONS LTD,CARE ESTABLISHMENT,LD - Fenland Locality - Cost of Care,LD - Fenland  - Care,Supported Living
Cambridgeshire County Council,04-Jan-23,51301910853,-814.34,SOCIAL CARE SOLUTIONS LTD,CARE ESTABLISHMENT,LD - Fenland Locality - Cost of Care,LD - Fenland  - Care,Supported Living
Cambridgeshire County Council,04-Jan-23,51301910853,-814.34,SOCIAL CARE SOLUTIONS LTD,CARE ESTABLISHMENT,LD - Fenland Locality - Cost of Care,LD - Fenland  - Care,Supported Living
Cambridgeshire County Council,04-Jan-23,51301910853,-814.34,SOCIAL CARE SOLUTIONS LTD,CARE ESTABLISHMENT,LD - Fenland Locality - Cost of Care,LD - Fenland  - Care,Supported Living
Cambridgeshire County Council,04-Jan-23,51301910853,-814.34,SOCIAL CARE SOLUTIONS LTD,CARE ESTABLISHMENT,LD - Fenland Locality - Cost of Care,LD - Fenland  - Care,Supported Living
Cambridgeshire County Council,04-Jan-23,51301910853,-814.34,SOCIAL CARE SOLUTIONS LTD,CARE ESTABLISHMENT,LD - Fenland Locality - Cost of Care,LD - Fenland  - Care,Supported Living
Cambridgeshire County Council,04-Jan-23,51301910853,-814.34,SOCIAL CARE SOLUTIONS LTD,CARE ESTABLISHMENT,LD - Fenland Locality - Cost of Care,LD - Fenland  - Care,Supported Living
Cambridgeshire County Council,04-Jan-23,51301910853,-814.34,SOCIAL CARE SOLUTIONS LTD,CARE ESTABLISHMENT,LD - Fenland Locality - Cost of Care,LD - Fenland  - Care,Supported Living
Cambridgeshire County Council,04-Jan-23,51301910853,-814.34,SOCIAL CARE SOLUTIONS LTD,CARE ESTABLISHMENT,LD - Fenland Locality - Cost of Care,LD - Fenland  - Care,Supported Living
Cambridgeshire County Council,04-Jan-23,51301910853,-814.34,SOCIAL CARE SOLUTIONS LTD,CARE ESTABLISHMENT,LD - Fenland Locality - Cost of Care,LD - Fenland  - Care,Supported Living
Cambridgeshire County Council,04-Jan-23,51301910853,-814.34,SOCIAL CARE SOLUTIONS LTD,CARE ESTABLISHMENT,LD - Fenland Locality - Cost of Care,LD - Fenland  - Care,Supported Living
Cambridgeshire County Council,04-Jan-23,51301910853,-814.34,SOCIAL CARE SOLUTIONS LTD,CARE ESTABLISHMENT,LD - Fenland Locality - Cost of Care,LD - Fenland  - Care,Supported Living
Cambridgeshire County Council,04-Jan-23,51301910853,-814.34,SOCIAL CARE SOLUTIONS LTD,CARE ESTABLISHMENT,LD - Fenland Locality - Cost of Care,LD - Fenland  - Care,Supported Living
Cambridgeshire County Council,04-Jan-23,51301910853,-814.34,SOCIAL CARE SOLUTIONS LTD,CARE ESTABLISHMENT,LD - Fenland Locality - Cost of Care,LD - Fenland  - Care,Supported Living
Cambridgeshire County Council,04-Jan-23,51301910853,-814.34,SOCIAL CARE SOLUTIONS LTD,CARE ESTABLISHMENT,LD - Fenland Locality - Cost of Care,LD - Fenland  - Care,Supported Living
Cambridgeshire County Council,04-Jan-23,51301910853,-814.34,SOCIAL CARE SOLUTIONS LTD,CARE ESTABLISHMENT,LD - Fenland Locality - Cost of Care,LD - Fenland  - Care,Supported Living
Cambridgeshire County Council,04-Jan-23,51301910853,-814.34,SOCIAL CARE SOLUTIONS LTD,CARE ESTABLISHMENT,LD - Fenland Locality - Cost of Care,LD - Fenland  - Care,Supported Living
Cambridgeshire County Council,04-Jan-23,51301910853,-814.34,SOCIAL CARE SOLUTIONS LTD,CARE ESTABLISHMENT,LD - Fenland Locality - Cost of Care,LD - Fenland  - Care,Supported Living
Cambridgeshire County Council,04-Jan-23,51301910853,-814.34,SOCIAL CARE SOLUTIONS LTD,CARE ESTABLISHMENT,LD - Fenland Locality - Cost of Care,LD - Fenland  - Care,Supported Living
Cambridgeshire County Council,04-Jan-23,51301910853,-814.34,SOCIAL CARE SOLUTIONS LTD,CARE ESTABLISHMENT,LD - Fenland Locality - Cost of Care,LD - Fenland  - Care,Supported Living
Cambridgeshire County Council,04-Jan-23,51301910853,-814.34,SOCIAL CARE SOLUTIONS LTD,CARE ESTABLISHMENT,LD - Fenland Locality - Cost of Care,LD - Fenland  - Care,Supported Living
Cambridgeshire County Council,04-Jan-23,51301910853,-814.34,SOCIAL CARE SOLUTIONS LTD,CARE ESTABLISHMENT,LD - Fenland Locality - Cost of Care,LD - Fenland  - Care,Supported Living
Cambridgeshire County Council,04-Jan-23,51301910853,-783.02,SOCIAL CARE SOLUTIONS LTD,CARE ESTABLISHMENT,LD - Fenland Locality - Cost of Care,LD - Fenland  - Care,Supported Living
Cambridgeshire County Council,04-Jan-23,51301910853,-783.02,SOCIAL CARE SOLUTIONS LTD,CARE ESTABLISHMENT,LD - Fenland Locality - Cost of Care,LD - Fenland  - Care,Supported Living
Cambridgeshire County Council,04-Jan-23,51301910853,-783.02,SOCIAL CARE SOLUTIONS LTD,CARE ESTABLISHMENT,LD - Fenland Locality - Cost of Care,LD - Fenland  - Care,Supported Living
Cambridgeshire County Council,04-Jan-23,51301910853,-783.02,SOCIAL CARE SOLUTIONS LTD,CARE ESTABLISHMENT,LD - Fenland Locality - Cost of Care,LD - Fenland  - Care,Supported Living
Cambridgeshire County Council,04-Jan-23,51301910853,-783.02,SOCIAL CARE SOLUTIONS LTD,CARE ESTABLISHMENT,LD - Fenland Locality - Cost of Care,LD - Fenland  - Care,Supported Living
Cambridgeshire County Council,04-Jan-23,51301910853,-783.02,SOCIAL CARE SOLUTIONS LTD,CARE ESTABLISHMENT,LD - Fenland Locality - Cost of Care,LD - Fenland  - Care,Supported Living
Cambridgeshire County Council,04-Jan-23,51301910853,-783.02,SOCIAL CARE SOLUTIONS LTD,CARE ESTABLISHMENT,LD - Fenland Locality - Cost of Care,LD - Fenland  - Care,Supported Living
Cambridgeshire County Council,04-Jan-23,51301910853,-783.02,SOCIAL CARE SOLUTIONS LTD,CARE ESTABLISHMENT,LD - Fenland Locality - Cost of Care,LD - Fenland  - Care,Supported Living
Cambridgeshire County Council,04-Jan-23,51301910853,-783.02,SOCIAL CARE SOLUTIONS LTD,CARE ESTABLISHMENT,LD - Fenland Locality - Cost of Care,LD - Fenland  - Care,Supported Living
Cambridgeshire County Council,04-Jan-23,51301910853,-783.02,SOCIAL CARE SOLUTIONS LTD,CARE ESTABLISHMENT,LD - Fenland Locality - Cost of Care,LD - Fenland  - Care,Supported Living
Cambridgeshire County Council,04-Jan-23,51301910853,-783.02,SOCIAL CARE SOLUTIONS LTD,CARE ESTABLISHMENT,LD - Fenland Locality - Cost of Care,LD - Fenland  - Care,Supported Living
Cambridgeshire County Council,04-Jan-23,51301910853,-783.02,SOCIAL CARE SOLUTIONS LTD,CARE ESTABLISHMENT,LD - Fenland Locality - Cost of Care,LD - Fenland  - Care,Supported Living
Cambridgeshire County Council,04-Jan-23,51301910853,-783.02,SOCIAL CARE SOLUTIONS LTD,CARE ESTABLISHMENT,LD - Fenland Locality - Cost of Care,LD - Fenland  - Care,Supported Living
Cambridgeshire County Council,04-Jan-23,51301910853,-783.02,SOCIAL CARE SOLUTIONS LTD,CARE ESTABLISHMENT,LD - Fenland Locality - Cost of Care,LD - Fenland  - Care,Supported Living
Cambridgeshire County Council,04-Jan-23,51301910853,-783.02,SOCIAL CARE SOLUTIONS LTD,CARE ESTABLISHMENT,LD - Fenland Locality - Cost of Care,LD - Fenland  - Care,Supported Living
Cambridgeshire County Council,04-Jan-23,51301910853,-783.02,SOCIAL CARE SOLUTIONS LTD,CARE ESTABLISHMENT,LD - Fenland Locality - Cost of Care,LD - Fenland  - Care,Supported Living
Cambridgeshire County Council,04-Jan-23,51301910853,-783.02,SOCIAL CARE SOLUTIONS LTD,CARE ESTABLISHMENT,LD - Fenland Locality - Cost of Care,LD - Fenland  - Care,Supported Living
Cambridgeshire County Council,04-Jan-23,51301910853,-783.02,SOCIAL CARE SOLUTIONS LTD,CARE ESTABLISHMENT,LD - Fenland Locality - Cost of Care,LD - Fenland  - Care,Supported Living
Cambridgeshire County Council,04-Jan-23,51301910853,-783.02,SOCIAL CARE SOLUTIONS LTD,CARE ESTABLISHMENT,LD - Fenland Locality - Cost of Care,LD - Fenland  - Care,Supported Living
Cambridgeshire County Council,04-Jan-23,51301910853,-783.02,SOCIAL CARE SOLUTIONS LTD,CARE ESTABLISHMENT,LD - Fenland Locality - Cost of Care,LD - Fenland  - Care,Supported Living
Cambridgeshire County Council,04-Jan-23,51301910853,-783.02,SOCIAL CARE SOLUTIONS LTD,CARE ESTABLISHMENT,LD - Fenland Locality - Cost of Care,LD - Fenland  - Care,Supported Living
Cambridgeshire County Council,04-Jan-23,51301910853,-783.02,SOCIAL CARE SOLUTIONS LTD,CARE ESTABLISHMENT,LD - Fenland Locality - Cost of Care,LD - Fenland  - Care,Supported Living
Cambridgeshire County Council,04-Jan-23,51301910853,-783.02,SOCIAL CARE SOLUTIONS LTD,CARE ESTABLISHMENT,LD - Fenland Locality - Cost of Care,LD - Fenland  - Care,Supported Living
Cambridgeshire County Council,04-Jan-23,51301910853,-783.02,SOCIAL CARE SOLUTIONS LTD,CARE ESTABLISHMENT,LD - Fenland Locality - Cost of Care,LD - Fenland  - Care,Supported Living
Cambridgeshire County Council,04-Jan-23,51301910853,-783.02,SOCIAL CARE SOLUTIONS LTD,CARE ESTABLISHMENT,LD - Fenland Locality - Cost of Care,LD - Fenland  - Care,Supported Living
Cambridgeshire County Council,04-Jan-23,51301910853,-783.02,SOCIAL CARE SOLUTIONS LTD,CARE ESTABLISHMENT,LD - Fenland Locality - Cost of Care,LD - Fenland  - Care,Supported Living
Cambridgeshire County Council,04-Jan-23,51301910853,-783.02,SOCIAL CARE SOLUTIONS LTD,CARE ESTABLISHMENT,LD - Fenland Locality - Cost of Care,LD - Fenland  - Care,Supported Living
Cambridgeshire County Council,04-Jan-23,51301910853,-783.02,SOCIAL CARE SOLUTIONS LTD,CARE ESTABLISHMENT,LD - Fenland Locality - Cost of Care,LD - Fenland  - Care,Supported Living
Cambridgeshire County Council,04-Jan-23,51301910853,-783.02,SOCIAL CARE SOLUTIONS LTD,CARE ESTABLISHMENT,LD - Fenland Locality - Cost of Care,LD - Fenland  - Care,Supported Living
Cambridgeshire County Council,04-Jan-23,51301910853,-783.02,SOCIAL CARE SOLUTIONS LTD,CARE ESTABLISHMENT,LD - Fenland Locality - Cost of Care,LD - Fenland  - Care,Supported Living
Cambridgeshire County Council,04-Jan-23,51301910853,-783.02,SOCIAL CARE SOLUTIONS LTD,CARE ESTABLISHMENT,LD - Fenland Locality - Cost of Care,LD - Fenland  - Care,Supported Living
Cambridgeshire County Council,04-Jan-23,51301910853,-783.02,SOCIAL CARE SOLUTIONS LTD,CARE ESTABLISHMENT,LD - Fenland Locality - Cost of Care,LD - Fenland  - Care,Supported Living
Cambridgeshire County Council,04-Jan-23,51301910853,-783.02,SOCIAL CARE SOLUTIONS LTD,CARE ESTABLISHMENT,LD - Fenland Locality - Cost of Care,LD - Fenland  - Care,Supported Living
Cambridgeshire County Council,04-Jan-23,51301910853,-783.02,SOCIAL CARE SOLUTIONS LTD,CARE ESTABLISHMENT,LD - Fenland Locality - Cost of Care,LD - Fenland  - Care,Supported Living
Cambridgeshire County Council,04-Jan-23,51301910853,-783.02,SOCIAL CARE SOLUTIONS LTD,CARE ESTABLISHMENT,LD - Fenland Locality - Cost of Care,LD - Fenland  - Care,Supported Living
Cambridgeshire County Council,04-Jan-23,51301910853,-783.02,SOCIAL CARE SOLUTIONS LTD,CARE ESTABLISHMENT,LD - Fenland Locality - Cost of Care,LD - Fenland  - Care,Supported Living
Cambridgeshire County Council,04-Jan-23,51301910853,-783.02,SOCIAL CARE SOLUTIONS LTD,CARE ESTABLISHMENT,LD - Fenland Locality - Cost of Care,LD - Fenland  - Care,Supported Living
Cambridgeshire County Council,04-Jan-23,51301910853,-783.02,SOCIAL CARE SOLUTIONS LTD,CARE ESTABLISHMENT,LD - Fenland Locality - Cost of Care,LD - Fenland  - Care,Supported Living
Cambridgeshire County Council,04-Jan-23,51301910853,-783.02,SOCIAL CARE SOLUTIONS LTD,CARE ESTABLISHMENT,LD - Fenland Locality - Cost of Care,LD - Fenland  - Care,Supported Living
Cambridgeshire County Council,04-Jan-23,51301910851,-738.26,SOCIAL CARE SOLUTIONS LTD,CARE ESTABLISHMENT,LD - Fenland Locality - Cost of Care,LD - Fenland  - Care,Supported Living
Cambridgeshire County Council,04-Jan-23,51301910851,-738.26,SOCIAL CARE SOLUTIONS LTD,CARE ESTABLISHMENT,LD - Fenland Locality - Cost of Care,LD - Fenland  - Care,Supported Living
Cambridgeshire County Council,04-Jan-23,51301910851,-738.26,SOCIAL CARE SOLUTIONS LTD,CARE ESTABLISHMENT,LD - Fenland Locality - Cost of Care,LD - Fenland  - Care,Supported Living
Cambridgeshire County Council,04-Jan-23,51301910851,-738.26,SOCIAL CARE SOLUTIONS LTD,CARE ESTABLISHMENT,LD - Fenland Locality - Cost of Care,LD - Fenland  - Care,Supported Living
Cambridgeshire County Council,04-Jan-23,51301910851,-738.26,SOCIAL CARE SOLUTIONS LTD,CARE ESTABLISHMENT,LD - Fenland Locality - Cost of Care,LD - Fenland  - Care,Supported Living
Cambridgeshire County Council,04-Jan-23,51301910851,-738.26,SOCIAL CARE SOLUTIONS LTD,CARE ESTABLISHMENT,LD - Fenland Locality - Cost of Care,LD - Fenland  - Care,Supported Living
Cambridgeshire County Council,04-Jan-23,51301910851,-738.26,SOCIAL CARE SOLUTIONS LTD,CARE ESTABLISHMENT,LD - Fenland Locality - Cost of Care,LD - Fenland  - Care,Supported Living
Cambridgeshire County Council,04-Jan-23,51301910851,-738.26,SOCIAL CARE SOLUTIONS LTD,CARE ESTABLISHMENT,LD - Fenland Locality - Cost of Care,LD - Fenland  - Care,Supported Living
Cambridgeshire County Council,04-Jan-23,51301910851,-738.26,SOCIAL CARE SOLUTIONS LTD,CARE ESTABLISHMENT,LD - Fenland Locality - Cost of Care,LD - Fenland  - Care,Supported Living
Cambridgeshire County Council,04-Jan-23,51301910851,-738.26,SOCIAL CARE SOLUTIONS LTD,CARE ESTABLISHMENT,LD - Fenland Locality - Cost of Care,LD - Fenland  - Care,Supported Living
Cambridgeshire County Council,04-Jan-23,51301910851,-738.26,SOCIAL CARE SOLUTIONS LTD,CARE ESTABLISHMENT,LD - Fenland Locality - Cost of Care,LD - Fenland  - Care,Supported Living
Cambridgeshire County Council,04-Jan-23,51301910851,-738.26,SOCIAL CARE SOLUTIONS LTD,CARE ESTABLISHMENT,LD - Fenland Locality - Cost of Care,LD - Fenland  - Care,Supported Living
Cambridgeshire County Council,04-Jan-23,51301910851,-738.26,SOCIAL CARE SOLUTIONS LTD,CARE ESTABLISHMENT,LD - Fenland Locality - Cost of Care,LD - Fenland  - Care,Supported Living
Cambridgeshire County Council,04-Jan-23,51301910851,-738.26,SOCIAL CARE SOLUTIONS LTD,CARE ESTABLISHMENT,LD - Fenland Locality - Cost of Care,LD - Fenland  - Care,Supported Living
Cambridgeshire County Council,04-Jan-23,51301910851,-738.26,SOCIAL CARE SOLUTIONS LTD,CARE ESTABLISHMENT,LD - Fenland Locality - Cost of Care,LD - Fenland  - Care,Supported Living
Cambridgeshire County Council,04-Jan-23,51301910851,-738.26,SOCIAL CARE SOLUTIONS LTD,CARE ESTABLISHMENT,LD - Fenland Locality - Cost of Care,LD - Fenland  - Care,Supported Living
Cambridgeshire County Council,04-Jan-23,51301910851,-738.26,SOCIAL CARE SOLUTIONS LTD,CARE ESTABLISHMENT,LD - Fenland Locality - Cost of Care,LD - Fenland  - Care,Supported Living
Cambridgeshire County Council,04-Jan-23,51301910851,-738.26,SOCIAL CARE SOLUTIONS LTD,CARE ESTABLISHMENT,LD - Fenland Locality - Cost of Care,LD - Fenland  - Care,Supported Living
Cambridgeshire County Council,04-Jan-23,51301910851,-738.26,SOCIAL CARE SOLUTIONS LTD,CARE ESTABLISHMENT,LD - Fenland Locality - Cost of Care,LD - Fenland  - Care,Supported Living
Cambridgeshire County Council,04-Jan-23,51301910851,-712.95,SOCIAL CARE SOLUTIONS LTD,CARE ESTABLISHMENT,LD - Fenland Locality - Cost of Care,LD - Fenland  - Care,Supported Living
Cambridgeshire County Council,04-Jan-23,51301910851,-712.95,SOCIAL CARE SOLUTIONS LTD,CARE ESTABLISHMENT,LD - Fenland Locality - Cost of Care,LD - Fenland  - Care,Supported Living
Cambridgeshire County Council,04-Jan-23,51301910851,-712.95,SOCIAL CARE SOLUTIONS LTD,CARE ESTABLISHMENT,LD - Fenland Locality - Cost of Care,LD - Fenland  - Care,Supported Living
Cambridgeshire County Council,04-Jan-23,51301910851,-712.95,SOCIAL CARE SOLUTIONS LTD,CARE ESTABLISHMENT,LD - Fenland Locality - Cost of Care,LD - Fenland  - Care,Supported Living
Cambridgeshire County Council,04-Jan-23,51301910851,-712.95,SOCIAL CARE SOLUTIONS LTD,CARE ESTABLISHMENT,LD - Fenland Locality - Cost of Care,LD - Fenland  - Care,Supported Living
Cambridgeshire County Council,04-Jan-23,51301910851,-712.95,SOCIAL CARE SOLUTIONS LTD,CARE ESTABLISHMENT,LD - Fenland Locality - Cost of Care,LD - Fenland  - Care,Supported Living
Cambridgeshire County Council,04-Jan-23,51301910851,-712.95,SOCIAL CARE SOLUTIONS LTD,CARE ESTABLISHMENT,LD - Fenland Locality - Cost of Care,LD - Fenland  - Care,Supported Living
Cambridgeshire County Council,04-Jan-23,51301910851,-712.95,SOCIAL CARE SOLUTIONS LTD,CARE ESTABLISHMENT,LD - Fenland Locality - Cost of Care,LD - Fenland  - Care,Supported Living
Cambridgeshire County Council,04-Jan-23,51301910851,-712.95,SOCIAL CARE SOLUTIONS LTD,CARE ESTABLISHMENT,LD - Fenland Locality - Cost of Care,LD - Fenland  - Care,Supported Living
Cambridgeshire County Council,04-Jan-23,51301910851,-712.95,SOCIAL CARE SOLUTIONS LTD,CARE ESTABLISHMENT,LD - Fenland Locality - Cost of Care,LD - Fenland  - Care,Supported Living
Cambridgeshire County Council,04-Jan-23,51301910851,-712.95,SOCIAL CARE SOLUTIONS LTD,CARE ESTABLISHMENT,LD - Fenland Locality - Cost of Care,LD - Fenland  - Care,Supported Living
Cambridgeshire County Council,04-Jan-23,51301910851,-712.95,SOCIAL CARE SOLUTIONS LTD,CARE ESTABLISHMENT,LD - Fenland Locality - Cost of Care,LD - Fenland  - Care,Supported Living
Cambridgeshire County Council,04-Jan-23,51301910851,-712.95,SOCIAL CARE SOLUTIONS LTD,CARE ESTABLISHMENT,LD - Fenland Locality - Cost of Care,LD - Fenland  - Care,Supported Living
Cambridgeshire County Council,04-Jan-23,51301910851,-712.95,SOCIAL CARE SOLUTIONS LTD,CARE ESTABLISHMENT,LD - Fenland Locality - Cost of Care,LD - Fenland  - Care,Supported Living
Cambridgeshire County Council,04-Jan-23,51301910851,-712.95,SOCIAL CARE SOLUTIONS LTD,CARE ESTABLISHMENT,LD - Fenland Locality - Cost of Care,LD - Fenland  - Care,Supported Living
Cambridgeshire County Council,04-Jan-23,51301910842,-705.50,SOCIAL CARE SOLUTIONS LTD,CARE ESTABLISHMENT,LD - Fenland Locality - Cost of Care,LD - Fenland  - Care,Supported Living
Cambridgeshire County Council,04-Jan-23,51301910842,-705.50,SOCIAL CARE SOLUTIONS LTD,CARE ESTABLISHMENT,LD - Fenland Locality - Cost of Care,LD - Fenland  - Care,Supported Living
Cambridgeshire County Council,04-Jan-23,51301910851,-703.10,SOCIAL CARE SOLUTIONS LTD,CARE ESTABLISHMENT,LD - Fenland Locality - Cost of Care,LD - Fenland  - Care,Supported Living
Cambridgeshire County Council,04-Jan-23,51301910841,-702.95,ATLAS HOME SUPPORT,CARE ESTABLISHMENT,LD - City Locality - Cost of Care,LD - City - Care,Supported Living
Cambridgeshire County Council,04-Jan-23,51301910841,-702.95,ATLAS HOME SUPPORT,CARE ESTABLISHMENT,LD - City Locality - Cost of Care,LD - City - Care,Supported Living
Cambridgeshire County Council,04-Jan-23,51301910841,-702.95,ATLAS HOME SUPPORT,CARE ESTABLISHMENT,LD - City Locality - Cost of Care,LD - City - Care,Supported Living
Cambridgeshire County Council,04-Jan-23,51301910841,-702.95,ATLAS HOME SUPPORT,CARE ESTABLISHMENT,LD - City Locality - Cost of Care,LD - City - Care,Supported Living
Cambridgeshire County Council,04-Jan-23,51301910841,-702.95,ATLAS HOME SUPPORT,CARE ESTABLISHMENT,LD - City Locality - Cost of Care,LD - City - Care,Supported Living
Cambridgeshire County Council,04-Jan-23,51301910841,-702.95,ATLAS HOME SUPPORT,CARE ESTABLISHMENT,LD - City Locality - Cost of Care,LD - City - Care,Supported Living
Cambridgeshire County Council,04-Jan-23,51301910841,-702.95,ATLAS HOME SUPPORT,CARE ESTABLISHMENT,LD - City Locality - Cost of Care,LD - City - Care,Supported Living
Cambridgeshire County Council,04-Jan-23,51301910841,-702.95,ATLAS HOME SUPPORT,CARE ESTABLISHMENT,LD - City Locality - Cost of Care,LD - City - Care,Supported Living
Cambridgeshire County Council,04-Jan-23,51301910841,-702.95,ATLAS HOME SUPPORT,CARE ESTABLISHMENT,LD - City Locality - Cost of Care,LD - City - Care,Supported Living
Cambridgeshire County Council,04-Jan-23,51301910841,-702.95,ATLAS HOME SUPPORT,CARE ESTABLISHMENT,LD - City Locality - Cost of Care,LD - City - Care,Supported Living
Cambridgeshire County Council,04-Jan-23,51301910841,-702.95,ATLAS HOME SUPPORT,CARE ESTABLISHMENT,LD - City Locality - Cost of Care,LD - City - Care,Supported Living
Cambridgeshire County Council,04-Jan-23,51301910841,-702.95,ATLAS HOME SUPPORT,CARE ESTABLISHMENT,LD - City Locality - Cost of Care,LD - City - Care,Supported Living
Cambridgeshire County Council,04-Jan-23,51301910841,-702.95,ATLAS HOME SUPPORT,CARE ESTABLISHMENT,LD - City Locality - Cost of Care,LD - City - Care,Supported Living
Cambridgeshire County Council,04-Jan-23,51301910841,-702.95,ATLAS HOME SUPPORT,CARE ESTABLISHMENT,LD - City Locality - Cost of Care,LD - City - Care,Supported Living
Cambridgeshire County Council,04-Jan-23,51301910841,-702.95,ATLAS HOME SUPPORT,CARE ESTABLISHMENT,LD - City Locality - Cost of Care,LD - City - Care,Supported Living
Cambridgeshire County Council,04-Jan-23,51301910841,-702.95,ATLAS HOME SUPPORT,CARE ESTABLISHMENT,LD - City Locality - Cost of Care,LD - City - Care,Supported Living
Cambridgeshire County Council,04-Jan-23,51301910841,-702.95,ATLAS HOME SUPPORT,CARE ESTABLISHMENT,LD - City Locality - Cost of Care,LD - City - Care,Supported Living
Cambridgeshire County Council,04-Jan-23,51301910841,-702.95,ATLAS HOME SUPPORT,CARE ESTABLISHMENT,LD - City Locality - Cost of Care,LD - City - Care,Supported Living
Cambridgeshire County Council,04-Jan-23,51301910841,-702.95,ATLAS HOME SUPPORT,CARE ESTABLISHMENT,LD - City Locality - Cost of Care,LD - City - Care,Supported Living
Cambridgeshire County Council,04-Jan-23,51301910841,-702.95,ATLAS HOME SUPPORT,CARE ESTABLISHMENT,LD - City Locality - Cost of Care,LD - City - Care,Supported Living
Cambridgeshire County Council,04-Jan-23,51301910842,-680.59,SOCIAL CARE SOLUTIONS LTD,CARE ESTABLISHMENT,LD - Fenland Locality - Cost of Care,LD - Fenland  - Care,Supported Living
Cambridgeshire County Council,04-Jan-23,51301910851,-611.10,SOCIAL CARE SOLUTIONS LTD,CARE ESTABLISHMENT,LD - Fenland Locality - Cost of Care,LD - Fenland  - Care,Supported Living
Cambridgeshire County Council,04-Jan-23,51301910851,-611.10,SOCIAL CARE SOLUTIONS LTD,CARE ESTABLISHMENT,LD - Fenland Locality - Cost of Care,LD - Fenland  - Care,Supported Living
Cambridgeshire County Council,04-Jan-23,51301910851,-611.10,SOCIAL CARE SOLUTIONS LTD,CARE ESTABLISHMENT,LD - Fenland Locality - Cost of Care,LD - Fenland  - Care,Supported Living
Cambridgeshire County Council,04-Jan-23,51301910858,-610.83,SOCIAL CARE SOLUTIONS LTD,CARE ESTABLISHMENT,LD - Fenland Locality - Cost of Care,LD - Fenland  - Care,Supported Living
Cambridgeshire County Council,04-Jan-23,51301910842,-600.95,SOCIAL CARE SOLUTIONS LTD,CARE ESTABLISHMENT,LD - Fenland Locality - Cost of Care,LD - Fenland  - Care,Supported Living
Cambridgeshire County Council,04-Jan-23,51301910842,-600.95,SOCIAL CARE SOLUTIONS LTD,CARE ESTABLISHMENT,LD - Fenland Locality - Cost of Care,LD - Fenland  - Care,Supported Living
Cambridgeshire County Council,04-Jan-23,51301910842,-600.95,SOCIAL CARE SOLUTIONS LTD,CARE ESTABLISHMENT,LD - Fenland Locality - Cost of Care,LD - Fenland  - Care,Supported Living
Cambridgeshire County Council,04-Jan-23,51301910842,-600.95,SOCIAL CARE SOLUTIONS LTD,CARE ESTABLISHMENT,LD - Fenland Locality - Cost of Care,LD - Fenland  - Care,Supported Living
Cambridgeshire County Council,04-Jan-23,51301910842,-564.40,SOCIAL CARE SOLUTIONS LTD,CARE ESTABLISHMENT,LD - Fenland Locality - Cost of Care,LD - Fenland  - Care,Supported Living
Cambridgeshire County Council,04-Jan-23,51301910842,-564.40,SOCIAL CARE SOLUTIONS LTD,CARE ESTABLISHMENT,LD - Fenland Locality - Cost of Care,LD - Fenland  - Care,Supported Living
Cambridgeshire County Council,04-Jan-23,51301910842,-564.40,SOCIAL CARE SOLUTIONS LTD,CARE ESTABLISHMENT,LD - Fenland Locality - Cost of Care,LD - Fenland  - Care,Supported Living
Cambridgeshire County Council,04-Jan-23,51301910855,-554.26,SOCIAL CARE SOLUTIONS LTD,CARE ESTABLISHMENT,LD - Hunts Locality - Cost of Care,LD - Huntingdonshire - Care,Supported Living
Cambridgeshire County Council,04-Jan-23,51301910855,-554.26,SOCIAL CARE SOLUTIONS LTD,CARE ESTABLISHMENT,LD - Hunts Locality - Cost of Care,LD - Huntingdonshire - Care,Supported Living
Cambridgeshire County Council,04-Jan-23,51301910855,-554.26,SOCIAL CARE SOLUTIONS LTD,CARE ESTABLISHMENT,LD - Hunts Locality - Cost of Care,LD - Huntingdonshire - Care,Supported Living
Cambridgeshire County Council,04-Jan-23,51301910855,-554.26,SOCIAL CARE SOLUTIONS LTD,CARE ESTABLISHMENT,LD - Hunts Locality - Cost of Care,LD - Huntingdonshire - Care,Supported Living
Cambridgeshire County Council,04-Jan-23,51301910855,-554.26,SOCIAL CARE SOLUTIONS LTD,CARE ESTABLISHMENT,LD - Hunts Locality - Cost of Care,LD - Huntingdonshire - Care,Supported Living
Cambridgeshire County Council,04-Jan-23,51301910855,-554.26,SOCIAL CARE SOLUTIONS LTD,CARE ESTABLISHMENT,LD - Hunts Locality - Cost of Care,LD - Huntingdonshire - Care,Supported Living
Cambridgeshire County Council,04-Jan-23,51301910855,-554.26,SOCIAL CARE SOLUTIONS LTD,CARE ESTABLISHMENT,LD - Hunts Locality - Cost of Care,LD - Huntingdonshire - Care,Supported Living
Cambridgeshire County Council,04-Jan-23,51301910855,-554.26,SOCIAL CARE SOLUTIONS LTD,CARE ESTABLISHMENT,LD - Hunts Locality - Cost of Care,LD - Huntingdonshire - Care,Supported Living
Cambridgeshire County Council,04-Jan-23,51301910855,-554.26,SOCIAL CARE SOLUTIONS LTD,CARE ESTABLISHMENT,LD - Hunts Locality - Cost of Care,LD - Huntingdonshire - Care,Supported Living
Cambridgeshire County Council,04-Jan-23,51301910855,-554.26,SOCIAL CARE SOLUTIONS LTD,CARE ESTABLISHMENT,LD - Hunts Locality - Cost of Care,LD - Huntingdonshire - Care,Supported Living
Cambridgeshire County Council,04-Jan-23,51301910855,-554.26,SOCIAL CARE SOLUTIONS LTD,CARE ESTABLISHMENT,LD - Hunts Locality - Cost of Care,LD - Huntingdonshire - Care,Supported Living
Cambridgeshire County Council,04-Jan-23,51301910855,-554.26,SOCIAL CARE SOLUTIONS LTD,CARE ESTABLISHMENT,LD - Hunts Locality - Cost of Care,LD - Huntingdonshire - Care,Supported Living
Cambridgeshire County Council,04-Jan-23,51301910855,-554.26,SOCIAL CARE SOLUTIONS LTD,CARE ESTABLISHMENT,LD - Hunts Locality - Cost of Care,LD - Huntingdonshire - Care,Supported Living
Cambridgeshire County Council,04-Jan-23,51301910855,-554.26,SOCIAL CARE SOLUTIONS LTD,CARE ESTABLISHMENT,LD - Hunts Locality - Cost of Care,LD - Huntingdonshire - Care,Supported Living
Cambridgeshire County Council,04-Jan-23,51301910855,-554.26,SOCIAL CARE SOLUTIONS LTD,CARE ESTABLISHMENT,LD - Hunts Locality - Cost of Care,LD - Huntingdonshire - Care,Supported Living
Cambridgeshire County Council,04-Jan-23,51301910855,-554.26,SOCIAL CARE SOLUTIONS LTD,CARE ESTABLISHMENT,LD - Hunts Locality - Cost of Care,LD - Huntingdonshire - Care,Supported Living
Cambridgeshire County Council,04-Jan-23,51301910855,-554.26,SOCIAL CARE SOLUTIONS LTD,CARE ESTABLISHMENT,LD - Hunts Locality - Cost of Care,LD - Huntingdonshire - Care,Supported Living
Cambridgeshire County Council,04-Jan-23,51301910855,-554.26,SOCIAL CARE SOLUTIONS LTD,CARE ESTABLISHMENT,LD - Hunts Locality - Cost of Care,LD - Huntingdonshire - Care,Supported Living
Cambridgeshire County Council,04-Jan-23,51301910855,-554.26,SOCIAL CARE SOLUTIONS LTD,CARE ESTABLISHMENT,LD - Hunts Locality - Cost of Care,LD - Huntingdonshire - Care,Supported Living
Cambridgeshire County Council,04-Jan-23,51301910855,-554.26,SOCIAL CARE SOLUTIONS LTD,CARE ESTABLISHMENT,LD - Hunts Locality - Cost of Care,LD - Huntingdonshire - Care,Supported Living
Cambridgeshire County Council,04-Jan-23,51301910855,-554.26,SOCIAL CARE SOLUTIONS LTD,CARE ESTABLISHMENT,LD - Hunts Locality - Cost of Care,LD - Huntingdonshire - Care,Supported Living
Cambridgeshire County Council,04-Jan-23,51301910855,-554.26,SOCIAL CARE SOLUTIONS LTD,CARE ESTABLISHMENT,LD - Hunts Locality - Cost of Care,LD - Huntingdonshire - Care,Supported Living
Cambridgeshire County Council,04-Jan-23,51301910855,-554.26,SOCIAL CARE SOLUTIONS LTD,CARE ESTABLISHMENT,LD - Hunts Locality - Cost of Care,LD - Huntingdonshire - Care,Supported Living
Cambridgeshire County Council,04-Jan-23,51301910855,-554.26,SOCIAL CARE SOLUTIONS LTD,CARE ESTABLISHMENT,LD - Hunts Locality - Cost of Care,LD - Huntingdonshire - Care,Supported Living
Cambridgeshire County Council,04-Jan-23,51301910855,-554.26,SOCIAL CARE SOLUTIONS LTD,CARE ESTABLISHMENT,LD - Hunts Locality - Cost of Care,LD - Huntingdonshire - Care,Supported Living
Cambridgeshire County Council,04-Jan-23,51301910855,-554.26,SOCIAL CARE SOLUTIONS LTD,CARE ESTABLISHMENT,LD - Hunts Locality - Cost of Care,LD - Huntingdonshire - Care,Supported Living
Cambridgeshire County Council,04-Jan-23,51301910855,-554.26,SOCIAL CARE SOLUTIONS LTD,CARE ESTABLISHMENT,LD - Hunts Locality - Cost of Care,LD - Huntingdonshire - Care,Supported Living
Cambridgeshire County Council,04-Jan-23,51301910855,-554.26,SOCIAL CARE SOLUTIONS LTD,CARE ESTABLISHMENT,LD - Hunts Locality - Cost of Care,LD - Huntingdonshire - Care,Supported Living
Cambridgeshire County Council,04-Jan-23,51301910855,-554.26,SOCIAL CARE SOLUTIONS LTD,CARE ESTABLISHMENT,LD - Hunts Locality - Cost of Care,LD - Huntingdonshire - Care,Supported Living
Cambridgeshire County Council,04-Jan-23,51301910855,-554.26,SOCIAL CARE SOLUTIONS LTD,CARE ESTABLISHMENT,LD - Hunts Locality - Cost of Care,LD - Huntingdonshire - Care,Supported Living
Cambridgeshire County Council,04-Jan-23,51301910855,-554.26,SOCIAL CARE SOLUTIONS LTD,CARE ESTABLISHMENT,LD - Hunts Locality - Cost of Care,LD - Huntingdonshire - Care,Supported Living
Cambridgeshire County Council,04-Jan-23,51301910855,-554.26,SOCIAL CARE SOLUTIONS LTD,CARE ESTABLISHMENT,LD - Hunts Locality - Cost of Care,LD - Huntingdonshire - Care,Supported Living
Cambridgeshire County Council,04-Jan-23,51301910855,-554.26,SOCIAL CARE SOLUTIONS LTD,CARE ESTABLISHMENT,LD - Hunts Locality - Cost of Care,LD - Huntingdonshire - Care,Supported Living
Cambridgeshire County Council,04-Jan-23,51301910855,-554.26,SOCIAL CARE SOLUTIONS LTD,CARE ESTABLISHMENT,LD - Hunts Locality - Cost of Care,LD - Huntingdonshire - Care,Supported Living
Cambridgeshire County Council,04-Jan-23,51301910855,-554.26,SOCIAL CARE SOLUTIONS LTD,CARE ESTABLISHMENT,LD - Hunts Locality - Cost of Care,LD - Huntingdonshire - Care,Supported Living
Cambridgeshire County Council,04-Jan-23,51301910855,-554.26,SOCIAL CARE SOLUTIONS LTD,CARE ESTABLISHMENT,LD - Hunts Locality - Cost of Care,LD - Huntingdonshire - Care,Supported Living
Cambridgeshire County Council,04-Jan-23,51301910855,-554.26,SOCIAL CARE SOLUTIONS LTD,CARE ESTABLISHMENT,LD - Hunts Locality - Cost of Care,LD - Huntingdonshire - Care,Supported Living
Cambridgeshire County Council,04-Jan-23,51301910855,-554.26,SOCIAL CARE SOLUTIONS LTD,CARE ESTABLISHMENT,LD - Hunts Locality - Cost of Care,LD - Huntingdonshire - Care,Supported Living
Cambridgeshire County Council,04-Jan-23,51301910855,-554.26,SOCIAL CARE SOLUTIONS LTD,CARE ESTABLISHMENT,LD - Hunts Locality - Cost of Care,LD - Huntingdonshire - Care,Supported Living
Cambridgeshire County Council,04-Jan-23,51301910855,-554.26,SOCIAL CARE SOLUTIONS LTD,CARE ESTABLISHMENT,LD - Hunts Locality - Cost of Care,LD - Huntingdonshire - Care,Supported Living
Cambridgeshire County Council,04-Jan-23,51301910855,-554.26,SOCIAL CARE SOLUTIONS LTD,CARE ESTABLISHMENT,LD - Hunts Locality - Cost of Care,LD - Huntingdonshire - Care,Supported Living
Cambridgeshire County Council,04-Jan-23,51301910855,-554.26,SOCIAL CARE SOLUTIONS LTD,CARE ESTABLISHMENT,LD - Hunts Locality - Cost of Care,LD - Huntingdonshire - Care,Supported Living
Cambridgeshire County Council,04-Jan-23,51301910855,-554.26,SOCIAL CARE SOLUTIONS LTD,CARE ESTABLISHMENT,LD - Hunts Locality - Cost of Care,LD - Huntingdonshire - Care,Supported Living
Cambridgeshire County Council,04-Jan-23,51301910855,-554.26,SOCIAL CARE SOLUTIONS LTD,CARE ESTABLISHMENT,LD - Hunts Locality - Cost of Care,LD - Huntingdonshire - Care,Supported Living
Cambridgeshire County Council,04-Jan-23,51301910855,-554.26,SOCIAL CARE SOLUTIONS LTD,CARE ESTABLISHMENT,LD - Hunts Locality - Cost of Care,LD - Huntingdonshire - Care,Supported Living
Cambridgeshire County Council,04-Jan-23,51301910855,-554.26,SOCIAL CARE SOLUTIONS LTD,CARE ESTABLISHMENT,LD - Hunts Locality - Cost of Care,LD - Huntingdonshire - Care,Supported Living
Cambridgeshire County Council,04-Jan-23,51301910855,-554.26,SOCIAL CARE SOLUTIONS LTD,CARE ESTABLISHMENT,LD - Hunts Locality - Cost of Care,LD - Huntingdonshire - Care,Supported Living
Cambridgeshire County Council,04-Jan-23,51301910855,-554.26,SOCIAL CARE SOLUTIONS LTD,CARE ESTABLISHMENT,LD - Hunts Locality - Cost of Care,LD - Huntingdonshire - Care,Supported Living
Cambridgeshire County Council,04-Jan-23,51301910855,-554.26,SOCIAL CARE SOLUTIONS LTD,CARE ESTABLISHMENT,LD - Hunts Locality - Cost of Care,LD - Huntingdonshire - Care,Supported Living
Cambridgeshire County Council,04-Jan-23,51301910855,-554.26,SOCIAL CARE SOLUTIONS LTD,CARE ESTABLISHMENT,LD - Hunts Locality - Cost of Care,LD - Huntingdonshire - Care,Supported Living
Cambridgeshire County Council,04-Jan-23,51301910855,-554.26,SOCIAL CARE SOLUTIONS LTD,CARE ESTABLISHMENT,LD - Hunts Locality - Cost of Care,LD - Huntingdonshire - Care,Supported Living
Cambridgeshire County Council,04-Jan-23,51301910855,-554.26,SOCIAL CARE SOLUTIONS LTD,CARE ESTABLISHMENT,LD - Hunts Locality - Cost of Care,LD - Huntingdonshire - Care,Supported Living
Cambridgeshire County Council,04-Jan-23,51301910855,-554.26,SOCIAL CARE SOLUTIONS LTD,CARE ESTABLISHMENT,LD - Hunts Locality - Cost of Care,LD - Huntingdonshire - Care,Supported Living
Cambridgeshire County Council,04-Jan-23,51301910855,-554.26,SOCIAL CARE SOLUTIONS LTD,CARE ESTABLISHMENT,LD - Hunts Locality - Cost of Care,LD - Huntingdonshire - Care,Supported Living
Cambridgeshire County Council,04-Jan-23,51301910855,-554.26,SOCIAL CARE SOLUTIONS LTD,CARE ESTABLISHMENT,LD - Hunts Locality - Cost of Care,LD - Huntingdonshire - Care,Supported Living
Cambridgeshire County Council,04-Jan-23,51301910855,-554.26,SOCIAL CARE SOLUTIONS LTD,CARE ESTABLISHMENT,LD - Hunts Locality - Cost of Care,LD - Huntingdonshire - Care,Supported Living
Cambridgeshire County Council,04-Jan-23,51301910855,-554.26,SOCIAL CARE SOLUTIONS LTD,CARE ESTABLISHMENT,LD - Hunts Locality - Cost of Care,LD - Huntingdonshire - Care,Supported Living
Cambridgeshire County Council,04-Jan-23,51301910855,-554.26,SOCIAL CARE SOLUTIONS LTD,CARE ESTABLISHMENT,LD - Hunts Locality - Cost of Care,LD - Huntingdonshire - Care,Supported Living
Cambridgeshire County Council,04-Jan-23,51301910855,-554.26,SOCIAL CARE SOLUTIONS LTD,CARE ESTABLISHMENT,LD - Hunts Locality - Cost of Care,LD - Huntingdonshire - Care,Supported Living
Cambridgeshire County Council,04-Jan-23,51301910855,-554.26,SOCIAL CARE SOLUTIONS LTD,CARE ESTABLISHMENT,LD - Hunts Locality - Cost of Care,LD - Huntingdonshire - Care,Supported Living
Cambridgeshire County Council,04-Jan-23,51301910855,-554.26,SOCIAL CARE SOLUTIONS LTD,CARE ESTABLISHMENT,LD - Hunts Locality - Cost of Care,LD - Huntingdonshire - Care,Supported Living
Cambridgeshire County Council,04-Jan-23,51301910855,-554.26,SOCIAL CARE SOLUTIONS LTD,CARE ESTABLISHMENT,LD - Hunts Locality - Cost of Care,LD - Huntingdonshire - Care,Supported Living
Cambridgeshire County Council,04-Jan-23,51301910855,-554.26,SOCIAL CARE SOLUTIONS LTD,CARE ESTABLISHMENT,LD - Hunts Locality - Cost of Care,LD - Huntingdonshire - Care,Supported Living
Cambridgeshire County Council,04-Jan-23,51301910855,-554.26,SOCIAL CARE SOLUTIONS LTD,CARE ESTABLISHMENT,LD - Hunts Locality - Cost of Care,LD - Huntingdonshire - Care,Supported Living
Cambridgeshire County Council,04-Jan-23,51301910855,-554.26,SOCIAL CARE SOLUTIONS LTD,CARE ESTABLISHMENT,LD - Hunts Locality - Cost of Care,LD - Huntingdonshire - Care,Supported Living
Cambridgeshire County Council,04-Jan-23,51301910855,-554.26,SOCIAL CARE SOLUTIONS LTD,CARE ESTABLISHMENT,LD - Hunts Locality - Cost of Care,LD - Huntingdonshire - Care,Supported Living
Cambridgeshire County Council,04-Jan-23,51301910855,-554.26,SOCIAL CARE SOLUTIONS LTD,CARE ESTABLISHMENT,LD - Hunts Locality - Cost of Care,LD - Huntingdonshire - Care,Supported Living
Cambridgeshire County Council,04-Jan-23,51301910855,-554.26,SOCIAL CARE SOLUTIONS LTD,CARE ESTABLISHMENT,LD - Hunts Locality - Cost of Care,LD - Huntingdonshire - Care,Supported Living
Cambridgeshire County Council,04-Jan-23,51301910855,-554.26,SOCIAL CARE SOLUTIONS LTD,CARE ESTABLISHMENT,LD - Hunts Locality - Cost of Care,LD - Huntingdonshire - Care,Supported Living
Cambridgeshire County Council,04-Jan-23,51301910855,-554.26,SOCIAL CARE SOLUTIONS LTD,CARE ESTABLISHMENT,LD - Hunts Locality - Cost of Care,LD - Huntingdonshire - Care,Supported Living
Cambridgeshire County Council,04-Jan-23,51301910855,-554.26,SOCIAL CARE SOLUTIONS LTD,CARE ESTABLISHMENT,LD - Hunts Locality - Cost of Care,LD - Huntingdonshire - Care,Supported Living
Cambridgeshire County Council,04-Jan-23,51301910855,-554.26,SOCIAL CARE SOLUTIONS LTD,CARE ESTABLISHMENT,LD - Hunts Locality - Cost of Care,LD - Huntingdonshire - Care,Supported Living
Cambridgeshire County Council,04-Jan-23,51301910855,-554.26,SOCIAL CARE SOLUTIONS LTD,CARE ESTABLISHMENT,LD - Hunts Locality - Cost of Care,LD - Huntingdonshire - Care,Supported Living
Cambridgeshire County Council,04-Jan-23,51301910855,-554.26,SOCIAL CARE SOLUTIONS LTD,CARE ESTABLISHMENT,LD - Hunts Locality - Cost of Care,LD - Huntingdonshire - Care,Supported Living
Cambridgeshire County Council,04-Jan-23,51301910855,-554.26,SOCIAL CARE SOLUTIONS LTD,CARE ESTABLISHMENT,LD - Hunts Locality - Cost of Care,LD - Huntingdonshire - Care,Supported Living
Cambridgeshire County Council,04-Jan-23,51301910855,-554.26,SOCIAL CARE SOLUTIONS LTD,CARE ESTABLISHMENT,LD - Hunts Locality - Cost of Care,LD - Huntingdonshire - Care,Supported Living
Cambridgeshire County Council,04-Jan-23,51301910855,-554.26,SOCIAL CARE SOLUTIONS LTD,CARE ESTABLISHMENT,LD - Hunts Locality - Cost of Care,LD - Huntingdonshire - Care,Supported Living
Cambridgeshire County Council,04-Jan-23,51301910855,-554.26,SOCIAL CARE SOLUTIONS LTD,CARE ESTABLISHMENT,LD - Hunts Locality - Cost of Care,LD - Huntingdonshire - Care,Supported Living
Cambridgeshire County Council,04-Jan-23,51301910851,-527.33,SOCIAL CARE SOLUTIONS LTD,CARE ESTABLISHMENT,LD - Fenland Locality - Cost of Care,LD - Fenland  - Care,Supported Living
Cambridgeshire County Council,04-Jan-23,51301910851,-509.25,SOCIAL CARE SOLUTIONS LTD,CARE ESTABLISHMENT,LD - Fenland Locality - Cost of Care,LD - Fenland  - Care,Supported Living
Cambridgeshire County Council,04-Jan-23,51301910851,508.41,SOCIAL CARE SOLUTIONS LTD,CARE ESTABLISHMENT,LD - Fenland Locality - Cost of Care,LD - Fenland  - Care,Supported Living
Cambridgeshire County Council,04-Jan-23,51301910841,517.46,ATLAS HOME SUPPORT,CARE ESTABLISHMENT,LD - City Locality - Cost of Care,LD - City - Care,Supported Living
Cambridgeshire County Council,04-Jan-23,51301910841,517.46,ATLAS HOME SUPPORT,CARE ESTABLISHMENT,LD - City Locality - Cost of Care,LD - City - Care,Supported Living
Cambridgeshire County Council,04-Jan-23,51301910841,517.46,ATLAS HOME SUPPORT,CARE ESTABLISHMENT,LD - City Locality - Cost of Care,LD - City - Care,Supported Living
Cambridgeshire County Council,04-Jan-23,51301910841,517.46,ATLAS HOME SUPPORT,CARE ESTABLISHMENT,LD - City Locality - Cost of Care,LD - City - Care,Supported Living
Cambridgeshire County Council,04-Jan-23,51301910841,517.46,ATLAS HOME SUPPORT,CARE ESTABLISHMENT,LD - City Locality - Cost of Care,LD - City - Care,Supported Living
Cambridgeshire County Council,04-Jan-23,51301910841,517.46,ATLAS HOME SUPPORT,CARE ESTABLISHMENT,LD - City Locality - Cost of Care,LD - City - Care,Supported Living
Cambridgeshire County Council,04-Jan-23,51301910841,517.46,ATLAS HOME SUPPORT,CARE ESTABLISHMENT,LD - City Locality - Cost of Care,LD - City - Care,Supported Living
Cambridgeshire County Council,04-Jan-23,51301910841,517.46,ATLAS HOME SUPPORT,CARE ESTABLISHMENT,LD - City Locality - Cost of Care,LD - City - Care,Supported Living
Cambridgeshire County Council,04-Jan-23,51301910841,517.46,ATLAS HOME SUPPORT,CARE ESTABLISHMENT,LD - City Locality - Cost of Care,LD - City - Care,Supported Living
Cambridgeshire County Council,04-Jan-23,51301910841,517.46,ATLAS HOME SUPPORT,CARE ESTABLISHMENT,LD - City Locality - Cost of Care,LD - City - Care,Supported Living
Cambridgeshire County Council,04-Jan-23,51301910841,517.46,ATLAS HOME SUPPORT,CARE ESTABLISHMENT,LD - City Locality - Cost of Care,LD - City - Care,Supported Living
Cambridgeshire County Council,04-Jan-23,51301910841,517.46,ATLAS HOME SUPPORT,CARE ESTABLISHMENT,LD - City Locality - Cost of Care,LD - City - Care,Supported Living
Cambridgeshire County Council,04-Jan-23,51301910841,517.46,ATLAS HOME SUPPORT,CARE ESTABLISHMENT,LD - City Locality - Cost of Care,LD - City - Care,Supported Living
Cambridgeshire County Council,04-Jan-23,51301910841,517.46,ATLAS HOME SUPPORT,CARE ESTABLISHMENT,LD - City Locality - Cost of Care,LD - City - Care,Supported Living
Cambridgeshire County Council,04-Jan-23,51301910841,517.46,ATLAS HOME SUPPORT,CARE ESTABLISHMENT,LD - City Locality - Cost of Care,LD - City - Care,Supported Living
Cambridgeshire County Council,04-Jan-23,51301910841,517.46,ATLAS HOME SUPPORT,CARE ESTABLISHMENT,LD - City Locality - Cost of Care,LD - City - Care,Supported Living
Cambridgeshire County Council,04-Jan-23,51301910841,517.46,ATLAS HOME SUPPORT,CARE ESTABLISHMENT,LD - City Locality - Cost of Care,LD - City - Care,Supported Living
Cambridgeshire County Council,04-Jan-23,51301910841,517.46,ATLAS HOME SUPPORT,CARE ESTABLISHMENT,LD - City Locality - Cost of Care,LD - City - Care,Supported Living
Cambridgeshire County Council,04-Jan-23,51301910841,517.46,ATLAS HOME SUPPORT,CARE ESTABLISHMENT,LD - City Locality - Cost of Care,LD - City - Care,Supported Living
Cambridgeshire County Council,04-Jan-23,51301910841,517.46,ATLAS HOME SUPPORT,CARE ESTABLISHMENT,LD - City Locality - Cost of Care,LD - City - Care,Supported Living
Cambridgeshire County Council,04-Jan-23,51301910851,526.06,SOCIAL CARE SOLUTIONS LTD,CARE ESTABLISHMENT,LD - Fenland Locality - Cost of Care,LD - Fenland  - Care,Supported Living
Cambridgeshire County Council,04-Jan-23,51301910871,536.70,Ridex Cambs Ltd,COMPANY,LD - Hunts Locality - Cost of Care,LD - Huntingdonshire - Care,Social Care Transport
Cambridgeshire County Council,04-Jan-23,51301910851,544.73,SOCIAL CARE SOLUTIONS LTD,CARE ESTABLISHMENT,LD - Fenland Locality - Cost of Care,LD - Fenland  - Care,Supported Living
Cambridgeshire County Council,04-Jan-23,51301910701,561.00,FENLAND DISTRICT COUNCIL,OTHER PUBLIC BODIES,Waste Disposal incl PFI,Whittlesey HWRC,Business rates
Cambridgeshire County Council,04-Jan-23,51301910855,572.55,SOCIAL CARE SOLUTIONS LTD,CARE ESTABLISHMENT,LD - Hunts Locality - Cost of Care,LD - Huntingdonshire - Care,Supported Living
Cambridgeshire County Council,04-Jan-23,51301910855,572.55,SOCIAL CARE SOLUTIONS LTD,CARE ESTABLISHMENT,LD - Hunts Locality - Cost of Care,LD - Huntingdonshire - Care,Supported Living
Cambridgeshire County Council,04-Jan-23,51301910855,572.55,SOCIAL CARE SOLUTIONS LTD,CARE ESTABLISHMENT,LD - Hunts Locality - Cost of Care,LD - Huntingdonshire - Care,Supported Living
Cambridgeshire County Council,04-Jan-23,51301910855,572.55,SOCIAL CARE SOLUTIONS LTD,CARE ESTABLISHMENT,LD - Hunts Locality - Cost of Care,LD - Huntingdonshire - Care,Supported Living
Cambridgeshire County Council,04-Jan-23,51301910855,572.55,SOCIAL CARE SOLUTIONS LTD,CARE ESTABLISHMENT,LD - Hunts Locality - Cost of Care,LD - Huntingdonshire - Care,Supported Living
Cambridgeshire County Council,04-Jan-23,51301910855,572.55,SOCIAL CARE SOLUTIONS LTD,CARE ESTABLISHMENT,LD - Hunts Locality - Cost of Care,LD - Huntingdonshire - Care,Supported Living
Cambridgeshire County Council,04-Jan-23,51301910855,572.55,SOCIAL CARE SOLUTIONS LTD,CARE ESTABLISHMENT,LD - Hunts Locality - Cost of Care,LD - Huntingdonshire - Care,Supported Living
Cambridgeshire County Council,04-Jan-23,51301910855,572.55,SOCIAL CARE SOLUTIONS LTD,CARE ESTABLISHMENT,LD - Hunts Locality - Cost of Care,LD - Huntingdonshire - Care,Supported Living
Cambridgeshire County Council,04-Jan-23,51301910855,572.55,SOCIAL CARE SOLUTIONS LTD,CARE ESTABLISHMENT,LD - Hunts Locality - Cost of Care,LD - Huntingdonshire - Care,Supported Living
Cambridgeshire County Council,04-Jan-23,51301910855,572.55,SOCIAL CARE SOLUTIONS LTD,CARE ESTABLISHMENT,LD - Hunts Locality - Cost of Care,LD - Huntingdonshire - Care,Supported Living
Cambridgeshire County Council,04-Jan-23,51301910855,572.55,SOCIAL CARE SOLUTIONS LTD,CARE ESTABLISHMENT,LD - Hunts Locality - Cost of Care,LD - Huntingdonshire - Care,Supported Living
Cambridgeshire County Council,04-Jan-23,51301910855,572.55,SOCIAL CARE SOLUTIONS LTD,CARE ESTABLISHMENT,LD - Hunts Locality - Cost of Care,LD - Huntingdonshire - Care,Supported Living
Cambridgeshire County Council,04-Jan-23,51301910855,572.55,SOCIAL CARE SOLUTIONS LTD,CARE ESTABLISHMENT,LD - Hunts Locality - Cost of Care,LD - Huntingdonshire - Care,Supported Living
Cambridgeshire County Council,04-Jan-23,51301910855,572.55,SOCIAL CARE SOLUTIONS LTD,CARE ESTABLISHMENT,LD - Hunts Locality - Cost of Care,LD - Huntingdonshire - Care,Supported Living
Cambridgeshire County Council,04-Jan-23,51301910855,572.55,SOCIAL CARE SOLUTIONS LTD,CARE ESTABLISHMENT,LD - Hunts Locality - Cost of Care,LD - Huntingdonshire - Care,Supported Living
Cambridgeshire County Council,04-Jan-23,51301910855,572.55,SOCIAL CARE SOLUTIONS LTD,CARE ESTABLISHMENT,LD - Hunts Locality - Cost of Care,LD - Huntingdonshire - Care,Supported Living
Cambridgeshire County Council,04-Jan-23,51301910855,572.55,SOCIAL CARE SOLUTIONS LTD,CARE ESTABLISHMENT,LD - Hunts Locality - Cost of Care,LD - Huntingdonshire - Care,Supported Living
Cambridgeshire County Council,04-Jan-23,51301910855,572.55,SOCIAL CARE SOLUTIONS LTD,CARE ESTABLISHMENT,LD - Hunts Locality - Cost of Care,LD - Huntingdonshire - Care,Supported Living
Cambridgeshire County Council,04-Jan-23,51301910855,572.55,SOCIAL CARE SOLUTIONS LTD,CARE ESTABLISHMENT,LD - Hunts Locality - Cost of Care,LD - Huntingdonshire - Care,Supported Living
Cambridgeshire County Council,04-Jan-23,51301910855,572.55,SOCIAL CARE SOLUTIONS LTD,CARE ESTABLISHMENT,LD - Hunts Locality - Cost of Care,LD - Huntingdonshire - Care,Supported Living
Cambridgeshire County Council,04-Jan-23,51301910855,572.55,SOCIAL CARE SOLUTIONS LTD,CARE ESTABLISHMENT,LD - Hunts Locality - Cost of Care,LD - Huntingdonshire - Care,Supported Living
Cambridgeshire County Council,04-Jan-23,51301910855,572.55,SOCIAL CARE SOLUTIONS LTD,CARE ESTABLISHMENT,LD - Hunts Locality - Cost of Care,LD - Huntingdonshire - Care,Supported Living
Cambridgeshire County Council,04-Jan-23,51301910855,572.55,SOCIAL CARE SOLUTIONS LTD,CARE ESTABLISHMENT,LD - Hunts Locality - Cost of Care,LD - Huntingdonshire - Care,Supported Living
Cambridgeshire County Council,04-Jan-23,51301910855,572.55,SOCIAL CARE SOLUTIONS LTD,CARE ESTABLISHMENT,LD - Hunts Locality - Cost of Care,LD - Huntingdonshire - Care,Supported Living
Cambridgeshire County Council,04-Jan-23,51301910855,572.55,SOCIAL CARE SOLUTIONS LTD,CARE ESTABLISHMENT,LD - Hunts Locality - Cost of Care,LD - Huntingdonshire - Care,Supported Living
Cambridgeshire County Council,04-Jan-23,51301910855,572.55,SOCIAL CARE SOLUTIONS LTD,CARE ESTABLISHMENT,LD - Hunts Locality - Cost of Care,LD - Huntingdonshire - Care,Supported Living
Cambridgeshire County Council,04-Jan-23,51301910855,572.55,SOCIAL CARE SOLUTIONS LTD,CARE ESTABLISHMENT,LD - Hunts Locality - Cost of Care,LD - Huntingdonshire - Care,Supported Living
Cambridgeshire County Council,04-Jan-23,51301910855,572.55,SOCIAL CARE SOLUTIONS LTD,CARE ESTABLISHMENT,LD - Hunts Locality - Cost of Care,LD - Huntingdonshire - Care,Supported Living
Cambridgeshire County Council,04-Jan-23,51301910855,572.55,SOCIAL CARE SOLUTIONS LTD,CARE ESTABLISHMENT,LD - Hunts Locality - Cost of Care,LD - Huntingdonshire - Care,Supported Living
Cambridgeshire County Council,04-Jan-23,51301910855,572.55,SOCIAL CARE SOLUTIONS LTD,CARE ESTABLISHMENT,LD - Hunts Locality - Cost of Care,LD - Huntingdonshire - Care,Supported Living
Cambridgeshire County Council,04-Jan-23,51301910855,572.55,SOCIAL CARE SOLUTIONS LTD,CARE ESTABLISHMENT,LD - Hunts Locality - Cost of Care,LD - Huntingdonshire - Care,Supported Living
Cambridgeshire County Council,04-Jan-23,51301910855,572.55,SOCIAL CARE SOLUTIONS LTD,CARE ESTABLISHMENT,LD - Hunts Locality - Cost of Care,LD - Huntingdonshire - Care,Supported Living
Cambridgeshire County Council,04-Jan-23,51301910855,572.55,SOCIAL CARE SOLUTIONS LTD,CARE ESTABLISHMENT,LD - Hunts Locality - Cost of Care,LD - Huntingdonshire - Care,Supported Living
Cambridgeshire County Council,04-Jan-23,51301910855,572.55,SOCIAL CARE SOLUTIONS LTD,CARE ESTABLISHMENT,LD - Hunts Locality - Cost of Care,LD - Huntingdonshire - Care,Supported Living
Cambridgeshire County Council,04-Jan-23,51301910855,572.55,SOCIAL CARE SOLUTIONS LTD,CARE ESTABLISHMENT,LD - Hunts Locality - Cost of Care,LD - Huntingdonshire - Care,Supported Living
Cambridgeshire County Council,04-Jan-23,51301910855,572.55,SOCIAL CARE SOLUTIONS LTD,CARE ESTABLISHMENT,LD - Hunts Locality - Cost of Care,LD - Huntingdonshire - Care,Supported Living
Cambridgeshire County Council,04-Jan-23,51301910855,572.55,SOCIAL CARE SOLUTIONS LTD,CARE ESTABLISHMENT,LD - Hunts Locality - Cost of Care,LD - Huntingdonshire - Care,Supported Living
Cambridgeshire County Council,04-Jan-23,51301910855,572.55,SOCIAL CARE SOLUTIONS LTD,CARE ESTABLISHMENT,LD - Hunts Locality - Cost of Care,LD - Huntingdonshire - Care,Supported Living
Cambridgeshire County Council,04-Jan-23,51301910855,572.55,SOCIAL CARE SOLUTIONS LTD,CARE ESTABLISHMENT,LD - Hunts Locality - Cost of Care,LD - Huntingdonshire - Care,Supported Living
Cambridgeshire County Council,04-Jan-23,51301910855,572.55,SOCIAL CARE SOLUTIONS LTD,CARE ESTABLISHMENT,LD - Hunts Locality - Cost of Care,LD - Huntingdonshire - Care,Supported Living
Cambridgeshire County Council,04-Jan-23,51301910855,572.55,SOCIAL CARE SOLUTIONS LTD,CARE ESTABLISHMENT,LD - Hunts Locality - Cost of Care,LD - Huntingdonshire - Care,Supported Living
Cambridgeshire County Council,04-Jan-23,51301910855,572.55,SOCIAL CARE SOLUTIONS LTD,CARE ESTABLISHMENT,LD - Hunts Locality - Cost of Care,LD - Huntingdonshire - Care,Supported Living
Cambridgeshire County Council,04-Jan-23,51301910855,572.55,SOCIAL CARE SOLUTIONS LTD,CARE ESTABLISHMENT,LD - Hunts Locality - Cost of Care,LD - Huntingdonshire - Care,Supported Living
Cambridgeshire County Council,04-Jan-23,51301910855,572.55,SOCIAL CARE SOLUTIONS LTD,CARE ESTABLISHMENT,LD - Hunts Locality - Cost of Care,LD - Huntingdonshire - Care,Supported Living
Cambridgeshire County Council,04-Jan-23,51301910855,572.55,SOCIAL CARE SOLUTIONS LTD,CARE ESTABLISHMENT,LD - Hunts Locality - Cost of Care,LD - Huntingdonshire - Care,Supported Living
Cambridgeshire County Council,04-Jan-23,51301910855,572.55,SOCIAL CARE SOLUTIONS LTD,CARE ESTABLISHMENT,LD - Hunts Locality - Cost of Care,LD - Huntingdonshire - Care,Supported Living
Cambridgeshire County Council,04-Jan-23,51301910855,572.55,SOCIAL CARE SOLUTIONS LTD,CARE ESTABLISHMENT,LD - Hunts Locality - Cost of Care,LD - Huntingdonshire - Care,Supported Living
Cambridgeshire County Council,04-Jan-23,51301910855,572.55,SOCIAL CARE SOLUTIONS LTD,CARE ESTABLISHMENT,LD - Hunts Locality - Cost of Care,LD - Huntingdonshire - Care,Supported Living
Cambridgeshire County Council,04-Jan-23,51301910855,572.55,SOCIAL CARE SOLUTIONS LTD,CARE ESTABLISHMENT,LD - Hunts Locality - Cost of Care,LD - Huntingdonshire - Care,Supported Living
Cambridgeshire County Council,04-Jan-23,51301910855,572.55,SOCIAL CARE SOLUTIONS LTD,CARE ESTABLISHMENT,LD - Hunts Locality - Cost of Care,LD - Huntingdonshire - Care,Supported Living
Cambridgeshire County Council,04-Jan-23,51301910855,572.55,SOCIAL CARE SOLUTIONS LTD,CARE ESTABLISHMENT,LD - Hunts Locality - Cost of Care,LD - Huntingdonshire - Care,Supported Living
Cambridgeshire County Council,04-Jan-23,51301910855,572.55,SOCIAL CARE SOLUTIONS LTD,CARE ESTABLISHMENT,LD - Hunts Locality - Cost of Care,LD - Huntingdonshire - Care,Supported Living
Cambridgeshire County Council,04-Jan-23,51301910855,572.55,SOCIAL CARE SOLUTIONS LTD,CARE ESTABLISHMENT,LD - Hunts Locality - Cost of Care,LD - Huntingdonshire - Care,Supported Living
Cambridgeshire County Council,04-Jan-23,51301910855,572.55,SOCIAL CARE SOLUTIONS LTD,CARE ESTABLISHMENT,LD - Hunts Locality - Cost of Care,LD - Huntingdonshire - Care,Supported Living
Cambridgeshire County Council,04-Jan-23,51301910855,572.55,SOCIAL CARE SOLUTIONS LTD,CARE ESTABLISHMENT,LD - Hunts Locality - Cost of Care,LD - Huntingdonshire - Care,Supported Living
Cambridgeshire County Council,04-Jan-23,51301910855,572.55,SOCIAL CARE SOLUTIONS LTD,CARE ESTABLISHMENT,LD - Hunts Locality - Cost of Care,LD - Huntingdonshire - Care,Supported Living
Cambridgeshire County Council,04-Jan-23,51301910855,572.55,SOCIAL CARE SOLUTIONS LTD,CARE ESTABLISHMENT,LD - Hunts Locality - Cost of Care,LD - Huntingdonshire - Care,Supported Living
Cambridgeshire County Council,04-Jan-23,51301910855,572.55,SOCIAL CARE SOLUTIONS LTD,CARE ESTABLISHMENT,LD - Hunts Locality - Cost of Care,LD - Huntingdonshire - Care,Supported Living
Cambridgeshire County Council,04-Jan-23,51301910855,572.55,SOCIAL CARE SOLUTIONS LTD,CARE ESTABLISHMENT,LD - Hunts Locality - Cost of Care,LD - Huntingdonshire - Care,Supported Living
Cambridgeshire County Council,04-Jan-23,51301910855,572.55,SOCIAL CARE SOLUTIONS LTD,CARE ESTABLISHMENT,LD - Hunts Locality - Cost of Care,LD - Huntingdonshire - Care,Supported Living
Cambridgeshire County Council,04-Jan-23,51301910855,572.55,SOCIAL CARE SOLUTIONS LTD,CARE ESTABLISHMENT,LD - Hunts Locality - Cost of Care,LD - Huntingdonshire - Care,Supported Living
Cambridgeshire County Council,04-Jan-23,51301910855,572.55,SOCIAL CARE SOLUTIONS LTD,CARE ESTABLISHMENT,LD - Hunts Locality - Cost of Care,LD - Huntingdonshire - Care,Supported Living
Cambridgeshire County Council,04-Jan-23,51301910855,572.55,SOCIAL CARE SOLUTIONS LTD,CARE ESTABLISHMENT,LD - Hunts Locality - Cost of Care,LD - Huntingdonshire - Care,Supported Living
Cambridgeshire County Council,04-Jan-23,51301910855,572.55,SOCIAL CARE SOLUTIONS LTD,CARE ESTABLISHMENT,LD - Hunts Locality - Cost of Care,LD - Huntingdonshire - Care,Supported Living
Cambridgeshire County Council,04-Jan-23,51301910855,572.55,SOCIAL CARE SOLUTIONS LTD,CARE ESTABLISHMENT,LD - Hunts Locality - Cost of Care,LD - Huntingdonshire - Care,Supported Living
Cambridgeshire County Council,04-Jan-23,51301910855,572.55,SOCIAL CARE SOLUTIONS LTD,CARE ESTABLISHMENT,LD - Hunts Locality - Cost of Care,LD - Huntingdonshire - Care,Supported Living
Cambridgeshire County Council,04-Jan-23,51301910855,572.55,SOCIAL CARE SOLUTIONS LTD,CARE ESTABLISHMENT,LD - Hunts Locality - Cost of Care,LD - Huntingdonshire - Care,Supported Living
Cambridgeshire County Council,04-Jan-23,51301910855,572.55,SOCIAL CARE SOLUTIONS LTD,CARE ESTABLISHMENT,LD - Hunts Locality - Cost of Care,LD - Huntingdonshire - Care,Supported Living
Cambridgeshire County Council,04-Jan-23,51301910855,572.55,SOCIAL CARE SOLUTIONS LTD,CARE ESTABLISHMENT,LD - Hunts Locality - Cost of Care,LD - Huntingdonshire - Care,Supported Living
Cambridgeshire County Council,04-Jan-23,51301910855,572.55,SOCIAL CARE SOLUTIONS LTD,CARE ESTABLISHMENT,LD - Hunts Locality - Cost of Care,LD - Huntingdonshire - Care,Supported Living
Cambridgeshire County Council,04-Jan-23,51301910855,572.55,SOCIAL CARE SOLUTIONS LTD,CARE ESTABLISHMENT,LD - Hunts Locality - Cost of Care,LD - Huntingdonshire - Care,Supported Living
Cambridgeshire County Council,04-Jan-23,51301910855,572.55,SOCIAL CARE SOLUTIONS LTD,CARE ESTABLISHMENT,LD - Hunts Locality - Cost of Care,LD - Huntingdonshire - Care,Supported Living
Cambridgeshire County Council,04-Jan-23,51301910855,572.55,SOCIAL CARE SOLUTIONS LTD,CARE ESTABLISHMENT,LD - Hunts Locality - Cost of Care,LD - Huntingdonshire - Care,Supported Living
Cambridgeshire County Council,04-Jan-23,51301910855,572.55,SOCIAL CARE SOLUTIONS LTD,CARE ESTABLISHMENT,LD - Hunts Locality - Cost of Care,LD - Huntingdonshire - Care,Supported Living
Cambridgeshire County Council,04-Jan-23,51301910855,572.55,SOCIAL CARE SOLUTIONS LTD,CARE ESTABLISHMENT,LD - Hunts Locality - Cost of Care,LD - Huntingdonshire - Care,Supported Living
Cambridgeshire County Council,04-Jan-23,51301910855,572.55,SOCIAL CARE SOLUTIONS LTD,CARE ESTABLISHMENT,LD - Hunts Locality - Cost of Care,LD - Huntingdonshire - Care,Supported Living
Cambridgeshire County Council,04-Jan-23,51301910855,572.55,SOCIAL CARE SOLUTIONS LTD,CARE ESTABLISHMENT,LD - Hunts Locality - Cost of Care,LD - Huntingdonshire - Care,Supported Living
Cambridgeshire County Council,04-Jan-23,51301910855,572.55,SOCIAL CARE SOLUTIONS LTD,CARE ESTABLISHMENT,LD - Hunts Locality - Cost of Care,LD - Huntingdonshire - Care,Supported Living
Cambridgeshire County Council,04-Jan-23,51301910709,574.00,FENLAND DISTRICT COUNCIL,OTHER PUBLIC BODIES,Corporate Offices,March Community Centre (C&I),Business rates
Cambridgeshire County Council,04-Jan-23,51301910842,583.02,SOCIAL CARE SOLUTIONS LTD,CARE ESTABLISHMENT,LD - Fenland Locality - Cost of Care,LD - Fenland  - Care,Supported Living
Cambridgeshire County Council,04-Jan-23,51301910842,583.02,SOCIAL CARE SOLUTIONS LTD,CARE ESTABLISHMENT,LD - Fenland Locality - Cost of Care,LD - Fenland  - Care,Supported Living
Cambridgeshire County Council,04-Jan-23,51301910842,583.02,SOCIAL CARE SOLUTIONS LTD,CARE ESTABLISHMENT,LD - Fenland Locality - Cost of Care,LD - Fenland  - Care,Supported Living
Cambridgeshire County Council,04-Jan-23,51301910727,586.00,HUNTINGDONSHIRE DISTRICT COUNCIL,OTHER PUBLIC BODIES,Corporate Offices,Yaxley Library,Business rates
Cambridgeshire County Council,04-Jan-23,51301910847,600.00,THE HILLINGS LIMITED,CARE ESTABLISHMENT,OPPD - Cost of Care - Huntingdon - Over 65,Hunts OP Team - Care,Short Term Other
Cambridgeshire County Council,04-Jan-23,51301910842,620.78,SOCIAL CARE SOLUTIONS LTD,CARE ESTABLISHMENT,LD - Fenland Locality - Cost of Care,LD - Fenland  - Care,Supported Living
Cambridgeshire County Council,04-Jan-23,51301910842,620.78,SOCIAL CARE SOLUTIONS LTD,CARE ESTABLISHMENT,LD - Fenland Locality - Cost of Care,LD - Fenland  - Care,Supported Living
Cambridgeshire County Council,04-Jan-23,51301910842,620.78,SOCIAL CARE SOLUTIONS LTD,CARE ESTABLISHMENT,LD - Fenland Locality - Cost of Care,LD - Fenland  - Care,Supported Living
Cambridgeshire County Council,04-Jan-23,51301910842,620.78,SOCIAL CARE SOLUTIONS LTD,CARE ESTABLISHMENT,LD - Fenland Locality - Cost of Care,LD - Fenland  - Care,Supported Living
Cambridgeshire County Council,04-Jan-23,51301910918,630.40,STAR CABS LTD,TRADE SUPPLIER,LD - City Locality - Cost of Care,LD - City - Care,Social Care Transport
Cambridgeshire County Council,04-Jan-23,51301910858,630.99,SOCIAL CARE SOLUTIONS LTD,CARE ESTABLISHMENT,LD - Fenland Locality - Cost of Care,LD - Fenland  - Care,Supported Living
Cambridgeshire County Council,04-Jan-23,51301910851,631.27,SOCIAL CARE SOLUTIONS LTD,CARE ESTABLISHMENT,LD - Fenland Locality - Cost of Care,LD - Fenland  - Care,Supported Living
Cambridgeshire County Council,04-Jan-23,51301910851,631.27,SOCIAL CARE SOLUTIONS LTD,CARE ESTABLISHMENT,LD - Fenland Locality - Cost of Care,LD - Fenland  - Care,Supported Living
Cambridgeshire County Council,04-Jan-23,51301910851,631.27,SOCIAL CARE SOLUTIONS LTD,CARE ESTABLISHMENT,LD - Fenland Locality - Cost of Care,LD - Fenland  - Care,Supported Living
Cambridgeshire County Council,04-Jan-23,51301910341,648.00,NATIONAL TEACHING & ADVISORY SERVICE FOR LOOKED AFTER CHILDREN (NT & AS),OTHER PUBLIC BODIES,Out of School Tuition,Out of School Provision - Education and Settings,Independent School Placements
Cambridgeshire County Council,04-Jan-23,51301910627,658.94,Team Q Maintenance Ltd,COMPANY,Corporate Offices,Scott House,Building Structural Maintenance - Reactive
Cambridgeshire County Council,04-Jan-23,51301899297,673.08,Pathfinder Legal Services Limited,TRADE SUPPLIER,AD IT & Digital Services,ITDS,External Legal Fees
Cambridgeshire County Council,04-Jan-23,51301910720,686.00,HUNTINGDONSHIRE DISTRICT COUNCIL,OTHER PUBLIC BODIES,Corporate Offices,"Earith, Somersham and Warboys Children's Centre",Business rates
Cambridgeshire County Council,04-Jan-23,51301910881,693.77,T & T PRIVATE HIRE LTD,TRADE SUPPLIER,LAC Transport,LAC Transport -  Short Breaks,Social Care Transport
Cambridgeshire County Council,04-Jan-23,51301910847,700.00,THE HILLINGS LIMITED,CARE ESTABLISHMENT,OPPD - Cost of Care - Huntingdon - Over 65,Hunts OP Team - Care,Short Term Other
Cambridgeshire County Council,04-Jan-23,51301910848,700.00,THE HILLINGS LIMITED,CARE ESTABLISHMENT,OPPD - Cost of Care - Huntingdon - Over 65,Hunts OP Team - Care,Short Term Other
Cambridgeshire County Council,04-Jan-23,51301910848,700.00,THE HILLINGS LIMITED,CARE ESTABLISHMENT,OPPD - Cost of Care - Huntingdon - Over 65,Hunts OP Team - Care,Short Term Other
Cambridgeshire County Council,04-Jan-23,51301910842,703.05,SOCIAL CARE SOLUTIONS LTD,CARE ESTABLISHMENT,LD - Fenland Locality - Cost of Care,LD - Fenland  - Care,Supported Living
Cambridgeshire County Council,04-Jan-23,51301910697,711.00,FENLAND DISTRICT COUNCIL,OTHER PUBLIC BODIES,Waste Disposal incl PFI,March HWRC,Business rates
Cambridgeshire County Council,04-Jan-23,51301910851,726.31,SOCIAL CARE SOLUTIONS LTD,CARE ESTABLISHMENT,LD - Fenland Locality - Cost of Care,LD - Fenland  - Care,Supported Living
Cambridgeshire County Council,04-Jan-23,51301910842,728.78,SOCIAL CARE SOLUTIONS LTD,CARE ESTABLISHMENT,LD - Fenland Locality - Cost of Care,LD - Fenland  - Care,Supported Living
Cambridgeshire County Council,04-Jan-23,51301910842,728.78,SOCIAL CARE SOLUTIONS LTD,CARE ESTABLISHMENT,LD - Fenland Locality - Cost of Care,LD - Fenland  - Care,Supported Living
Cambridgeshire County Council,04-Jan-23,51301910877,734.74,T & T PRIVATE HIRE LTD,TRADE SUPPLIER,LAC Transport,LAC Transport - Home to School,Social Care Transport
Cambridgeshire County Council,04-Jan-23,51301910743,736.00,HUNTINGDONSHIRE DISTRICT COUNCIL,OTHER PUBLIC BODIES,Capital Receipts Expenses,Capital Receipts Expenses,Business rates
Cambridgeshire County Council,04-Jan-23,51301910851,736.48,SOCIAL CARE SOLUTIONS LTD,CARE ESTABLISHMENT,LD - Fenland Locality - Cost of Care,LD - Fenland  - Care,Supported Living
Cambridgeshire County Council,04-Jan-23,51301910851,736.48,SOCIAL CARE SOLUTIONS LTD,CARE ESTABLISHMENT,LD - Fenland Locality - Cost of Care,LD - Fenland  - Care,Supported Living
Cambridgeshire County Council,04-Jan-23,51301910851,736.48,SOCIAL CARE SOLUTIONS LTD,CARE ESTABLISHMENT,LD - Fenland Locality - Cost of Care,LD - Fenland  - Care,Supported Living
Cambridgeshire County Council,04-Jan-23,51301910851,736.48,SOCIAL CARE SOLUTIONS LTD,CARE ESTABLISHMENT,LD - Fenland Locality - Cost of Care,LD - Fenland  - Care,Supported Living
Cambridgeshire County Council,04-Jan-23,51301910851,736.48,SOCIAL CARE SOLUTIONS LTD,CARE ESTABLISHMENT,LD - Fenland Locality - Cost of Care,LD - Fenland  - Care,Supported Living
Cambridgeshire County Council,04-Jan-23,51301910851,736.48,SOCIAL CARE SOLUTIONS LTD,CARE ESTABLISHMENT,LD - Fenland Locality - Cost of Care,LD - Fenland  - Care,Supported Living
Cambridgeshire County Council,04-Jan-23,51301910851,736.48,SOCIAL CARE SOLUTIONS LTD,CARE ESTABLISHMENT,LD - Fenland Locality - Cost of Care,LD - Fenland  - Care,Supported Living
Cambridgeshire County Council,04-Jan-23,51301910851,736.48,SOCIAL CARE SOLUTIONS LTD,CARE ESTABLISHMENT,LD - Fenland Locality - Cost of Care,LD - Fenland  - Care,Supported Living
Cambridgeshire County Council,04-Jan-23,51301910851,736.48,SOCIAL CARE SOLUTIONS LTD,CARE ESTABLISHMENT,LD - Fenland Locality - Cost of Care,LD - Fenland  - Care,Supported Living
Cambridgeshire County Council,04-Jan-23,51301910851,736.48,SOCIAL CARE SOLUTIONS LTD,CARE ESTABLISHMENT,LD - Fenland Locality - Cost of Care,LD - Fenland  - Care,Supported Living
Cambridgeshire County Council,04-Jan-23,51301910851,736.48,SOCIAL CARE SOLUTIONS LTD,CARE ESTABLISHMENT,LD - Fenland Locality - Cost of Care,LD - Fenland  - Care,Supported Living
Cambridgeshire County Council,04-Jan-23,51301910851,736.48,SOCIAL CARE SOLUTIONS LTD,CARE ESTABLISHMENT,LD - Fenland Locality - Cost of Care,LD - Fenland  - Care,Supported Living
Cambridgeshire County Council,04-Jan-23,51301910851,736.48,SOCIAL CARE SOLUTIONS LTD,CARE ESTABLISHMENT,LD - Fenland Locality - Cost of Care,LD - Fenland  - Care,Supported Living
Cambridgeshire County Council,04-Jan-23,51301910851,736.48,SOCIAL CARE SOLUTIONS LTD,CARE ESTABLISHMENT,LD - Fenland Locality - Cost of Care,LD - Fenland  - Care,Supported Living
Cambridgeshire County Council,04-Jan-23,51301910851,736.48,SOCIAL CARE SOLUTIONS LTD,CARE ESTABLISHMENT,LD - Fenland Locality - Cost of Care,LD - Fenland  - Care,Supported Living
Cambridgeshire County Council,04-Jan-23,51301910764,749.00,HUNTINGDONSHIRE DISTRICT COUNCIL,OTHER PUBLIC BODIES,Corporate Offices,"Unit 7 Oak Court, St Ives",Business rates
Cambridgeshire County Council,04-Jan-23,51301910890,754.80,TK Transport Solutions LTD,COMPANY,LD - Hunts Locality - Cost of Care,LD - Huntingdonshire - Care,Social Care Transport
Cambridgeshire County Council,04-Jan-23,51301910897,756.00,Private Hire 2 Go Ltd,COMPANY,LD - South Locality - Cost of Care,LD - South Cambs - Care,Social Care Transport
Cambridgeshire County Council,04-Jan-23,51301910698,761.00,FENLAND DISTRICT COUNCIL,OTHER PUBLIC BODIES,Waste Disposal incl PFI,Wisbech HWRC,Business rates
Cambridgeshire County Council,04-Jan-23,51301910851,762.62,SOCIAL CARE SOLUTIONS LTD,CARE ESTABLISHMENT,LD - Fenland Locality - Cost of Care,LD - Fenland  - Care,Supported Living
Cambridgeshire County Council,04-Jan-23,51301910851,762.62,SOCIAL CARE SOLUTIONS LTD,CARE ESTABLISHMENT,LD - Fenland Locality - Cost of Care,LD - Fenland  - Care,Supported Living
Cambridgeshire County Council,04-Jan-23,51301910851,762.62,SOCIAL CARE SOLUTIONS LTD,CARE ESTABLISHMENT,LD - Fenland Locality - Cost of Care,LD - Fenland  - Care,Supported Living
Cambridgeshire County Council,04-Jan-23,51301910851,762.62,SOCIAL CARE SOLUTIONS LTD,CARE ESTABLISHMENT,LD - Fenland Locality - Cost of Care,LD - Fenland  - Care,Supported Living
Cambridgeshire County Council,04-Jan-23,51301910851,762.62,SOCIAL CARE SOLUTIONS LTD,CARE ESTABLISHMENT,LD - Fenland Locality - Cost of Care,LD - Fenland  - Care,Supported Living
Cambridgeshire County Council,04-Jan-23,51301910851,762.62,SOCIAL CARE SOLUTIONS LTD,CARE ESTABLISHMENT,LD - Fenland Locality - Cost of Care,LD - Fenland  - Care,Supported Living
Cambridgeshire County Council,04-Jan-23,51301910851,762.62,SOCIAL CARE SOLUTIONS LTD,CARE ESTABLISHMENT,LD - Fenland Locality - Cost of Care,LD - Fenland  - Care,Supported Living
Cambridgeshire County Council,04-Jan-23,51301910851,762.62,SOCIAL CARE SOLUTIONS LTD,CARE ESTABLISHMENT,LD - Fenland Locality - Cost of Care,LD - Fenland  - Care,Supported Living
Cambridgeshire County Council,04-Jan-23,51301910851,762.62,SOCIAL CARE SOLUTIONS LTD,CARE ESTABLISHMENT,LD - Fenland Locality - Cost of Care,LD - Fenland  - Care,Supported Living
Cambridgeshire County Council,04-Jan-23,51301910851,762.62,SOCIAL CARE SOLUTIONS LTD,CARE ESTABLISHMENT,LD - Fenland Locality - Cost of Care,LD - Fenland  - Care,Supported Living
Cambridgeshire County Council,04-Jan-23,51301910851,762.62,SOCIAL CARE SOLUTIONS LTD,CARE ESTABLISHMENT,LD - Fenland Locality - Cost of Care,LD - Fenland  - Care,Supported Living
Cambridgeshire County Council,04-Jan-23,51301910851,762.62,SOCIAL CARE SOLUTIONS LTD,CARE ESTABLISHMENT,LD - Fenland Locality - Cost of Care,LD - Fenland  - Care,Supported Living
Cambridgeshire County Council,04-Jan-23,51301910851,762.62,SOCIAL CARE SOLUTIONS LTD,CARE ESTABLISHMENT,LD - Fenland Locality - Cost of Care,LD - Fenland  - Care,Supported Living
Cambridgeshire County Council,04-Jan-23,51301910851,762.62,SOCIAL CARE SOLUTIONS LTD,CARE ESTABLISHMENT,LD - Fenland Locality - Cost of Care,LD - Fenland  - Care,Supported Living
Cambridgeshire County Council,04-Jan-23,51301910851,762.62,SOCIAL CARE SOLUTIONS LTD,CARE ESTABLISHMENT,LD - Fenland Locality - Cost of Care,LD - Fenland  - Care,Supported Living
Cambridgeshire County Council,04-Jan-23,51301910851,762.62,SOCIAL CARE SOLUTIONS LTD,CARE ESTABLISHMENT,LD - Fenland Locality - Cost of Care,LD - Fenland  - Care,Supported Living
Cambridgeshire County Council,04-Jan-23,51301910851,762.62,SOCIAL CARE SOLUTIONS LTD,CARE ESTABLISHMENT,LD - Fenland Locality - Cost of Care,LD - Fenland  - Care,Supported Living
Cambridgeshire County Council,04-Jan-23,51301910851,762.62,SOCIAL CARE SOLUTIONS LTD,CARE ESTABLISHMENT,LD - Fenland Locality - Cost of Care,LD - Fenland  - Care,Supported Living
Cambridgeshire County Council,04-Jan-23,51301910851,762.62,SOCIAL CARE SOLUTIONS LTD,CARE ESTABLISHMENT,LD - Fenland Locality - Cost of Care,LD - Fenland  - Care,Supported Living
Cambridgeshire County Council,04-Jan-23,51301910880,774.42,T & T PRIVATE HIRE LTD,TRADE SUPPLIER,LD - Young Adults Team,LD - Young Adults - Care,Social Care Transport
